Workbook

Sheet Input

Sheet Forside
B2: Intern Benchmarking | G2: Forklaring til regnearket Intern Benchmarking
G4: Intern Benchmarking er et værktøj, hvor man kan se udvalgte driftsgrensresultater sat op imod hinanden, enten forskellige steder på en ejendom i en bestemt periode, eller på samme sted i forskellige perioder.
G6: Der er mulighed for at se resultater indenfor Malkekvæg inkl. Opdræt, Grovfoder, slagtesvin og Sohold 30 kg. (Valgmulighederne udvides i senere versioner)
B8: Vælg hvilken driftsgren der skal ses på: | G8: Kom i gang:
B10: Malkekvæg inkl. opdræt | D10: Slagtesvin | G10: Data for den pågældende ejendom indsættes i fanen "Input"
G11: På fanen "Forside" trykkes på knappen "Klargør data"
B12: Grovfoder | D12: Sohold 30 kg | G12: vælg herefter hvilken driftsgren der ønskes at analysere på.
G30: Herefter skal der vælges om man ønsker at se samme periode med forskellige steder eller samme sted med forskellige perioder. Der kan vælges op til 10 forskellige steder/perioder.
G31: Perioder skrives som ååååmmdd og datoerne er inkl ved både til og fra.
G32: Stederne skrives enten i det pågældende felt eller vælges ud fra den tilhørende Drop-down boks
G33: Ved hver driftsgren vil der være nogle ekstra oplysninger som skal indtastes for hvert sted/periode. Det kan f.eks. være antal årskøer, Ha grovfoder, antal årssøer, eller gns kg. pr. slagtesvin
G54: Når de pågældende steder/perioder er valgt trykkes på knappen "Vis resultat"
G55: Hvis man vil tilbage til indtastning igen trykkes på "Indsæt nye steder/perioder"
G56: Hvis man vil helt tilbage på forsiden trykkes på "Til forsiden"
G67: Når der er trykket på vis resultat kommer de pågældende resultater frem. Hvis der er flere muligheder for divisor (pr enhed) vises begge muligheder. F.eks. Ved mælk vises både resultater pr. årsko, samt pr. kg. ekm
G68: Visningen er dynamisk og tilpasser sig antallet af steder/perioder
G113: Grafer:
G114: Under tabellerne findes der grafer for de forskellige steder/perioder
G115: Hvilken graf der skal vises vælges ved "Vælg diagram", hvor der kan vælges via drop-down. Omkostninger vil blive vist med positiv fortegn og ikke negative som i tabellerne

Sheet Malkekvæg
A2: 1 | B2: 1 | C2: 1 | D2: 1 | E2: =IF(COUNT(E8:E22)>0,1,0) -> 1 | F2: =IF(COUNT(F8:F22)>0,1,0) -> 0 | G2: 0 | H2: 1 | I2: 0 | J2: 0 | K2: 1 | L2: 0 | M2: 0 | N2: 0 | O2: 0 | P2: 0 | Q2: 0 | R2: 0 | S2: 0 | T2: 0 | U2: 0 | V2: 0 | W2: 0 | X2: 0 | Y2: 0 | Z2: 0 | AA2: 0 | AB2: 0 | AC2: 0 | AD2: 0 | AE2: 0 | AF2: 0 | AG2: 1 | AH2: 1
C6: Vælg samme periode med forskellige steder
C8: Periode | D8: Fra:
D9: Til:
C11: Vælg op til 10 steder:
C12: Ekstra informationer:
C13: Antal årskøer pr sted:
C15: Vælg samme sted forskellige perioder
C17: Sted | E17: Sted 1
C19: Vælg op til 10 perioder: | D19: Fra: | E19: 20190101 | H19: 20190201 | K19: 20190301
D20: Til: | E20: 20190131 | H20: 20190228 | K20: 20190331
C21: Ekstra informationer:
C22: Antal årskøer i perioden: | E22: 200 | H22: 400 | K22: 300
C34: Intern Benchmarking
C36: Sted | E36: =IF(E11="",IF($E$17="","",$E$17),E11) -> Sted 1 | H36: =IF(H11="",IF($E$17="","",$E$17),H11) -> Sted 1 | K36: Sted 1 | N36: Sted 1 | Q36: Sted 1 | T36: Sted 1 | W36: Sted 1 | Z36: Sted 1 | AC36: Sted 1 | AF36: Sted 1
C37: Periode | E37: =IF(E19="",IF($E$8="","",$E$8),E19) -> 20190101 | H37: =IF(H19="",IF($E$8="","",$E$8),H19) -> 20190201 | K37: 20190301
E38: =IF(E20="",IF($E$9="","",$E$9),E20) -> 20190131 | H38: =IF(H20="",IF($E$9="","",$E$9),H20) -> 20190228 | K38: 20190331
C40: Produktion
C41: Antal årskøer | E41: =IF(E13="",IF(E22="","",E22),E13) -> 200 | H41: 400 | K41: 300
C43: Resultat pr. årsko
C44: Mælk leveret kr. | E44: =Beregninger!E89 -> 6501.75865 | H44: =Beregninger!H89 -> 3049.277825 | K44: =Beregninger!K89 -> 8089.691933 | N44: =Beregninger!N89 -> 0 | Q44: =Beregninger!Q89 -> 0 | T44: =Beregninger!T89 -> 0 | W44: =Beregninger!W89 -> 0 | Z44: =Beregninger!Z89 -> 0 | AC44: =Beregninger!AC89 -> 0 | AF44: =Beregninger!AF89 -> 0
C45: Mælk leveret kg. EKM | E45: =Beregninger!F89 -> 1827.61 | H45: =Beregninger!I89 -> 853.06 | K45: =Beregninger!L89 -> 1226.713333 | N45: =Beregninger!O89 -> 0 | Q45: =Beregninger!R89 -> 0 | T45: =Beregninger!U89 -> 0 | W45: =Beregninger!X89 -> 0 | Z45: =Beregninger!AA89 -> 0 | AC45: =Beregninger!AD89 -> 0 | AF45: =Beregninger!AG89 -> 0
C46: Foder i alt kr. | E46: =Beregninger!E90 -> -2049.46005 | H46: =Beregninger!H90 -> -774.659175 | K46: =Beregninger!K90 -> -960.0425667 | N46: =Beregninger!N90 -> 0 | Q46: =Beregninger!Q90 -> 0 | T46: =Beregninger!T90 -> 0 | W46: =Beregninger!W90 -> 0 | Z46: =Beregninger!Z90 -> 0 | AC46: =Beregninger!AC90 -> 0 | AF46: =Beregninger!AF90 -> 0
C47: Heraf eget grovfoder kr. | E47: =Beregninger!E91 -> 0 | H47: =Beregninger!H91 -> 0 | K47: =Beregninger!K91 -> 0 | N47: =Beregninger!N91 -> 0 | Q47: =Beregninger!Q91 -> 0 | T47: =Beregninger!T91 -> 0 | W47: =Beregninger!W91 -> 0 | Z47: =Beregninger!Z91 -> 0 | AC47: =Beregninger!AC91 -> 0 | AF47: =Beregninger!AF91 -> 0
C48: Heraf eget grovfoder kg. | E48: =Beregninger!F91 -> 0 | H48: =Beregninger!I91 -> 0 | K48: =Beregninger!L91 -> 0 | N48: =Beregninger!O91 -> 0 | Q48: =Beregninger!R91 -> 0 | T48: =Beregninger!U91 -> 0 | W48: =Beregninger!X91 -> 0 | Z48: =Beregninger!AA91 -> 0 | AC48: =Beregninger!AD91 -> 0 | AF48: =Beregninger!AG91 -> 0
C49: Heraf kraftfoder kr. | E49: =Beregninger!E92 -> -1958.57255 | H49: =Beregninger!H92 -> -707.54105 | K49: =Beregninger!K92 -> -938.0217333 | N49: =Beregninger!N92 -> 0 | Q49: =Beregninger!Q92 -> 0 | T49: =Beregninger!T92 -> 0 | W49: =Beregninger!W92 -> 0 | Z49: =Beregninger!Z92 -> 0 | AC49: =Beregninger!AC92 -> 0 | AF49: =Beregninger!AF92 -> 0
C50: Heraf kraffoder kg. | E50: =Beregninger!F92 -> -840.95 | H50: =Beregninger!I92 -> -303.2 | K50: =Beregninger!L92 -> -401.4333333 | N50: =Beregninger!O92 -> 0 | Q50: =Beregninger!R92 -> 0 | T50: =Beregninger!U92 -> 0 | W50: =Beregninger!X92 -> 0 | Z50: =Beregninger!AA92 -> 0 | AC50: =Beregninger!AD92 -> 0 | AF50: =Beregninger!AG92 -> 0
C51: Heraf A-blanding kr. | E51: =Beregninger!E93 -> -1958.57255 | H51: =Beregninger!H93 -> -707.54105 | K51: =Beregninger!K93 -> -938.0217333 | N51: =Beregninger!N93 -> 0 | Q51: =Beregninger!Q93 -> 0 | T51: =Beregninger!T93 -> 0 | W51: =Beregninger!W93 -> 0 | Z51: =Beregninger!Z93 -> 0 | AC51: =Beregninger!AC93 -> 0 | AF51: =Beregninger!AF93 -> 0
C52: Heraf A-blanding kg. | E52: =Beregninger!F93 -> -840.95 | H52: =Beregninger!I93 -> -303.2 | K52: =Beregninger!L93 -> -401.4333333 | N52: =Beregninger!O93 -> 0 | Q52: =Beregninger!R93 -> 0 | T52: =Beregninger!U93 -> 0 | W52: =Beregninger!X93 -> 0 | Z52: =Beregninger!AA93 -> 0 | AC52: =Beregninger!AD93 -> 0 | AF52: =Beregninger!AG93 -> 0
C53: Heraf C-blanding kr. | E53: =Beregninger!E94 -> 0 | H53: =Beregninger!H94 -> 0 | K53: =Beregninger!K94 -> 0 | N53: =Beregninger!N94 -> 0 | Q53: =Beregninger!Q94 -> 0 | T53: =Beregninger!T94 -> 0 | W53: =Beregninger!W94 -> 0 | Z53: =Beregninger!Z94 -> 0 | AC53: =Beregninger!AC94 -> 0 | AF53: =Beregninger!AF94 -> 0
C54: Heraf C-blanding kg. | E54: =Beregninger!F94 -> 0 | H54: =Beregninger!I94 -> 0 | K54: =Beregninger!L94 -> 0 | N54: =Beregninger!O94 -> 0 | Q54: =Beregninger!R94 -> 0 | T54: =Beregninger!U94 -> 0 | W54: =Beregninger!X94 -> 0 | Z54: =Beregninger!AA94 -> 0 | AC54: =Beregninger!AD94 -> 0 | AF54: =Beregninger!AG94 -> 0
C55: Dyrlæge og medicin kr. | E55: =Beregninger!E95 -> -154.43925 | H55: =Beregninger!H95 -> -75.399925 | K55: =Beregninger!K95 -> -106.0059333 | N55: =Beregninger!N95 -> 0 | Q55: =Beregninger!Q95 -> 0 | T55: =Beregninger!T95 -> 0 | W55: =Beregninger!W95 -> 0 | Z55: =Beregninger!Z95 -> 0 | AC55: =Beregninger!AC95 -> 0 | AF55: =Beregninger!AF95 -> 0
C56: Vedligeholdelse bygninger kr. | E56: =Beregninger!E96 -> 0 | H56: =Beregninger!H96 -> 0 | K56: =Beregninger!K96 -> 0 | N56: =Beregninger!N96 -> 0 | Q56: =Beregninger!Q96 -> 0 | T56: =Beregninger!T96 -> 0 | W56: =Beregninger!W96 -> 0 | Z56: =Beregninger!Z96 -> 0 | AC56: =Beregninger!AC96 -> 0 | AF56: =Beregninger!AF96 -> 0
C57: Vedligeholdelse staldinventar kr. | E57: =Beregninger!E97 -> 0 | H57: =Beregninger!H97 -> 0 | K57: =Beregninger!K97 -> 0 | N57: =Beregninger!N97 -> 0 | Q57: =Beregninger!Q97 -> 0 | T57: =Beregninger!T97 -> 0 | W57: =Beregninger!W97 -> 0 | Z57: =Beregninger!Z97 -> 0 | AC57: =Beregninger!AC97 -> 0 | AF57: =Beregninger!AF97 -> 0
C59: Resultat pr. kg EKM.
C60: Mælk leveret kr. | E60: =Beregninger!E100 -> 3.557519739 | H60: =Beregninger!H100 -> 3.574517414 | K60: =Beregninger!K100 -> 6.594606673 | N60: =Beregninger!N100 -> 0 | Q60: =Beregninger!Q100 -> 0 | T60: =Beregninger!T100 -> 0 | W60: =Beregninger!W100 -> 0 | Z60: =Beregninger!Z100 -> 0 | AC60: =Beregninger!AC100 -> 0 | AF60: =Beregninger!AF100 -> 0
C61: Mælk leveret kg. EKM | E61: =Beregninger!F100 -> 1 | H61: =Beregninger!I100 -> 1 | K61: =Beregninger!L100 -> 1 | N61: =Beregninger!O100 -> 0 | Q61: =Beregninger!R100 -> 0 | T61: =Beregninger!U100 -> 0 | W61: =Beregninger!X100 -> 0 | Z61: =Beregninger!AA100 -> 0 | AC61: =Beregninger!AD100 -> 0 | AF61: =Beregninger!AG100 -> 0
C62: Foder i alt kr. | E62: =Beregninger!E101 -> -1.12138807 | H62: =Beregninger!H101 -> -0.9080945948 | K62: =Beregninger!K101 -> -0.7826136234 | N62: =Beregninger!N101 -> 0 | Q62: =Beregninger!Q101 -> 0 | T62: =Beregninger!T101 -> 0 | W62: =Beregninger!W101 -> 0 | Z62: =Beregninger!Z101 -> 0 | AC62: =Beregninger!AC101 -> 0 | AF62: =Beregninger!AF101 -> 0
C63: Heraf eget grovfoder kr. | E63: =Beregninger!E102 -> 0 | H63: =Beregninger!H102 -> 0 | K63: =Beregninger!K102 -> 0 | N63: =Beregninger!N102 -> 0 | Q63: =Beregninger!Q102 -> 0 | T63: =Beregninger!T102 -> 0 | W63: =Beregninger!W102 -> 0 | Z63: =Beregninger!Z102 -> 0 | AC63: =Beregninger!AC102 -> 0 | AF63: =Beregninger!AF102 -> 0
C64: Heraf eget grovfoder kg. | E64: =Beregninger!F102 -> 0 | H64: =Beregninger!I102 -> 0 | K64: =Beregninger!L102 -> 0 | N64: =Beregninger!O102 -> 0 | Q64: =Beregninger!R102 -> 0 | T64: =Beregninger!U102 -> 0 | W64: =Beregninger!X102 -> 0 | Z64: =Beregninger!AA102 -> 0 | AC64: =Beregninger!AD102 -> 0 | AF64: =Beregninger!AG102 -> 0
C65: Heraf kraftfoder kr. | E65: =Beregninger!E103 -> -1.071657821 | H65: =Beregninger!H103 -> -0.8294153401 | K65: =Beregninger!K103 -> -0.76466254 | N65: =Beregninger!N103 -> 0 | Q65: =Beregninger!Q103 -> 0 | T65: =Beregninger!T103 -> 0 | W65: =Beregninger!W103 -> 0 | Z65: =Beregninger!Z103 -> 0 | AC65: =Beregninger!AC103 -> 0 | AF65: =Beregninger!AF103 -> 0
C66: Heraf kraffoder kg. | E66: =Beregninger!F103 -> -0.4601364624 | H66: =Beregninger!I103 -> -0.3554263475 | K66: =Beregninger!L103 -> -0.3272429853 | N66: =Beregninger!O103 -> 0 | Q66: =Beregninger!R103 -> 0 | T66: =Beregninger!U103 -> 0 | W66: =Beregninger!X103 -> 0 | Z66: =Beregninger!AA103 -> 0 | AC66: =Beregninger!AD103 -> 0 | AF66: =Beregninger!AG103 -> 0
C67: Heraf A-blanding kr. | E67: =Beregninger!E104 -> -1.071657821 | H67: =Beregninger!H104 -> -0.8294153401 | K67: =Beregninger!K104 -> -0.76466254 | N67: =Beregninger!N104 -> 0 | Q67: =Beregninger!Q104 -> 0 | T67: =Beregninger!T104 -> 0 | W67: =Beregninger!W104 -> 0 | Z67: =Beregninger!Z104 -> 0 | AC67: =Beregninger!AC104 -> 0 | AF67: =Beregninger!AF104 -> 0
C68: Heraf A-blanding kg. | E68: =Beregninger!F104 -> -0.4601364624 | H68: =Beregninger!I104 -> -0.3554263475 | K68: =Beregninger!L104 -> -0.3272429853 | N68: =Beregninger!O104 -> 0 | Q68: =Beregninger!R104 -> 0 | T68: =Beregninger!U104 -> 0 | W68: =Beregninger!X104 -> 0 | Z68: =Beregninger!AA104 -> 0 | AC68: =Beregninger!AD104 -> 0 | AF68: =Beregninger!AG104 -> 0
C69: Heraf C-blanding kr. | E69: =Beregninger!E105 -> 0 | H69: =Beregninger!H105 -> 0 | K69: =Beregninger!K105 -> 0 | N69: =Beregninger!N105 -> 0 | Q69: =Beregninger!Q105 -> 0 | T69: =Beregninger!T105 -> 0 | W69: =Beregninger!W105 -> 0 | Z69: =Beregninger!Z105 -> 0 | AC69: =Beregninger!AC105 -> 0 | AF69: =Beregninger!AF105 -> 0
C70: Heraf C-blanding kg. | E70: =Beregninger!F105 -> 0 | H70: =Beregninger!I105 -> 0 | K70: =Beregninger!L105 -> 0 | N70: =Beregninger!O105 -> 0 | Q70: =Beregninger!R105 -> 0 | T70: =Beregninger!U105 -> 0 | W70: =Beregninger!X105 -> 0 | Z70: =Beregninger!AA105 -> 0 | AC70: =Beregninger!AD105 -> 0 | AF70: =Beregninger!AG105 -> 0
C71: Dyrlæge og medicin kr. | E71: =Beregninger!E106 -> -0.08450339514 | H71: =Beregninger!H106 -> -0.08838759876 | K71: =Beregninger!K106 -> -0.08641459292 | N71: =Beregninger!N106 -> 0 | Q71: =Beregninger!Q106 -> 0 | T71: =Beregninger!T106 -> 0 | W71: =Beregninger!W106 -> 0 | Z71: =Beregninger!Z106 -> 0 | AC71: =Beregninger!AC106 -> 0 | AF71: =Beregninger!AF106 -> 0
C72: Vedligeholdelse bygninger kr. | E72: =Beregninger!E107 -> 0 | H72: =Beregninger!H107 -> 0 | K72: =Beregninger!K107 -> 0 | N72: =Beregninger!N107 -> 0 | Q72: =Beregninger!Q107 -> 0 | T72: =Beregninger!T107 -> 0 | W72: =Beregninger!W107 -> 0 | Z72: =Beregninger!Z107 -> 0 | AC72: =Beregninger!AC107 -> 0 | AF72: =Beregninger!AF107 -> 0
C73: Vedligeholdelse staldinventar kr. | E73: =Beregninger!E108 -> 0 | H73: =Beregninger!H108 -> 0 | K73: =Beregninger!K108 -> 0 | N73: =Beregninger!N108 -> 0 | Q73: =Beregninger!Q108 -> 0 | T73: =Beregninger!T108 -> 0 | W73: =Beregninger!W108 -> 0 | Z73: =Beregninger!Z108 -> 0 | AC73: =Beregninger!AC108 -> 0 | AF73: =Beregninger!AF108 -> 0
C76: Vælg diagram | E76: =C78&" pr. årsko" -> Foder i alt kr. pr. årsko
C78: Foder i alt kr.
E95: =C78&" pr. kg. EKM" -> Foder i alt kr. pr. kg. EKM
E117: =E37&" - "&E38 -> 20190101 - 20190131 | F117: =F37&" - "&F38 -> - | G117: - | H117: 20190201 - 20190228 | I117: - | J117: - | K117: 20190301 - 20190331 | L117: - | M117: - | N117: - | O117: - | P117: - | Q117: - | R117: - | S117: - | T117: - | U117: - | V117: - | W117: - | X117: - | Y117: - | Z117: - | AA117: - | AB117: - | AC117: - | AD117: - | AE117: - | AF117: -
E118: =IF(E36=H36,E117,E36) -> 20190101 - 20190131 | F118: =IF(F36=I36,F117,F36) -> - | G118: =IF(G36=J36,G117,G36) -> - | H118: =IF(H36=E36,H117,H36) -> 20190201 - 20190228 | I118: - | J118: - | K118: 20190301 - 20190331 | L118: - | M118: - | N118: - | O118: - | P118: - | Q118: - | R118: - | S118: - | T118: - | U118: - | V118: - | W118: - | X118: - | Y118: - | Z118: - | AA118: - | AB118: - | AC118: - | AD118: - | AE118: - | AF118: -
E119: 3 | F119: =E119+1 -> 4 | G119: =F119+1 -> 5 | H119: 6 | I119: 7 | J119: 8 | K119: 9 | L119: 10 | M119: 11 | N119: 12 | O119: 13 | P119: 14 | Q119: 15 | R119: 16 | S119: 17 | T119: 18 | U119: 19 | V119: 20 | W119: 21 | X119: 22 | Y119: 23 | Z119: 24 | AA119: 25 | AB119: 26 | AC119: 27 | AD119: 28 | AE119: 29 | AF119: 30
E120: =ABS(IFERROR(VLOOKUP($C$78,$C$44:$AF$57,E119,FALSE),"")) -> 2049.46005 | F120: 0 | G120: 0 | H120: 774.659175 | I120: 0 | J120: 0 | K120: 960.0425667 | L120: 0 | M120: 0 | N120: 0 | O120: 0 | P120: 0 | Q120: 0 | R120: 0 | S120: 0 | T120: 0 | U120: 0 | V120: 0 | W120: 0 | X120: 0 | Y120: 0 | Z120: 0 | AA120: 0 | AB120: 0 | AC120: 0 | AD120: 0 | AE120: 0 | AF120: 0
E121: =ABS(IFERROR(VLOOKUP($C$78,$C$60:$AF$73,E119,FALSE),"")) -> 1.12138807 | F121: 0 | G121: 0 | H121: 0.9080945948 | I121: 0 | J121: 0 | K121: 0.7826136234 | L121: 0 | M121: 0 | N121: 0 | O121: 0 | P121: 0 | Q121: 0 | R121: 0 | S121: 0 | T121: 0 | U121: 0 | V121: 0 | W121: 0 | X121: 0 | Y121: 0 | Z121: 0 | AA121: 0 | AB121: 0 | AC121: 0 | AD121: 0 | AE121: 0 | AF121: 0

Sheet Grovfoder
A2: 1 | B2: 1 | C2: 1 | D2: 1 | E2: =IF(COUNT(E8:E22)>0,1,0) -> 0 | F2: =IF(COUNT(F8:F22)>0,1,0) -> 0 | G2: 0 | H2: 0 | I2: 0 | J2: 0 | K2: 0 | L2: 0 | M2: 0 | N2: 0 | O2: 0 | P2: 0 | Q2: 0 | R2: 0 | S2: 0 | T2: 0 | U2: 0 | V2: 0 | W2: 0 | X2: 0 | Y2: 0 | Z2: 0 | AA2: 0 | AB2: 0 | AC2: 0 | AD2: 0 | AE2: 0 | AF2: 0 | AG2: 1 | AH2: 1
C6: Vælg samme periode med forskellige steder
C8: Periode | D8: Fra:
D9: Til:
C11: Vælg op til 10 steder:
C12: Ekstra informationer:
C13: Ha. grovfoder sted
C15: Vælg samme sted forskellige perioder
C17: Sted
C19: Vælg op til 10 perioder: | D19: Fra:
D20: Til:
C21: Ekstra informationer:
C22: Ha. grovfoder i perioden
C34: Intern Benchmarking
C36: Sted | E36: =IF(E11="",IF($E$17="","",$E$17),E11) ->  | H36: =IF(H11="",IF($E$17="","",$E$17),H11) -> 
C37: Periode | E37: =IF(E19="",IF($E$8="","",$E$8),E19) ->  | H37: =IF(H19="",IF($E$8="","",$E$8),H19) -> 
E38: =IF(E20="",IF($E$9="","",$E$9),E20) ->  | H38: =IF(H20="",IF($E$9="","",$E$9),H20) -> 
C40: Produktion
C41: Ha grovfoder | E41: =IF(E13="",IF(E22="","",E22),E13) ->  | F41: =IF(F13="",IF(F22="","",F22),F13) -> 
C43: Resultat pr. ha
C44: Maskinstation i alt, kr | E44: =Beregninger!E122 -> 0 | H44: =Beregninger!H122 -> 0 | K44: =Beregninger!K122 -> 0 | N44: =Beregninger!N122 -> 0 | Q44: =Beregninger!Q122 -> 0 | T44: =Beregninger!T122 -> 0 | W44: =Beregninger!W122 -> 0 | Z44: =Beregninger!Z122 -> 0 | AC44: =Beregninger!AC122 -> 0 | AF44: =Beregninger!AF122 -> 0
C45: Heraf høst grovfoder, kr | E45: =Beregninger!E123 -> 0 | H45: =Beregninger!H123 -> 0 | K45: =Beregninger!K123 -> 0 | N45: =Beregninger!N123 -> 0 | Q45: =Beregninger!Q123 -> 0 | T45: =Beregninger!T123 -> 0 | W45: =Beregninger!W123 -> 0 | Z45: =Beregninger!Z123 -> 0 | AC45: =Beregninger!AC123 -> 0 | AF45: =Beregninger!AF123 -> 0
C46: Vedligehold maskiner | E46: =Beregninger!E124 -> 0 | H46: =Beregninger!H124 -> 0 | K46: =Beregninger!K124 -> 0 | N46: =Beregninger!N124 -> 0 | Q46: =Beregninger!Q124 -> 0 | T46: =Beregninger!T124 -> 0 | W46: =Beregninger!W124 -> 0 | Z46: =Beregninger!Z124 -> 0 | AC46: =Beregninger!AC124 -> 0 | AF46: =Beregninger!AF124 -> 0
C49: Vælg diagram | E49: =C51&" pr. ha" -> Maskinstation i alt pr. ha
C51: Maskinstation i alt
E70: =E37&" - "&E38 -> - | H70: =H37&" - "&H38 -> - | K70: =K37&" - "&K38 -> - | L70: - | M70: - | N70: - | O70: - | P70: - | Q70: - | R70: - | S70: - | T70: - | U70: - | V70: - | W70: - | X70: - | Y70: - | Z70: - | AA70: - | AB70: - | AC70: - | AD70: - | AE70: - | AF70: -
E71: =IF(E36=H36,E70,E36) -> - | H71: =IF(H36=E36,H70,H36) -> - | K71: =IF(K36=H36,K70,K36) -> - | L71: - | M71: - | N71: - | O71: - | P71: - | Q71: - | R71: - | S71: - | T71: - | U71: - | V71: - | W71: - | X71: - | Y71: - | Z71: - | AA71: - | AB71: - | AC71: - | AD71: - | AE71: - | AF71: -
E72: 3 | F72: 3 | G72: 3 | H72: 3 | I72: 3 | J72: 3 | K72: 3 | L72: 3 | M72: 3 | N72: 3 | O72: 3 | P72: 3 | Q72: 3 | R72: 3 | S72: 3 | T72: 3 | U72: 3 | V72: 3 | W72: 3 | X72: 3 | Y72: 3 | Z72: 3 | AA72: 3 | AB72: 3 | AC72: 3 | AD72: 3 | AE72: 3 | AF72: 3
E73: =ABS(IFERROR(VLOOKUP($C$51,$C$44:$AF$47,E72,FALSE),"")) ->  | H73: =ABS(IFERROR(VLOOKUP($C$51,$C$44:$AF$47,H72,FALSE),"")) ->  | K73: =ABS(IFERROR(VLOOKUP($C$51,$C$44:$AF$47,K72,FALSE),"")) -> 

Sheet Sohold30kg
A2: 1 | B2: 1 | C2: 1 | D2: 1 | E2: =IF(COUNT(E8:E22)>0,1,0) -> 0 | F2: =IF(COUNT(F8:F22)>0,1,0) -> 0 | G2: 0 | H2: 0 | I2: 0 | J2: 0 | K2: 0 | L2: 0 | M2: 0 | N2: 0 | O2: 0 | P2: 0 | Q2: 0 | R2: 0 | S2: 0 | T2: 0 | U2: 0 | V2: 0 | W2: 0 | X2: 0 | Y2: 0 | Z2: 0 | AA2: 0 | AB2: 0 | AC2: 0 | AD2: 0 | AE2: 0 | AF2: 0 | AG2: 1 | AH2: 1
C6: Vælg samme periode med forskellige steder
C8: Periode | D8: Fra:
D9: Til:
C11: Vælg op til 10 steder:
C12: Ekstra informationer:
C13: Antal årssøer pr. sted
C15: Vælg samme sted forskellige perioder
C17: Sted
C19: Vælg op til 10 perioder: | D19: Fra:
D20: Til:
C21: Ekstra informationer:
C22: Antal årssøer i perioden
C34: Intern Benchmarking
C36: Sted | E36: =IF(E11="",IF($E$17="","",$E$17),E11) ->  | H36: =IF(H11="",IF($E$17="","",$E$17),H11) -> 
C37: Periode | E37: =IF(E19="",IF($E$8="","",$E$8),E19) ->  | H37: =IF(H19="",IF($E$8="","",$E$8),H19) -> 
E38: =IF(E20="",IF($E$9="","",$E$9),E20) ->  | H38: =IF(H20="",IF($E$9="","",$E$9),H20) -> 
C40: Produktion
C41: Antal årssøer | E41: =IF(E13="",IF(E22="","",E22),E13) -> 
C42: Solgte smågrise | E42: =IF(Beregninger!F133="","",Beregninger!F133) -> 0 | H42: =IF(Beregninger!I133="","",Beregninger!I133) -> 0 | K42: =IF(Beregninger!L133="","",Beregninger!L133) -> 0 | N42: =IF(Beregninger!O133="","",Beregninger!O133) -> 0 | Q42: =IF(Beregninger!R133="","",Beregninger!R133) -> 0 | T42: =IF(Beregninger!U133="","",Beregninger!U133) -> 0 | W42: =IF(Beregninger!X133="","",Beregninger!X133) -> 0 | Z42: =IF(Beregninger!AA133="","",Beregninger!AA133) -> 0 | AC42: =IF(Beregninger!AD133="","",Beregninger!AD133) -> 0 | AF42: =IF(Beregninger!AG133="","",Beregninger!AG133) -> 0
C44: Resultat pr. årsso
C45: Solgte smågrise kr. | E45: =Beregninger!E147 -> 0 | H45: =Beregninger!H147 -> 0 | K45: =Beregninger!K147 -> 0 | N45: =Beregninger!N147 -> 0 | Q45: =Beregninger!Q147 -> 0 | T45: =Beregninger!T147 -> 0 | W45: =Beregninger!W147 -> 0 | Z45: =Beregninger!Z147 -> 0 | AC45: =Beregninger!AC147 -> 0 | AF45: =Beregninger!AF147 -> 0
C46: solge smågrise stk. | E46: =Beregninger!F147 -> 0 | H46: =Beregninger!I147 -> 0 | K46: =Beregninger!L147 -> 0 | N46: =Beregninger!O147 -> 0 | Q46: =Beregninger!R147 -> 0 | T46: =Beregninger!U147 -> 0 | W46: =Beregninger!X147 -> 0 | Z46: =Beregninger!AA147 -> 0 | AC46: =Beregninger!AD147 -> 0 | AF46: =Beregninger!AG147 -> 0
C47: Foder i alt kr. | E47: =Beregninger!E148 -> 0 | H47: =Beregninger!H148 -> 0 | K47: =Beregninger!K148 -> 0 | N47: =Beregninger!N148 -> 0 | Q47: =Beregninger!Q148 -> 0 | T47: =Beregninger!T148 -> 0 | W47: =Beregninger!W148 -> 0 | Z47: =Beregninger!Z148 -> 0 | AC47: =Beregninger!AC148 -> 0 | AF47: =Beregninger!AF148 -> 0
C48: Heraf korn kr. | E48: =Beregninger!E149 -> 0 | H48: =Beregninger!H149 -> 0 | K48: =Beregninger!K149 -> 0 | N48: =Beregninger!N149 -> 0 | Q48: =Beregninger!Q149 -> 0 | T48: =Beregninger!T149 -> 0 | W48: =Beregninger!W149 -> 0 | Z48: =Beregninger!Z149 -> 0 | AC48: =Beregninger!AC149 -> 0 | AF48: =Beregninger!AF149 -> 0
C49: Heraf korn kg. | E49: =Beregninger!F149 -> 0 | H49: =Beregninger!I149 -> 0 | K49: =Beregninger!L149 -> 0 | N49: =Beregninger!O149 -> 0 | Q49: =Beregninger!R149 -> 0 | T49: =Beregninger!U149 -> 0 | W49: =Beregninger!X149 -> 0 | Z49: =Beregninger!AA149 -> 0 | AC49: =Beregninger!AD149 -> 0 | AF49: =Beregninger!AG149 -> 0
C50: Heraf tilskudsfoder kr. | E50: =Beregninger!E150 -> 0 | H50: =Beregninger!H150 -> 0 | K50: =Beregninger!K150 -> 0 | N50: =Beregninger!N150 -> 0 | Q50: =Beregninger!Q150 -> 0 | T50: =Beregninger!T150 -> 0 | W50: =Beregninger!W150 -> 0 | Z50: =Beregninger!Z150 -> 0 | AC50: =Beregninger!AC150 -> 0 | AF50: =Beregninger!AF150 -> 0
C51: Heraf tilskudsfoder kg. | E51: =Beregninger!F150 -> 0 | H51: =Beregninger!I150 -> 0 | K51: =Beregninger!L150 -> 0 | N51: =Beregninger!O150 -> 0 | Q51: =Beregninger!R150 -> 0 | T51: =Beregninger!U150 -> 0 | W51: =Beregninger!X150 -> 0 | Z51: =Beregninger!AA150 -> 0 | AC51: =Beregninger!AD150 -> 0 | AF51: =Beregninger!AG150 -> 0
C52: Heraf Smågriseblanding kr. | E52: =Beregninger!E151 -> 0 | H52: =Beregninger!H151 -> 0 | K52: =Beregninger!K151 -> 0 | N52: =Beregninger!N151 -> 0 | Q52: =Beregninger!Q151 -> 0 | T52: =Beregninger!T151 -> 0 | W52: =Beregninger!W151 -> 0 | Z52: =Beregninger!Z151 -> 0 | AC52: =Beregninger!AC151 -> 0 | AF52: =Beregninger!AF151 -> 0
C53: Heraf Smågriseblanding kg. | E53: =Beregninger!F151 -> 0 | H53: =Beregninger!I151 -> 0 | K53: =Beregninger!L151 -> 0 | N53: =Beregninger!O151 -> 0 | Q53: =Beregninger!R151 -> 0 | T53: =Beregninger!U151 -> 0 | W53: =Beregninger!X151 -> 0 | Z53: =Beregninger!AA151 -> 0 | AC53: =Beregninger!AD151 -> 0 | AF53: =Beregninger!AG151 -> 0
C54: Heraf Færdigblanding søer kr. | E54: =Beregninger!E152 -> 0 | H54: =Beregninger!H152 -> 0 | K54: =Beregninger!K152 -> 0 | N54: =Beregninger!N152 -> 0 | Q54: =Beregninger!Q152 -> 0 | T54: =Beregninger!T152 -> 0 | W54: =Beregninger!W152 -> 0 | Z54: =Beregninger!Z152 -> 0 | AC54: =Beregninger!AC152 -> 0 | AF54: =Beregninger!AF152 -> 0
C55: Heraf Færdigblanding søer kg. | E55: =Beregninger!F152 -> 0 | H55: =Beregninger!I152 -> 0 | K55: =Beregninger!L152 -> 0 | N55: =Beregninger!O152 -> 0 | Q55: =Beregninger!R152 -> 0 | T55: =Beregninger!U152 -> 0 | W55: =Beregninger!X152 -> 0 | Z55: =Beregninger!AA152 -> 0 | AC55: =Beregninger!AD152 -> 0 | AF55: =Beregninger!AG152 -> 0
C56: Heraf Færdigblanding smågrise kr. | E56: =Beregninger!E153 -> 0 | H56: =Beregninger!H153 -> 0 | K56: =Beregninger!K153 -> 0 | N56: =Beregninger!N153 -> 0 | Q56: =Beregninger!Q153 -> 0 | T56: =Beregninger!T153 -> 0 | W56: =Beregninger!W153 -> 0 | Z56: =Beregninger!Z153 -> 0 | AC56: =Beregninger!AC153 -> 0 | AF56: =Beregninger!AF153 -> 0
C57: Heraf Færdigblanding smågrise kg. | E57: =Beregninger!F153 -> 0 | H57: =Beregninger!I153 -> 0 | K57: =Beregninger!L153 -> 0 | N57: =Beregninger!O153 -> 0 | Q57: =Beregninger!R153 -> 0 | T57: =Beregninger!U153 -> 0 | W57: =Beregninger!X153 -> 0 | Z57: =Beregninger!AA153 -> 0 | AC57: =Beregninger!AD153 -> 0 | AF57: =Beregninger!AG153 -> 0
C58: Dyrlæge og medicin kr. | E58: =Beregninger!E154 -> 0 | H58: =Beregninger!H154 -> 0 | K58: =Beregninger!K154 -> 0 | N58: =Beregninger!N154 -> 0 | Q58: =Beregninger!Q154 -> 0 | T58: =Beregninger!T154 -> 0 | W58: =Beregninger!W154 -> 0 | Z58: =Beregninger!Z154 -> 0 | AC58: =Beregninger!AC154 -> 0 | AF58: =Beregninger!AF154 -> 0
C59: Vedligeholdelse bygninger kr. | E59: =Beregninger!E155 -> 0 | H59: =Beregninger!H155 -> 0 | K59: =Beregninger!K155 -> 0 | N59: =Beregninger!N155 -> 0 | Q59: =Beregninger!Q155 -> 0 | T59: =Beregninger!T155 -> 0 | W59: =Beregninger!W155 -> 0 | Z59: =Beregninger!Z155 -> 0 | AC59: =Beregninger!AC155 -> 0 | AF59: =Beregninger!AF155 -> 0
C60: Vedligeholdelse staldinventar kr. | E60: =Beregninger!E156 -> 0 | H60: =Beregninger!H156 -> 0 | K60: =Beregninger!K156 -> 0 | N60: =Beregninger!N156 -> 0 | Q60: =Beregninger!Q156 -> 0 | T60: =Beregninger!T156 -> 0 | W60: =Beregninger!W156 -> 0 | Z60: =Beregninger!Z156 -> 0 | AC60: =Beregninger!AC156 -> 0 | AF60: =Beregninger!AF156 -> 0
C62: Resultat pr. smågris
C63: Solgte smågrise kr. | E63: =Beregninger!E160 -> 0 | H63: =Beregninger!H160 -> 0 | K63: =Beregninger!K160 -> 0 | N63: =Beregninger!N160 -> 0 | Q63: =Beregninger!Q160 -> 0 | T63: =Beregninger!T160 -> 0 | W63: =Beregninger!W160 -> 0 | Z63: =Beregninger!Z160 -> 0 | AC63: =Beregninger!AC160 -> 0 | AF63: =Beregninger!AF160 -> 0
C64: solge smågrise stk. | E64: =Beregninger!F160 -> 0 | H64: =Beregninger!I160 -> 0 | K64: =Beregninger!L160 -> 0 | N64: =Beregninger!O160 -> 0 | Q64: =Beregninger!R160 -> 0 | T64: =Beregninger!U160 -> 0 | W64: =Beregninger!X160 -> 0 | Z64: =Beregninger!AA160 -> 0 | AC64: =Beregninger!AD160 -> 0 | AF64: =Beregninger!AG160 -> 0
C65: Foder i alt kr. | E65: =Beregninger!E161 -> 0 | H65: =Beregninger!H161 -> 0 | K65: =Beregninger!K161 -> 0 | N65: =Beregninger!N161 -> 0 | Q65: =Beregninger!Q161 -> 0 | T65: =Beregninger!T161 -> 0 | W65: =Beregninger!W161 -> 0 | Z65: =Beregninger!Z161 -> 0 | AC65: =Beregninger!AC161 -> 0 | AF65: =Beregninger!AF161 -> 0
C66: Heraf korn kr. | E66: =Beregninger!E162 -> 0 | H66: =Beregninger!H162 -> 0 | K66: =Beregninger!K162 -> 0 | N66: =Beregninger!N162 -> 0 | Q66: =Beregninger!Q162 -> 0 | T66: =Beregninger!T162 -> 0 | W66: =Beregninger!W162 -> 0 | Z66: =Beregninger!Z162 -> 0 | AC66: =Beregninger!AC162 -> 0 | AF66: =Beregninger!AF162 -> 0
C67: Heraf korn kg. | E67: =Beregninger!F162 -> 0 | H67: =Beregninger!I162 -> 0 | K67: =Beregninger!L162 -> 0 | N67: =Beregninger!O162 -> 0 | Q67: =Beregninger!R162 -> 0 | T67: =Beregninger!U162 -> 0 | W67: =Beregninger!X162 -> 0 | Z67: =Beregninger!AA162 -> 0 | AC67: =Beregninger!AD162 -> 0 | AF67: =Beregninger!AG162 -> 0
C68: Heraf tilskudsfoder kr. | E68: =Beregninger!E163 -> 0 | H68: =Beregninger!H163 -> 0 | K68: =Beregninger!K163 -> 0 | N68: =Beregninger!N163 -> 0 | Q68: =Beregninger!Q163 -> 0 | T68: =Beregninger!T163 -> 0 | W68: =Beregninger!W163 -> 0 | Z68: =Beregninger!Z163 -> 0 | AC68: =Beregninger!AC163 -> 0 | AF68: =Beregninger!AF163 -> 0
C69: Heraf tilskudsfoder kg. | E69: =Beregninger!F163 -> 0 | H69: =Beregninger!I163 -> 0 | K69: =Beregninger!L163 -> 0 | N69: =Beregninger!O163 -> 0 | Q69: =Beregninger!R163 -> 0 | T69: =Beregninger!U163 -> 0 | W69: =Beregninger!X163 -> 0 | Z69: =Beregninger!AA163 -> 0 | AC69: =Beregninger!AD163 -> 0 | AF69: =Beregninger!AG163 -> 0
C70: Heraf Smågriseblanding kr. | E70: =Beregninger!E164 -> 0 | H70: =Beregninger!H164 -> 0 | K70: =Beregninger!K164 -> 0 | N70: =Beregninger!N164 -> 0 | Q70: =Beregninger!Q164 -> 0 | T70: =Beregninger!T164 -> 0 | W70: =Beregninger!W164 -> 0 | Z70: =Beregninger!Z164 -> 0 | AC70: =Beregninger!AC164 -> 0 | AF70: =Beregninger!AF164 -> 0
C71: Heraf Smågriseblanding kg. | E71: =Beregninger!F164 -> 0 | H71: =Beregninger!I164 -> 0 | K71: =Beregninger!L164 -> 0 | N71: =Beregninger!O164 -> 0 | Q71: =Beregninger!R164 -> 0 | T71: =Beregninger!U164 -> 0 | W71: =Beregninger!X164 -> 0 | Z71: =Beregninger!AA164 -> 0 | AC71: =Beregninger!AD164 -> 0 | AF71: =Beregninger!AG164 -> 0
C72: Heraf Færdigblanding søer kr. | E72: =Beregninger!E165 -> 0 | H72: =Beregninger!H165 -> 0 | K72: =Beregninger!K165 -> 0 | N72: =Beregninger!N165 -> 0 | Q72: =Beregninger!Q165 -> 0 | T72: =Beregninger!T165 -> 0 | W72: =Beregninger!W165 -> 0 | Z72: =Beregninger!Z165 -> 0 | AC72: =Beregninger!AC165 -> 0 | AF72: =Beregninger!AF165 -> 0
C73: Heraf Færdigblanding søer kg. | E73: =Beregninger!F165 -> 0 | H73: =Beregninger!I165 -> 0 | K73: =Beregninger!L165 -> 0 | N73: =Beregninger!O165 -> 0 | Q73: =Beregninger!R165 -> 0 | T73: =Beregninger!U165 -> 0 | W73: =Beregninger!X165 -> 0 | Z73: =Beregninger!AA165 -> 0 | AC73: =Beregninger!AD165 -> 0 | AF73: =Beregninger!AG165 -> 0
C74: Heraf Færdigblanding smågrise kr. | E74: =Beregninger!E166 -> 0 | H74: =Beregninger!H166 -> 0 | K74: =Beregninger!K166 -> 0 | N74: =Beregninger!N166 -> 0 | Q74: =Beregninger!Q166 -> 0 | T74: =Beregninger!T166 -> 0 | W74: =Beregninger!W166 -> 0 | Z74: =Beregninger!Z166 -> 0 | AC74: =Beregninger!AC166 -> 0 | AF74: =Beregninger!AF166 -> 0
C75: Heraf Færdigblanding smågrise kg. | E75: =Beregninger!F166 -> 0 | H75: =Beregninger!I166 -> 0 | K75: =Beregninger!L166 -> 0 | N75: =Beregninger!O166 -> 0 | Q75: =Beregninger!R166 -> 0 | T75: =Beregninger!U166 -> 0 | W75: =Beregninger!X166 -> 0 | Z75: =Beregninger!AA166 -> 0 | AC75: =Beregninger!AD166 -> 0 | AF75: =Beregninger!AG166 -> 0
C76: Dyrlæge og medicin kr. | E76: =Beregninger!E167 -> 0 | H76: =Beregninger!H167 -> 0 | K76: =Beregninger!K167 -> 0 | N76: =Beregninger!N167 -> 0 | Q76: =Beregninger!Q167 -> 0 | T76: =Beregninger!T167 -> 0 | W76: =Beregninger!W167 -> 0 | Z76: =Beregninger!Z167 -> 0 | AC76: =Beregninger!AC167 -> 0 | AF76: =Beregninger!AF167 -> 0
C77: Vedligeholdelse bygninger kr. | E77: =Beregninger!E168 -> 0 | H77: =Beregninger!H168 -> 0 | K77: =Beregninger!K168 -> 0 | N77: =Beregninger!N168 -> 0 | Q77: =Beregninger!Q168 -> 0 | T77: =Beregninger!T168 -> 0 | W77: =Beregninger!W168 -> 0 | Z77: =Beregninger!Z168 -> 0 | AC77: =Beregninger!AC168 -> 0 | AF77: =Beregninger!AF168 -> 0
C78: Vedligeholdelse staldinventar kr. | E78: =Beregninger!E169 -> 0 | H78: =Beregninger!H169 -> 0 | K78: =Beregninger!K169 -> 0 | N78: =Beregninger!N169 -> 0 | Q78: =Beregninger!Q169 -> 0 | T78: =Beregninger!T169 -> 0 | W78: =Beregninger!W169 -> 0 | Z78: =Beregninger!Z169 -> 0 | AC78: =Beregninger!AC169 -> 0 | AF78: =Beregninger!AF169 -> 0
C81: Vælg diagram | E81: =C83&" pr. årsso" -> Solgte smågrise kr. pr. årsso
C83: Solgte smågrise kr.
E100: =C83&" pr. smågris" -> Solgte smågrise kr. pr. smågris
E121: =E37&" - "&E38 -> - | H121: =H37&" - "&H38 -> - | K121: =K37&" - "&K38 -> - | N121: =N37&" - "&N38 -> - | Q121: =Q37&" - "&Q38 -> - | T121: =T37&" - "&T38 -> - | W121: =W37&" - "&W38 -> - | Z121: =Z37&" - "&Z38 -> - | AC121: =AC37&" - "&AC38 -> - | AF121: =AF37&" - "&AF38 -> -
E122: =IF(E40=H40,E121,E40) -> - | H122: =IF(H40=K40,H121,H40) -> - | K122: =IF(K40=N40,K121,K40) -> - | N122: =IF(N40=Q40,N121,N40) -> - | Q122: =IF(Q40=T40,Q121,Q40) -> - | T122: =IF(T40=W40,T121,T40) -> - | W122: =IF(W40=Z40,W121,W40) -> - | Z122: =IF(Z40=AC40,Z121,Z40) -> - | AC122: =IF(AC40=AF40,AC121,AC40) -> - | AF122: =IF(AF40=AI40,AF121,AF40) -> -
E124: 3 | F124: =E124+1 -> 4 | G124: =F124+1 -> 5 | H124: 6 | I124: 7 | J124: 8 | K124: 9 | L124: 10 | M124: 11 | N124: 12 | O124: 13 | P124: 14 | Q124: 15 | R124: 16 | S124: 17 | T124: 18 | U124: 19 | V124: 20 | W124: 21 | X124: 22 | Y124: 23 | Z124: 24 | AA124: 25 | AB124: 26 | AC124: 27 | AD124: 28 | AE124: 29 | AF124: 30
E125: =ABS(IFERROR(VLOOKUP($C$83,$C$45:$AF$60,E124,FALSE),"")) -> 0 | F125: =ABS(IFERROR(VLOOKUP($C$79,$C$45:$AF$58,F124,FALSE),"")) ->  | H125: =ABS(IFERROR(VLOOKUP($C$83,$C$45:$AF$60,H124,FALSE),"")) -> 0 | K125: =ABS(IFERROR(VLOOKUP($C$83,$C$45:$AF$60,K124,FALSE),"")) -> 0 | N125: =ABS(IFERROR(VLOOKUP($C$83,$C$45:$AF$60,N124,FALSE),"")) -> 0 | Q125: =ABS(IFERROR(VLOOKUP($C$83,$C$45:$AF$60,Q124,FALSE),"")) -> 0 | T125: =ABS(IFERROR(VLOOKUP($C$83,$C$45:$AF$60,T124,FALSE),"")) -> 0 | W125: =ABS(IFERROR(VLOOKUP($C$83,$C$45:$AF$60,W124,FALSE),"")) -> 0 | Z125: =ABS(IFERROR(VLOOKUP($C$83,$C$45:$AF$60,Z124,FALSE),"")) -> 0 | AC125: =ABS(IFERROR(VLOOKUP($C$83,$C$45:$AF$60,AC124,FALSE),"")) -> 0 | AF125: =ABS(IFERROR(VLOOKUP($C$83,$C$45:$AF$60,AF124,FALSE),"")) -> 0
E126: =ABS(IFERROR(VLOOKUP($C$83,$C$63:$AF$78,E124,FALSE),"")) -> 0 | F126: =ABS(IFERROR(VLOOKUP($C$79,$C$61:$AF$74,F124,FALSE),"")) ->  | H126: =ABS(IFERROR(VLOOKUP($C$83,$C$63:$AF$78,H124,FALSE),"")) -> 0 | K126: =ABS(IFERROR(VLOOKUP($C$83,$C$63:$AF$78,K124,FALSE),"")) -> 0 | N126: =ABS(IFERROR(VLOOKUP($C$83,$C$63:$AF$78,N124,FALSE),"")) -> 0 | Q126: =ABS(IFERROR(VLOOKUP($C$83,$C$63:$AF$78,Q124,FALSE),"")) -> 0 | T126: =ABS(IFERROR(VLOOKUP($C$83,$C$63:$AF$78,T124,FALSE),"")) -> 0 | W126: =ABS(IFERROR(VLOOKUP($C$83,$C$63:$AF$78,W124,FALSE),"")) -> 0 | Z126: =ABS(IFERROR(VLOOKUP($C$83,$C$63:$AF$78,Z124,FALSE),"")) -> 0 | AC126: =ABS(IFERROR(VLOOKUP($C$83,$C$63:$AF$78,AC124,FALSE),"")) -> 0 | AF126: =ABS(IFERROR(VLOOKUP($C$83,$C$63:$AF$78,AF124,FALSE),"")) -> 0

Sheet Slagtesvin
A2: 1 | B2: 1 | C2: 1 | D2: 1 | E2: =IF(COUNT(E8:E22)>0,1,0) -> 1 | F2: =IF(COUNT(F8:F22)>0,1,0) -> 0 | G2: 0 | H2: 1 | I2: 0 | J2: 0 | K2: 1 | L2: 0 | M2: 0 | N2: 0 | O2: 0 | P2: 0 | Q2: 0 | R2: 0 | S2: 0 | T2: 0 | U2: 0 | V2: 0 | W2: 0 | X2: 0 | Y2: 0 | Z2: 0 | AA2: 0 | AB2: 0 | AC2: 0 | AD2: 0 | AE2: 0 | AF2: 0 | AG2: 1 | AH2: 1
C6: Vælg samme periode med forskellige steder
C8: Periode | D8: Fra:
D9: Til:
C11: Vælg op til 10 steder:
C12: Ekstra informationer:
C13: Gns kg. pr slagtesvin
C15: Vælg samme sted forskellige perioder
C17: Sted | E17: Sted 9
C19: Vælg op til 10 perioder: | D19: Fra: | E19: 20190101 | H19: 20190201 | K19: 20190301
D20: Til: | E20: 20190131 | H20: 20190228 | K20: 20190331
C21: Ekstra informationer:
C22: Gns kg. Pr. slagtesvin | E22: 85 | H22: 85 | K22: 85
C34: Intern Benchmarking
C36: Sted | E36: =IF(E11="",IF($E$17="","",$E$17),E11) -> Sted 9 | H36: =IF(H11="",IF($E$17="","",$E$17),H11) -> Sted 9 | K36: Sted 9 | N36: Sted 9 | Q36: Sted 9 | T36: Sted 9 | W36: Sted 9 | Z36: Sted 9 | AC36: Sted 9 | AF36: Sted 9
C37: Periode | E37: =IF(E19="",IF($E$8="","",$E$8),E19) -> 20190101 | H37: =IF(H19="",IF($E$8="","",$E$8),H19) -> 20190201 | K37: 20190301
E38: =IF(E20="",IF($E$9="","",$E$9),E20) -> 20190131 | H38: =IF(H20="",IF($E$9="","",$E$9),H20) -> 20190228 | K38: 20190331
C40: Produktion
C41: Antal solgte slagtesvin | E41: =IF(Beregninger!F177="","",Beregninger!F177) -> 925 | F41: =IF(Beregninger!G177="","",Beregninger!G177) ->  | G41: =IF(Beregninger!H177="","",Beregninger!H177) -> 74579.03 | H41: =IF(Beregninger!I177="","",Beregninger!I177) -> 108 | I41: =IF(Beregninger!J177="","",Beregninger!J177) ->  | J41: =IF(Beregninger!K177="","",Beregninger!K177) -> 61430.38 | K41: =IF(Beregninger!L177="","",Beregninger!L177) -> 87 | L41: =IF(Beregninger!M177="","",Beregninger!M177) ->  | M41: =IF(Beregninger!N177="","",Beregninger!N177) -> 0 | N41: =IF(Beregninger!O177="","",Beregninger!O177) -> 0 | O41: =IF(Beregninger!P177="","",Beregninger!P177) ->  | P41: =IF(Beregninger!Q177="","",Beregninger!Q177) -> 0 | Q41: =IF(Beregninger!R177="","",Beregninger!R177) -> 0 | R41: =IF(Beregninger!S177="","",Beregninger!S177) ->  | S41: =IF(Beregninger!T177="","",Beregninger!T177) -> 0 | T41: =IF(Beregninger!U177="","",Beregninger!U177) -> 0 | U41: =IF(Beregninger!V177="","",Beregninger!V177) ->  | V41: =IF(Beregninger!W177="","",Beregninger!W177) -> 0 | W41: =IF(Beregninger!X177="","",Beregninger!X177) -> 0 | X41: =IF(Beregninger!Y177="","",Beregninger!Y177) ->  | Y41: =IF(Beregninger!Z177="","",Beregninger!Z177) -> 0 | Z41: =IF(Beregninger!AA177="","",Beregninger!AA177) -> 0 | AA41: =IF(Beregninger!AB177="","",Beregninger!AB177) ->  | AB41: =IF(Beregninger!AC177="","",Beregninger!AC177) -> 0 | AC41: =IF(Beregninger!AD177="","",Beregninger!AD177) -> 0 | AD41: =IF(Beregninger!AE177="","",Beregninger!AE177) ->  | AE41: =IF(Beregninger!AF177="","",Beregninger!AF177) -> 0 | AF41: =IF(Beregninger!AG177="","",Beregninger!AG177) -> 0
C42: Gns kg pr . Slagtesvin | E42: =IF(E13="",IF(E22="","",E22),E13) -> 85 | F42: =IF(F13="",IF(F22="","",F22),F13) ->  | H42: 85 | K42: 85
C44: Resultat pr. slagtesvin
C45: Solgte slagtesvin kr. | E45: =Beregninger!E188 -> 688.0499027 | H45: =Beregninger!H188 -> 690.5465741 | K45: =Beregninger!K188 -> 706.0963218 | N45: =Beregninger!N188 -> 0 | Q45: =Beregninger!Q188 -> 0 | T45: =Beregninger!T188 -> 0 | W45: =Beregninger!W188 -> 0 | Z45: =Beregninger!Z188 -> 0 | AC45: =Beregninger!AC188 -> 0 | AF45: =Beregninger!AF188 -> 0
C46: Solge slagtesvin stk. | E46: =Beregninger!F188 -> 1 | H46: =Beregninger!I188 -> 1 | K46: =Beregninger!L188 -> 1 | N46: =Beregninger!O188 -> 0 | Q46: =Beregninger!R188 -> 0 | T46: =Beregninger!U188 -> 0 | W46: =Beregninger!X188 -> 0 | Z46: =Beregninger!AA188 -> 0 | AC46: =Beregninger!AD188 -> 0 | AF46: =Beregninger!AG188 -> 0
C47: Foder i alt kr. | E47: =Beregninger!E189 -> -59.43749189 | H47: =Beregninger!H189 -> -173.9462963 | K47: =Beregninger!K189 -> -444.0344828 | N47: =Beregninger!N189 -> 0 | Q47: =Beregninger!Q189 -> 0 | T47: =Beregninger!T189 -> 0 | W47: =Beregninger!W189 -> 0 | Z47: =Beregninger!Z189 -> 0 | AC47: =Beregninger!AC189 -> 0 | AF47: =Beregninger!AF189 -> 0
C48: Heraf korn kr. | E48: =Beregninger!E190 -> 0 | H48: =Beregninger!H190 -> 0 | K48: =Beregninger!K190 -> 0 | N48: =Beregninger!N190 -> 0 | Q48: =Beregninger!Q190 -> 0 | T48: =Beregninger!T190 -> 0 | W48: =Beregninger!W190 -> 0 | Z48: =Beregninger!Z190 -> 0 | AC48: =Beregninger!AC190 -> 0 | AF48: =Beregninger!AF190 -> 0
C49: Heraf korn kg. | E49: =Beregninger!F190 -> 0 | H49: =Beregninger!I190 -> 0 | K49: =Beregninger!L190 -> 0 | N49: =Beregninger!O190 -> 0 | Q49: =Beregninger!R190 -> 0 | T49: =Beregninger!U190 -> 0 | W49: =Beregninger!X190 -> 0 | Z49: =Beregninger!AA190 -> 0 | AC49: =Beregninger!AD190 -> 0 | AF49: =Beregninger!AG190 -> 0
C50: Heraf tilskudsfoder kr. | E50: =Beregninger!E191 -> 0 | H50: =Beregninger!H191 -> 0 | K50: =Beregninger!K191 -> 0 | N50: =Beregninger!N191 -> 0 | Q50: =Beregninger!Q191 -> 0 | T50: =Beregninger!T191 -> 0 | W50: =Beregninger!W191 -> 0 | Z50: =Beregninger!Z191 -> 0 | AC50: =Beregninger!AC191 -> 0 | AF50: =Beregninger!AF191 -> 0
C51: Heraf tilskudsfoder kg. | E51: =Beregninger!F191 -> 0 | H51: =Beregninger!I191 -> 0 | K51: =Beregninger!L191 -> 0 | N51: =Beregninger!O191 -> 0 | Q51: =Beregninger!R191 -> 0 | T51: =Beregninger!U191 -> 0 | W51: =Beregninger!X191 -> 0 | Z51: =Beregninger!AA191 -> 0 | AC51: =Beregninger!AD191 -> 0 | AF51: =Beregninger!AG191 -> 0
C52: Heraf Færdigblanding slagtesvin kr. | E52: =Beregninger!E192 -> -57.34118919 | H52: =Beregninger!H192 -> -173.9462963 | K52: =Beregninger!K192 -> -444.0344828 | N52: =Beregninger!N192 -> 0 | Q52: =Beregninger!Q192 -> 0 | T52: =Beregninger!T192 -> 0 | W52: =Beregninger!W192 -> 0 | Z52: =Beregninger!Z192 -> 0 | AC52: =Beregninger!AC192 -> 0 | AF52: =Beregninger!AF192 -> 0
C53: Heraf Færdigblanding slagtesvin kg. | E53: =Beregninger!F192 -> -36.29189189 | H53: =Beregninger!I192 -> -110.0925926 | K53: =Beregninger!L192 -> -281.0344828 | N53: =Beregninger!O192 -> 0 | Q53: =Beregninger!R192 -> 0 | T53: =Beregninger!U192 -> 0 | W53: =Beregninger!X192 -> 0 | Z53: =Beregninger!AA192 -> 0 | AC53: =Beregninger!AD192 -> 0 | AF53: =Beregninger!AG192 -> 0
C54: Dyrlæge og medicin kr. | E54: =Beregninger!E193 -> -0.3816216216 | H54: =Beregninger!H193 -> 0 | K54: =Beregninger!K193 -> 0 | N54: =Beregninger!N193 -> 0 | Q54: =Beregninger!Q193 -> 0 | T54: =Beregninger!T193 -> 0 | W54: =Beregninger!W193 -> 0 | Z54: =Beregninger!Z193 -> 0 | AC54: =Beregninger!AC193 -> 0 | AF54: =Beregninger!AF193 -> 0
C55: Vedligeholdelse bygninger kr. | E55: =Beregninger!E194 -> 0 | H55: =Beregninger!H194 -> 0 | K55: =Beregninger!K194 -> 0 | N55: =Beregninger!N194 -> 0 | Q55: =Beregninger!Q194 -> 0 | T55: =Beregninger!T194 -> 0 | W55: =Beregninger!W194 -> 0 | Z55: =Beregninger!Z194 -> 0 | AC55: =Beregninger!AC194 -> 0 | AF55: =Beregninger!AF194 -> 0
C56: Vedligeholdelse staldinventar kr. | E56: =Beregninger!E195 -> -20.78356757 | H56: =Beregninger!H195 -> -275.8085185 | K56: =Beregninger!K195 -> -254.7398851 | N56: =Beregninger!N195 -> 0 | Q56: =Beregninger!Q195 -> 0 | T56: =Beregninger!T195 -> 0 | W56: =Beregninger!W195 -> 0 | Z56: =Beregninger!Z195 -> 0 | AC56: =Beregninger!AC195 -> 0 | AF56: =Beregninger!AF195 -> 0
C58: Resultat pr. kg slagtesvin
C59: Solgte slagtesvin kr. | E59: =Beregninger!E202 -> 8.094704738 | H59: =Beregninger!H202 -> 8.124077342 | K59: =Beregninger!K202 -> 8.307015551 | N59: =Beregninger!N202 -> 0 | Q59: =Beregninger!Q202 -> 0 | T59: =Beregninger!T202 -> 0 | W59: =Beregninger!W202 -> 0 | Z59: =Beregninger!Z202 -> 0 | AC59: =Beregninger!AC202 -> 0 | AF59: =Beregninger!AF202 -> 0
C60: Solge slagtesvin stk. | E60: =Beregninger!F202 -> 0.01176470588 | H60: =Beregninger!I202 -> 0.01176470588 | K60: =Beregninger!L202 -> 0.01176470588 | N60: =Beregninger!O202 -> 0 | Q60: =Beregninger!R202 -> 0 | T60: =Beregninger!U202 -> 0 | W60: =Beregninger!X202 -> 0 | Z60: =Beregninger!AA202 -> 0 | AC60: =Beregninger!AD202 -> 0 | AF60: =Beregninger!AG202 -> 0
C61: Foder i alt kr. | E61: =Beregninger!E203 -> -0.6992646105 | H61: =Beregninger!H203 -> -2.046427015 | K61: =Beregninger!K203 -> -5.223935091 | N61: =Beregninger!N203 -> 0 | Q61: =Beregninger!Q203 -> 0 | T61: =Beregninger!T203 -> 0 | W61: =Beregninger!W203 -> 0 | Z61: =Beregninger!Z203 -> 0 | AC61: =Beregninger!AC203 -> 0 | AF61: =Beregninger!AF203 -> 0
C62: Heraf korn kr. | E62: =Beregninger!E204 -> 0 | H62: =Beregninger!H204 -> 0 | K62: =Beregninger!K204 -> 0 | N62: =Beregninger!N204 -> 0 | Q62: =Beregninger!Q204 -> 0 | T62: =Beregninger!T204 -> 0 | W62: =Beregninger!W204 -> 0 | Z62: =Beregninger!Z204 -> 0 | AC62: =Beregninger!AC204 -> 0 | AF62: =Beregninger!AF204 -> 0
C63: Heraf korn kg. | E63: =Beregninger!F204 -> 0 | H63: =Beregninger!I204 -> 0 | K63: =Beregninger!L204 -> 0 | N63: =Beregninger!O204 -> 0 | Q63: =Beregninger!R204 -> 0 | T63: =Beregninger!U204 -> 0 | W63: =Beregninger!X204 -> 0 | Z63: =Beregninger!AA204 -> 0 | AC63: =Beregninger!AD204 -> 0 | AF63: =Beregninger!AG204 -> 0
C64: Heraf tilskudsfoder kr. | E64: =Beregninger!E205 -> 0 | H64: =Beregninger!H205 -> 0 | K64: =Beregninger!K205 -> 0 | N64: =Beregninger!N205 -> 0 | Q64: =Beregninger!Q205 -> 0 | T64: =Beregninger!T205 -> 0 | W64: =Beregninger!W205 -> 0 | Z64: =Beregninger!Z205 -> 0 | AC64: =Beregninger!AC205 -> 0 | AF64: =Beregninger!AF205 -> 0
C65: Heraf tilskudsfoder kg. | E65: =Beregninger!F205 -> 0 | H65: =Beregninger!I205 -> 0 | K65: =Beregninger!L205 -> 0 | N65: =Beregninger!O205 -> 0 | Q65: =Beregninger!R205 -> 0 | T65: =Beregninger!U205 -> 0 | W65: =Beregninger!X205 -> 0 | Z65: =Beregninger!AA205 -> 0 | AC65: =Beregninger!AD205 -> 0 | AF65: =Beregninger!AG205 -> 0
C66: Heraf Færdigblanding slagtesvin kr. | E66: =Beregninger!E206 -> -0.6746022258 | H66: =Beregninger!H206 -> -2.046427015 | K66: =Beregninger!K206 -> -5.223935091 | N66: =Beregninger!N206 -> 0 | Q66: =Beregninger!Q206 -> 0 | T66: =Beregninger!T206 -> 0 | W66: =Beregninger!W206 -> 0 | Z66: =Beregninger!Z206 -> 0 | AC66: =Beregninger!AC206 -> 0 | AF66: =Beregninger!AF206 -> 0
C67: Heraf Færdigblanding slagtesvin kg. | E67: =Beregninger!F206 -> -0.426963434 | H67: =Beregninger!I206 -> -1.295206972 | K67: =Beregninger!L206 -> -3.306288032 | N67: =Beregninger!O206 -> 0 | Q67: =Beregninger!R206 -> 0 | T67: =Beregninger!U206 -> 0 | W67: =Beregninger!X206 -> 0 | Z67: =Beregninger!AA206 -> 0 | AC67: =Beregninger!AD206 -> 0 | AF67: =Beregninger!AG206 -> 0
C68: Dyrlæge og medicin kr. | E68: =Beregninger!E207 -> -0.004489666137 | H68: =Beregninger!H207 -> 0 | K68: =Beregninger!K207 -> 0 | N68: =Beregninger!N207 -> 0 | Q68: =Beregninger!Q207 -> 0 | T68: =Beregninger!T207 -> 0 | W68: =Beregninger!W207 -> 0 | Z68: =Beregninger!Z207 -> 0 | AC68: =Beregninger!AC207 -> 0 | AF68: =Beregninger!AF207 -> 0
C69: Vedligeholdelse bygninger kr. | E69: =Beregninger!E208 -> 0 | H69: =Beregninger!H208 -> 0 | K69: =Beregninger!K208 -> 0 | N69: =Beregninger!N208 -> 0 | Q69: =Beregninger!Q208 -> 0 | T69: =Beregninger!T208 -> 0 | W69: =Beregninger!W208 -> 0 | Z69: =Beregninger!Z208 -> 0 | AC69: =Beregninger!AC208 -> 0 | AF69: =Beregninger!AF208 -> 0
C70: Vedligeholdelse staldinventar kr. | E70: =Beregninger!E209 -> -0.2445125596 | H70: =Beregninger!H209 -> -3.2448061 | K70: =Beregninger!K209 -> -2.996939824 | N70: =Beregninger!N209 -> 0 | Q70: =Beregninger!Q209 -> 0 | T70: =Beregninger!T209 -> 0 | W70: =Beregninger!W209 -> 0 | Z70: =Beregninger!Z209 -> 0 | AC70: =Beregninger!AC209 -> 0 | AF70: =Beregninger!AF209 -> 0
C73: Vælg diagram | E73: =C75&" pr. slagtesvin" -> Solgte slagtesvin kr. pr. slagtesvin
C75: Solgte slagtesvin kr.
E92: =C75&" pr. kg slagtesvin" -> Solgte slagtesvin kr. pr. kg slagtesvin
E113: =E37&" - "&E38 -> 20190101 - 20190131 | H113: =H37&" - "&H38 -> 20190201 - 20190228 | K113: =K37&" - "&K38 -> 20190301 - 20190331 | N113: =N37&" - "&N38 -> - | Q113: =Q37&" - "&Q38 -> - | T113: =T37&" - "&T38 -> - | W113: =W37&" - "&W38 -> - | Z113: =Z37&" - "&Z38 -> - | AC113: =AC37&" - "&AC38 -> - | AF113: =AF37&" - "&AF38 -> -
E114: =IF(E40=H40,E113,E40) -> 20190101 - 20190131 | H114: =IF(H40=K40,H113,H40) -> 20190201 - 20190228 | K114: =IF(K40=N40,K113,K40) -> 20190301 - 20190331 | N114: =IF(N40=Q40,N113,N40) -> - | Q114: =IF(Q40=T40,Q113,Q40) -> - | T114: =IF(T40=W40,T113,T40) -> - | W114: =IF(W40=Z40,W113,W40) -> - | Z114: =IF(Z40=AC40,Z113,Z40) -> - | AC114: =IF(AC40=AF40,AC113,AC40) -> - | AF114: =IF(AF40=AI40,AF113,AF40) -> -
E116: 3 | F116: =E116+1 -> 4 | G116: =F116+1 -> 5 | H116: 6 | I116: 7 | J116: 8 | K116: 9 | L116: 10 | M116: 11 | N116: 12 | O116: 13 | P116: 14 | Q116: 15 | R116: 16 | S116: 17 | T116: 18 | U116: 19 | V116: 20 | W116: 21 | X116: 22 | Y116: 23 | Z116: 24 | AA116: 25 | AB116: 26 | AC116: 27 | AD116: 28 | AE116: 29 | AF116: 30
E117: =ABS(IFERROR(VLOOKUP($C$75,$C$45:$AF$56,E116,FALSE),"")) -> 688.0499027 | F117: =ABS(IFERROR(VLOOKUP($C$71,$C$45:$AF$54,F116,FALSE),"")) ->  | G117: =ABS(IFERROR(VLOOKUP($C$71,$C$45:$AF$54,G116,FALSE),"")) ->  | H117: =ABS(IFERROR(VLOOKUP($C$75,$C$45:$AF$56,H116,FALSE),"")) -> 690.5465741 | I117: =ABS(IFERROR(VLOOKUP($C$71,$C$45:$AF$54,I116,FALSE),"")) ->  | J117: =ABS(IFERROR(VLOOKUP($C$71,$C$45:$AF$54,J116,FALSE),"")) ->  | K117: =ABS(IFERROR(VLOOKUP($C$75,$C$45:$AF$56,K116,FALSE),"")) -> 706.0963218 | L117: =ABS(IFERROR(VLOOKUP($C$71,$C$45:$AF$54,L116,FALSE),"")) ->  | M117: =ABS(IFERROR(VLOOKUP($C$71,$C$45:$AF$54,M116,FALSE),"")) ->  | N117: =ABS(IFERROR(VLOOKUP($C$75,$C$45:$AF$56,N116,FALSE),"")) -> 0 | O117: =ABS(IFERROR(VLOOKUP($C$71,$C$45:$AF$54,O116,FALSE),"")) ->  | P117: =ABS(IFERROR(VLOOKUP($C$71,$C$45:$AF$54,P116,FALSE),"")) ->  | Q117: =ABS(IFERROR(VLOOKUP($C$75,$C$45:$AF$56,Q116,FALSE),"")) -> 0 | R117: =ABS(IFERROR(VLOOKUP($C$71,$C$45:$AF$54,R116,FALSE),"")) ->  | S117: =ABS(IFERROR(VLOOKUP($C$71,$C$45:$AF$54,S116,FALSE),"")) ->  | T117: =ABS(IFERROR(VLOOKUP($C$75,$C$45:$AF$56,T116,FALSE),"")) -> 0 | U117: =ABS(IFERROR(VLOOKUP($C$71,$C$45:$AF$54,U116,FALSE),"")) ->  | V117: =ABS(IFERROR(VLOOKUP($C$71,$C$45:$AF$54,V116,FALSE),"")) ->  | W117: =ABS(IFERROR(VLOOKUP($C$75,$C$45:$AF$56,W116,FALSE),"")) -> 0 | X117: =ABS(IFERROR(VLOOKUP($C$71,$C$45:$AF$54,X116,FALSE),"")) ->  | Y117: =ABS(IFERROR(VLOOKUP($C$71,$C$45:$AF$54,Y116,FALSE),"")) ->  | Z117: =ABS(IFERROR(VLOOKUP($C$75,$C$45:$AF$56,Z116,FALSE),"")) -> 0 | AA117: =ABS(IFERROR(VLOOKUP($C$71,$C$45:$AF$54,AA116,FALSE),"")) ->  | AB117: =ABS(IFERROR(VLOOKUP($C$71,$C$45:$AF$54,AB116,FALSE),"")) ->  | AC117: =ABS(IFERROR(VLOOKUP($C$75,$C$45:$AF$56,AC116,FALSE),"")) -> 0 | AD117: =ABS(IFERROR(VLOOKUP($C$71,$C$45:$AF$54,AD116,FALSE),"")) ->  | AE117: =ABS(IFERROR(VLOOKUP($C$71,$C$45:$AF$54,AE116,FALSE),"")) ->  | AF117: =ABS(IFERROR(VLOOKUP($C$75,$C$45:$AF$56,AF116,FALSE),"")) -> 0
E118: =ABS(IFERROR(VLOOKUP($C$75,$C$59:$AF$70,E116,FALSE),"")) -> 8.094704738 | F118: =ABS(IFERROR(VLOOKUP($C$71,$C$57:$AF$67,F116,FALSE),"")) ->  | G118: =ABS(IFERROR(VLOOKUP($C$71,$C$57:$AF$67,G116,FALSE),"")) ->  | H118: =ABS(IFERROR(VLOOKUP($C$75,$C$59:$AF$70,H116,FALSE),"")) -> 8.124077342 | I118: =ABS(IFERROR(VLOOKUP($C$71,$C$57:$AF$67,I116,FALSE),"")) ->  | J118: =ABS(IFERROR(VLOOKUP($C$71,$C$57:$AF$67,J116,FALSE),"")) ->  | K118: =ABS(IFERROR(VLOOKUP($C$75,$C$59:$AF$70,K116,FALSE),"")) -> 8.307015551 | L118: =ABS(IFERROR(VLOOKUP($C$71,$C$57:$AF$67,L116,FALSE),"")) ->  | M118: =ABS(IFERROR(VLOOKUP($C$71,$C$57:$AF$67,M116,FALSE),"")) ->  | N118: =ABS(IFERROR(VLOOKUP($C$75,$C$59:$AF$70,N116,FALSE),"")) -> 0 | O118: =ABS(IFERROR(VLOOKUP($C$71,$C$57:$AF$67,O116,FALSE),"")) ->  | P118: =ABS(IFERROR(VLOOKUP($C$71,$C$57:$AF$67,P116,FALSE),"")) ->  | Q118: =ABS(IFERROR(VLOOKUP($C$75,$C$59:$AF$70,Q116,FALSE),"")) -> 0 | R118: =ABS(IFERROR(VLOOKUP($C$71,$C$57:$AF$67,R116,FALSE),"")) ->  | S118: =ABS(IFERROR(VLOOKUP($C$71,$C$57:$AF$67,S116,FALSE),"")) ->  | T118: =ABS(IFERROR(VLOOKUP($C$75,$C$59:$AF$70,T116,FALSE),"")) -> 0 | U118: =ABS(IFERROR(VLOOKUP($C$71,$C$57:$AF$67,U116,FALSE),"")) ->  | V118: =ABS(IFERROR(VLOOKUP($C$71,$C$57:$AF$67,V116,FALSE),"")) ->  | W118: =ABS(IFERROR(VLOOKUP($C$75,$C$59:$AF$70,W116,FALSE),"")) -> 0 | X118: =ABS(IFERROR(VLOOKUP($C$71,$C$57:$AF$67,X116,FALSE),"")) ->  | Y118: =ABS(IFERROR(VLOOKUP($C$71,$C$57:$AF$67,Y116,FALSE),"")) ->  | Z118: =ABS(IFERROR(VLOOKUP($C$75,$C$59:$AF$70,Z116,FALSE),"")) -> 0 | AA118: =ABS(IFERROR(VLOOKUP($C$71,$C$57:$AF$67,AA116,FALSE),"")) ->  | AB118: =ABS(IFERROR(VLOOKUP($C$71,$C$57:$AF$67,AB116,FALSE),"")) ->  | AC118: =ABS(IFERROR(VLOOKUP($C$75,$C$59:$AF$70,AC116,FALSE),"")) -> 0 | AD118: =ABS(IFERROR(VLOOKUP($C$71,$C$57:$AF$67,AD116,FALSE),"")) ->  | AE118: =ABS(IFERROR(VLOOKUP($C$71,$C$57:$AF$67,AE116,FALSE),"")) ->  | AF118: =ABS(IFERROR(VLOOKUP($C$75,$C$59:$AF$70,AF116,FALSE),"")) -> 0

Sheet Data

Sheet Beregninger (hidden)
K3: Driftsgren | N3: Prodgrennr
D4: Ejendomsbetegnelser | E4: =IFERROR(INDEX(Tabel1[DWID_Sted],MATCH(0,COUNTIF($E$3:E3,Tabel1[DWID_Sted]),0)),"") -> Sted 9 | G4: Mulige driftsgrene ejendom | I4: =IFERROR(INDEX(Tabel1[Prodgrennr],MATCH(0,COUNTIF($I$3:I3,Tabel1[Prodgrennr]),0)),"") -> 7916 | K4: Mælk | L4: 6000 | N4: 6000-6299
E5: =IFERROR(INDEX(Tabel1[DWID_Sted],MATCH(0,COUNTIF($E$3:E4,Tabel1[DWID_Sted]),0)),"") -> Sted 7 | I5: =IFERROR(INDEX(Tabel1[Prodgrennr],MATCH(0,COUNTIF($I$3:I4,Tabel1[Prodgrennr]),0)),"") -> 7915 | K5: Grovfoder | L5: 5950 | N5: 5950 + 400-4199 + 4300-4999
E6: =IFERROR(INDEX(Tabel1[DWID_Sted],MATCH(0,COUNTIF($E$3:E5,Tabel1[DWID_Sted]),0)),"") -> Sted 2 | I6: =IFERROR(INDEX(Tabel1[Prodgrennr],MATCH(0,COUNTIF($I$3:I5,Tabel1[Prodgrennr]),0)),"") -> 7200 | K6: Slagtesvin | L6: 7200 | N6: 7200-7299
E7: =IFERROR(INDEX(Tabel1[DWID_Sted],MATCH(0,COUNTIF($E$3:E6,Tabel1[DWID_Sted]),0)),"") -> Sted 8 | I7: =IFERROR(INDEX(Tabel1[Prodgrennr],MATCH(0,COUNTIF($I$3:I6,Tabel1[Prodgrennr]),0)),"") -> 7100 | K7: Sohold - smågrise | L7: 7910 | N7: 7910 + 7000-7199
E8: =IFERROR(INDEX(Tabel1[DWID_Sted],MATCH(0,COUNTIF($E$3:E7,Tabel1[DWID_Sted]),0)),"") -> Sted 5 | I8: =IFERROR(INDEX(Tabel1[Prodgrennr],MATCH(0,COUNTIF($I$3:I7,Tabel1[Prodgrennr]),0)),"") -> 7010 | K8: Sohold frav. | L8: 7000 | N8: 7000-7099
E9: =IFERROR(INDEX(Tabel1[DWID_Sted],MATCH(0,COUNTIF($E$3:E8,Tabel1[DWID_Sted]),0)),"") -> Sted 6 | I9: =IFERROR(INDEX(Tabel1[Prodgrennr],MATCH(0,COUNTIF($I$3:I8,Tabel1[Prodgrennr]),0)),"") -> 7000 | K9: Salgsafgrøder - korn m.m. | L9: 5910 | N9: 5910 + 5920 + 5930 +1000-3299
E10: =IFERROR(INDEX(Tabel1[DWID_Sted],MATCH(0,COUNTIF($E$3:E9,Tabel1[DWID_Sted]),0)),"") -> Sted 1 | I10: =IFERROR(INDEX(Tabel1[Prodgrennr],MATCH(0,COUNTIF($I$3:I9,Tabel1[Prodgrennr]),0)),"") -> 6300 | K10: Fabriksroer | L10: 3400 | N10: 3400-3999
E11: =IFERROR(INDEX(Tabel1[DWID_Sted],MATCH(0,COUNTIF($E$3:E10,Tabel1[DWID_Sted]),0)),"") -> Sted 4 | I11: =IFERROR(INDEX(Tabel1[Prodgrennr],MATCH(0,COUNTIF($I$3:I10,Tabel1[Prodgrennr]),0)),"") -> 6200 | K11: Kartofler | L11: 3300 | N11: 3300-3399
E12: =IFERROR(INDEX(Tabel1[DWID_Sted],MATCH(0,COUNTIF($E$3:E11,Tabel1[DWID_Sted]),0)),"") -> Sted 3 | I12: =IFERROR(INDEX(Tabel1[Prodgrennr],MATCH(0,COUNTIF($I$3:I11,Tabel1[Prodgrennr]),0)),"") -> 6100
E13: =IFERROR(INDEX(Tabel1[DWID_Sted],MATCH(0,COUNTIF($E$3:E12,Tabel1[DWID_Sted]),0)),"") ->  | I13: =IFERROR(INDEX(Tabel1[Prodgrennr],MATCH(0,COUNTIF($I$3:I12,Tabel1[Prodgrennr]),0)),"") -> 4460
A15: Prodgren Mælk definitioner af kontonr m.m.
C17: Betegnelse til formler | D17: Mælk:
E18: Kolonne | F18: Fra | G18: Til | H18: Fra | I18: Til | J18: Fra | K18: Til | L18: Fra | M18: Til | N18: Fra | O18: Til | P18: Fra | Q18: Til | R18: Fra | S18: Til | T18: Fra | U18: Til | V18: Fra | W18: Til | X18: Fra | Y18: Til
C19: Mælk 1 | D19: Hvilken prodgrenenr er i denne | E19: Prodgrennr | F19: 6000 | G19: 6299
C20: Mælk 2 | D20: Mælk leveret beløb - kvantum | E20: Kontonr | F20: 330000 | G20: 330699 | H20: 330800 | I20: 330999 | J20: 388011 | K20: 388011 | L20: 388480 | M20: 388489 | N20: 330700 | O20: 330799 | P20: 331000 | Q20: 331099
C21: Gen 1 | D21: Foder | E21: Kontonr | F21: 440000 | G21: 440099 | H21: 440100 | I21: 441799 | J21: 441800 | K21: 444999
C22: Mælk 3 | D22: Eget grovfoder | E22: Kontonr | F22: 442000 | G22: 442399
C23: Mælk 4 | D23: Heraf kraffoder | E23: Kontonr | F23: 440100 | G23: 440199
C24: Mælk 5 | D24: Heraf A-blanding | E24: Kontonr | F24: 440120 | G24: 440129 | H24: 440140 | I24: 440149 | J24: 440192 | K24: 440192
C25: Mælk 6 | D25: Heraf C-blanding | E25: Kontonr | F25: 440100 | G25: 440114 | H25: 440190 | I25: 440191
C26: Gen 2 | D26: Dyrlæge om medicin | E26: Kontonr | F26: 448000 | G26: 448599
C27: Gen 3 | D27: Vedligehold bygninger* | E27: Kontonr | F27: 460000 | G27: 461999 | H27: 462500 | I27: 464999 | J27: 489510 | K27: 489519 | L27: 489903 | M27: 489903 | N27: 163700 | O27: 163719
C28: Gen 4 | D28: Vedligehold staldinv.* | E28: Kontonr | F28: 467100 | G28: 467199 | H28: 163720 | I28: 163739
D30: *skal ikke begræses af prodgren da den ikke er delt op på prodgren. Vi antager at alt bygninger og staldinv hører til denne driftsgren
A32: Prodgen Grovfoder definitioner af prodgren m.m.
D33: Grovfoder:
C34: Grov 1 | E34: Prodgrennr | F34: 5950 | G34: 5950 | H34: 4000 | I34: 4199 | J34: 4300 | K34: 4999
C35: Grov 2 | D35: Maskinstation i alt | E35: Kontonr | F35: 407100 | G35: 407199 | H35: 406000 | I35: 407099 | J35: 407200 | K35: 407999 | L35: 163300 | M35: 163399
C36: Grov 3 | D36: Heraf høst grovfoder | E36: Kontonr | F36: 407140 | G36: 407199
C37: Gen 5 | D37: Vedligehold maskiner | E37: Kontonr | F37: 467200 | G37: 467899 | H37: 163740 | I37: 163759
A40: Prodgren Sohold med smågrise definitioner af prodgren m.m.
D42: Smågrise
C43: Små 1 | E43: Prodgren nr | F43: 7910 | G43: 7910 | H43: 7000 | I43: 7199
C44: Små 2 | D44: Solgte smågrise beløb - kvantum | E44: Kontonr | F44: 341700 | G44: 341709 | H44: 341900 | I44: 341999
C45: Gen 1 | D45: Foder | E45: Kontonr | F45: 440000 | G45: 440099 | H45: 440100 | I45: 441799 | J45: 441800 | K45: 444999
C46: Små 3 | D46: Heraf korn | E46: Kontonr | F46: 440000 | G46: 440099 | H46: 441700 | I46: 441799
C47: Små 4 | D47: Heraf tilskudsfoder | E47: Kontonr | F47: 440200 | G47: 440299
C48: Små 5 | D48: Heraf Smågriseblanding | E48: Kontonr | F48: 440300 | G48: 440499
C49: Små 6 | D49: Heraf Færdigblanding søer | E49: Kontonr | F49: 440510 | G49: 440529 | H49: 440591 | I49: 440592
C50: Små 7 | D50: Heraf Færdigblanding smågrise | E50: Kontonr | F50: 440530 | G50: 440549 | H50: 440593 | I50: 440594
C51: Gen 2 | D51: Dyrlæge om medicin | E51: Kontonr | F51: 448000 | G51: 448599
C52: Gen 3 | D52: Vedligehold bygninger* | E52: Kontonr | F52: 460000 | G52: 461999 | H52: 462500 | I52: 464999 | J52: 489510 | K52: 489519 | L52: 489903 | M52: 489903 | N52: 163700 | O52: 163719
C53: Gen 4 | D53: Vedligehold staldinv.* | E53: Kontonr | F53: 467100 | G53: 467199 | H53: 163720 | I53: 163739
A56: Prodgren slagtesvin definitioner af prodgren m.m.
C58: Slsvin 1 | E58: Prodgren nr | F58: 7200 | G58: 7299
C59: Slsvin 2 | D59: Solgte slagtesvin beløb - kvantum | E59: Kontonr | F59: 346100 | G59: 346199 | H59: 346400 | I59: 346499
C60: Gen 1 | D60: Foder | E60: Kontonr | F60: 440000 | G60: 440099 | H60: 440100 | I60: 441799 | J60: 441800 | K60: 444999
C61: Små 3 | D61: Heraf korn | E61: Kontonr | F61: 440000 | G61: 440099 | H61: 441700 | I61: 441799
C62: Små 4 | D62: Heraf tilskudsfoder | E62: Kontonr | F62: 440200 | G62: 440299
C63: Slsvin 3 | D63: Heraf Færdigblanding slagtesvin | E63: Kontonr | F63: 440500 | G63: 440509 | H63: 440550 | I63: 440589 | J63: 440590 | K63: 440590 | L63: 440595 | M63: 440599
C64: Gen 2 | D64: Dyrlæge om medicin | E64: Kontonr | F64: 448000 | G64: 448599
C65: Gen 3 | D65: Vedligehold bygninger* | E65: Kontonr | F65: 460000 | G65: 461999 | H65: 462500 | I65: 464999 | J65: 489510 | K65: 489519 | L65: 489903 | M65: 489903 | N65: 163700 | O65: 163719
C66: Gen 4 | D66: Vedligehold staldinv.* | E66: Kontonr | F66: 467100 | G66: 467199 | H66: 163720 | I66: 163739
A71: Beregninger alle prodgrene
D73: Antal årskøer (indtast) | E73: =IF(Malkekvæg!E13="",IF(Malkekvæg!E22="","",Malkekvæg!E22),Malkekvæg!E13) -> 200 | H73: =IF(Malkekvæg!H13="",IF(Malkekvæg!H22="","",Malkekvæg!H22),Malkekvæg!H13) -> 400 | K73: =IF(Malkekvæg!K13="",IF(Malkekvæg!K22="","",Malkekvæg!K22),Malkekvæg!K13) -> 300 | N73: =IF(Malkekvæg!N13="",IF(Malkekvæg!N22="","",Malkekvæg!N22),Malkekvæg!N13) ->  | Q73: =IF(Malkekvæg!Q13="",IF(Malkekvæg!Q22="","",Malkekvæg!Q22),Malkekvæg!Q13) ->  | T73: =IF(Malkekvæg!T13="",IF(Malkekvæg!T22="","",Malkekvæg!T22),Malkekvæg!T13) ->  | W73: =IF(Malkekvæg!W13="",IF(Malkekvæg!W22="","",Malkekvæg!W22),Malkekvæg!W13) ->  | Z73: =IF(Malkekvæg!Z13="",IF(Malkekvæg!Z22="","",Malkekvæg!Z22),Malkekvæg!Z13) ->  | AC73: =IF(Malkekvæg!AC13="",IF(Malkekvæg!AC22="","",Malkekvæg!AC22),Malkekvæg!AC13) ->  | AF73: =IF(Malkekvæg!AF13="",IF(Malkekvæg!AF22="","",Malkekvæg!AF22),Malkekvæg!AF13) -> 
A74: Parametre til formler: | D74: Vælg ejendom (fra drop down) | E74: =IF(E75="","",IF(Malkekvæg!$E$17="",IF(Malkekvæg!E11="","",Malkekvæg!E11),Malkekvæg!$E$17)) -> Sted 1 | H74: =IF(H75="","",IF(Malkekvæg!$E$17="",IF(Malkekvæg!H11="","",Malkekvæg!H11),Malkekvæg!$E$17)) -> Sted 1 | K74: =IF(K75="","",IF(Malkekvæg!$E$17="",IF(Malkekvæg!K11="","",Malkekvæg!K11),Malkekvæg!$E$17)) -> Sted 1 | N74: =IF(N75="","",IF(Malkekvæg!$E$17="",IF(Malkekvæg!N11="","",Malkekvæg!N11),Malkekvæg!$E$17)) ->  | Q74: =IF(Q75="","",IF(Malkekvæg!$E$17="",IF(Malkekvæg!Q11="","",Malkekvæg!Q11),Malkekvæg!$E$17)) ->  | T74: =IF(T75="","",IF(Malkekvæg!$E$17="",IF(Malkekvæg!T11="","",Malkekvæg!T11),Malkekvæg!$E$17)) ->  | W74: =IF(W75="","",IF(Malkekvæg!$E$17="",IF(Malkekvæg!W11="","",Malkekvæg!W11),Malkekvæg!$E$17)) ->  | Z74: =IF(Z75="","",IF(Malkekvæg!$E$17="",IF(Malkekvæg!Z11="","",Malkekvæg!Z11),Malkekvæg!$E$17)) ->  | AC74: =IF(AC75="","",IF(Malkekvæg!$E$17="",IF(Malkekvæg!AC11="","",Malkekvæg!AC11),Malkekvæg!$E$17)) ->  | AF74: =IF(AF75="","",IF(Malkekvæg!$E$17="",IF(Malkekvæg!AF11="","",Malkekvæg!AF11),Malkekvæg!$E$17)) -> 
A75: Prodgren | B75: Kontonr | C75: Værdi | D75: Vælg periode fra til (ååååmmdd) | E75: =IF(Malkekvæg!$E$8="",IF(Malkekvæg!E19="","",Malkekvæg!E19),Malkekvæg!$E$8) -> 20190101 | H75: =IF(Malkekvæg!$E$8="",IF(Malkekvæg!H19="","",Malkekvæg!H19),Malkekvæg!$E$8) -> 20190201 | K75: =IF(Malkekvæg!$E$8="",IF(Malkekvæg!K19="","",Malkekvæg!K19),Malkekvæg!$E$8) -> 20190301 | N75: =IF(Malkekvæg!$E$8="",IF(Malkekvæg!N19="","",Malkekvæg!N19),Malkekvæg!$E$8) ->  | Q75: =IF(Malkekvæg!$E$8="",IF(Malkekvæg!Q19="","",Malkekvæg!Q19),Malkekvæg!$E$8) ->  | T75: =IF(Malkekvæg!$E$8="",IF(Malkekvæg!T19="","",Malkekvæg!T19),Malkekvæg!$E$8) ->  | W75: =IF(Malkekvæg!$E$8="",IF(Malkekvæg!W19="","",Malkekvæg!W19),Malkekvæg!$E$8) ->  | Z75: =IF(Malkekvæg!$E$8="",IF(Malkekvæg!Z19="","",Malkekvæg!Z19),Malkekvæg!$E$8) ->  | AC75: =IF(Malkekvæg!$E$8="",IF(Malkekvæg!AC19="","",Malkekvæg!AC19),Malkekvæg!$E$8) ->  | AF75: =IF(Malkekvæg!$E$8="",IF(Malkekvæg!AF19="","",Malkekvæg!AF19),Malkekvæg!$E$8) -> 
E76: =IF(Malkekvæg!$E$9="",IF(Malkekvæg!E20="","",Malkekvæg!E20),Malkekvæg!$E$9) -> 20190131 | H76: =IF(Malkekvæg!$E$9="",IF(Malkekvæg!H20="","",Malkekvæg!H20),Malkekvæg!$E$9) -> 20190228 | K76: =IF(Malkekvæg!$E$9="",IF(Malkekvæg!K20="","",Malkekvæg!K20),Malkekvæg!$E$9) -> 20190331 | N76: =IF(Malkekvæg!$E$9="",IF(Malkekvæg!N20="","",Malkekvæg!N20),Malkekvæg!$E$9) ->  | Q76: =IF(Malkekvæg!$E$9="",IF(Malkekvæg!Q20="","",Malkekvæg!Q20),Malkekvæg!$E$9) ->  | T76: =IF(Malkekvæg!$E$9="",IF(Malkekvæg!T20="","",Malkekvæg!T20),Malkekvæg!$E$9) ->  | W76: =IF(Malkekvæg!$E$9="",IF(Malkekvæg!W20="","",Malkekvæg!W20),Malkekvæg!$E$9) ->  | Z76: =IF(Malkekvæg!$E$9="",IF(Malkekvæg!Z20="","",Malkekvæg!Z20),Malkekvæg!$E$9) ->  | AC76: =IF(Malkekvæg!$E$9="",IF(Malkekvæg!AC20="","",Malkekvæg!AC20),Malkekvæg!$E$9) ->  | AF76: =IF(Malkekvæg!$E$9="",IF(Malkekvæg!AF20="","",Malkekvæg!AF20),Malkekvæg!$E$9) -> 
A78: Mælk 1 | B78: Mælk 2 | C78: 1 | D78: Mælk leveret beløb - kvantum | E78: =SUMIFS(Tabel1[Beloeb],INDIRECT("Tabel1["&$A78&"]"),$C78,INDIRECT("Tabel1["&$B78&"]"),$C78,Tabel1[DWID_Sted],Beregninger!E$74,Tabel1[DWID_Dato],">="&Beregninger!E$75,Tabel1[DWID_Dato],"<="&Beregninger!E$76) -> 1300351.73 | F78: =SUMIFS(Tabel1[Kvantum],INDIRECT("Tabel1["&$A78&"]"),$C78,INDIRECT("Tabel1["&$B78&"]"),$C78,Tabel1[DWID_Sted],Beregninger!E$74,Tabel1[DWID_Dato],">="&Beregninger!E$75,Tabel1[DWID_Dato],"<="&Beregninger!E$76) -> 365522 | H78: =SUMIFS(Tabel1[Beloeb],INDIRECT("Tabel1["&$A78&"]"),$C78,INDIRECT("Tabel1["&$B78&"]"),$C78,Tabel1[DWID_Sted],Beregninger!H$74,Tabel1[DWID_Dato],">="&Beregninger!H$75,Tabel1[DWID_Dato],"<="&Beregninger!H$76) -> 1219711.13 | I78: =SUMIFS(Tabel1[Kvantum],INDIRECT("Tabel1["&$A78&"]"),$C78,INDIRECT("Tabel1["&$B78&"]"),$C78,Tabel1[DWID_Sted],Beregninger!H$74,Tabel1[DWID_Dato],">="&Beregninger!H$75,Tabel1[DWID_Dato],"<="&Beregninger!H$76) -> 341224 | K78: =SUMIFS(Tabel1[Beloeb],INDIRECT("Tabel1["&$A78&"]"),$C78,INDIRECT("Tabel1["&$B78&"]"),$C78,Tabel1[DWID_Sted],Beregninger!K$74,Tabel1[DWID_Dato],">="&Beregninger!K$75,Tabel1[DWID_Dato],"<="&Beregninger!K$76) -> 2426907.58 | L78: =SUMIFS(Tabel1[Kvantum],INDIRECT("Tabel1["&$A78&"]"),$C78,INDIRECT("Tabel1["&$B78&"]"),$C78,Tabel1[DWID_Sted],Beregninger!K$74,Tabel1[DWID_Dato],">="&Beregninger!K$75,Tabel1[DWID_Dato],"<="&Beregninger!K$76) -> 368014 | N78: =SUMIFS(Tabel1[Beloeb],INDIRECT("Tabel1["&$A78&"]"),$C78,INDIRECT("Tabel1["&$B78&"]"),$C78,Tabel1[DWID_Sted],Beregninger!N$74,Tabel1[DWID_Dato],">="&Beregninger!N$75,Tabel1[DWID_Dato],"<="&Beregninger!N$76) -> 0 | O78: =SUMIFS(Tabel1[Kvantum],INDIRECT("Tabel1["&$A78&"]"),$C78,INDIRECT("Tabel1["&$B78&"]"),$C78,Tabel1[DWID_Sted],Beregninger!N$74,Tabel1[DWID_Dato],">="&Beregninger!N$75,Tabel1[DWID_Dato],"<="&Beregninger!N$76) -> 0 | Q78: =SUMIFS(Tabel1[Beloeb],INDIRECT("Tabel1["&$A78&"]"),$C78,INDIRECT("Tabel1["&$B78&"]"),$C78,Tabel1[DWID_Sted],Beregninger!Q$74,Tabel1[DWID_Dato],">="&Beregninger!Q$75,Tabel1[DWID_Dato],"<="&Beregninger!Q$76) -> 0 | R78: =SUMIFS(Tabel1[Kvantum],INDIRECT("Tabel1["&$A78&"]"),$C78,INDIRECT("Tabel1["&$B78&"]"),$C78,Tabel1[DWID_Sted],Beregninger!Q$74,Tabel1[DWID_Dato],">="&Beregninger!Q$75,Tabel1[DWID_Dato],"<="&Beregninger!Q$76) -> 0 | T78: =SUMIFS(Tabel1[Beloeb],INDIRECT("Tabel1["&$A78&"]"),$C78,INDIRECT("Tabel1["&$B78&"]"),$C78,Tabel1[DWID_Sted],Beregninger!T$74,Tabel1[DWID_Dato],">="&Beregninger!T$75,Tabel1[DWID_Dato],"<="&Beregninger!T$76) -> 0 | U78: =SUMIFS(Tabel1[Kvantum],INDIRECT("Tabel1["&$A78&"]"),$C78,INDIRECT("Tabel1["&$B78&"]"),$C78,Tabel1[DWID_Sted],Beregninger!T$74,Tabel1[DWID_Dato],">="&Beregninger!T$75,Tabel1[DWID_Dato],"<="&Beregninger!T$76) -> 0 | W78: =SUMIFS(Tabel1[Beloeb],INDIRECT("Tabel1["&$A78&"]"),$C78,INDIRECT("Tabel1["&$B78&"]"),$C78,Tabel1[DWID_Sted],Beregninger!W$74,Tabel1[DWID_Dato],">="&Beregninger!W$75,Tabel1[DWID_Dato],"<="&Beregninger!W$76) -> 0 | X78: =SUMIFS(Tabel1[Kvantum],INDIRECT("Tabel1["&$A78&"]"),$C78,INDIRECT("Tabel1["&$B78&"]"),$C78,Tabel1[DWID_Sted],Beregninger!W$74,Tabel1[DWID_Dato],">="&Beregninger!W$75,Tabel1[DWID_Dato],"<="&Beregninger!W$76) -> 0 | Z78: =SUMIFS(Tabel1[Beloeb],INDIRECT("Tabel1["&$A78&"]"),$C78,INDIRECT("Tabel1["&$B78&"]"),$C78,Tabel1[DWID_Sted],Beregninger!Z$74,Tabel1[DWID_Dato],">="&Beregninger!Z$75,Tabel1[DWID_Dato],"<="&Beregninger!Z$76) -> 0 | AA78: =SUMIFS(Tabel1[Kvantum],INDIRECT("Tabel1["&$A78&"]"),$C78,INDIRECT("Tabel1["&$B78&"]"),$C78,Tabel1[DWID_Sted],Beregninger!Z$74,Tabel1[DWID_Dato],">="&Beregninger!Z$75,Tabel1[DWID_Dato],"<="&Beregninger!Z$76) -> 0 | AC78: =SUMIFS(Tabel1[Beloeb],INDIRECT("Tabel1["&$A78&"]"),$C78,INDIRECT("Tabel1["&$B78&"]"),$C78,Tabel1[DWID_Sted],Beregninger!AC$74,Tabel1[DWID_Dato],">="&Beregninger!AC$75,Tabel1[DWID_Dato],"<="&Beregninger!AC$76) -> 0 | AD78: =SUMIFS(Tabel1[Kvantum],INDIRECT("Tabel1["&$A78&"]"),$C78,INDIRECT("Tabel1["&$B78&"]"),$C78,Tabel1[DWID_Sted],Beregninger!AC$74,Tabel1[DWID_Dato],">="&Beregninger!AC$75,Tabel1[DWID_Dato],"<="&Beregninger!AC$76) -> 0 | AF78: =SUMIFS(Tabel1[Beloeb],INDIRECT("Tabel1["&$A78&"]"),$C78,INDIRECT("Tabel1["&$B78&"]"),$C78,Tabel1[DWID_Sted],Beregninger!AF$74,Tabel1[DWID_Dato],">="&Beregninger!AF$75,Tabel1[DWID_Dato],"<="&Beregninger!AF$76) -> 0 | AG78: =SUMIFS(Tabel1[Kvantum],INDIRECT("Tabel1["&$A78&"]"),$C78,INDIRECT("Tabel1["&$B78&"]"),$C78,Tabel1[DWID_Sted],Beregninger!AF$74,Tabel1[DWID_Dato],">="&Beregninger!AF$75,Tabel1[DWID_Dato],"<="&Beregninger!AF$76) -> 0
A79: Mælk 1 | B79: Gen 1 | C79: 1 | D79: Foder | E79: =SUMIFS(Tabel1[Beloeb],INDIRECT("Tabel1["&$A79&"]"),$C79,INDIRECT("Tabel1["&$B79&"]"),$C79,Tabel1[DWID_Sted],Beregninger!E$74,Tabel1[DWID_Dato],">="&Beregninger!E$75,Tabel1[DWID_Dato],"<="&Beregninger!E$76) -> -409892.01 | F79: =SUMIFS(Tabel1[Kvantum],INDIRECT("Tabel1["&$A79&"]"),$C79,INDIRECT("Tabel1["&$B79&"]"),$C79,Tabel1[DWID_Sted],Beregninger!E$74,Tabel1[DWID_Dato],">="&Beregninger!E$75,Tabel1[DWID_Dato],"<="&Beregninger!E$76) -> -171040 | H79: =SUMIFS(Tabel1[Beloeb],INDIRECT("Tabel1["&$A79&"]"),$C79,INDIRECT("Tabel1["&$B79&"]"),$C79,Tabel1[DWID_Sted],Beregninger!H$74,Tabel1[DWID_Dato],">="&Beregninger!H$75,Tabel1[DWID_Dato],"<="&Beregninger!H$76) -> -309863.67 | I79: =SUMIFS(Tabel1[Kvantum],INDIRECT("Tabel1["&$A79&"]"),$C79,INDIRECT("Tabel1["&$B79&"]"),$C79,Tabel1[DWID_Sted],Beregninger!H$74,Tabel1[DWID_Dato],">="&Beregninger!H$75,Tabel1[DWID_Dato],"<="&Beregninger!H$76) -> -124355 | K79: =SUMIFS(Tabel1[Beloeb],INDIRECT("Tabel1["&$A79&"]"),$C79,INDIRECT("Tabel1["&$B79&"]"),$C79,Tabel1[DWID_Sted],Beregninger!K$74,Tabel1[DWID_Dato],">="&Beregninger!K$75,Tabel1[DWID_Dato],"<="&Beregninger!K$76) -> -288012.77 | L79: =SUMIFS(Tabel1[Kvantum],INDIRECT("Tabel1["&$A79&"]"),$C79,INDIRECT("Tabel1["&$B79&"]"),$C79,Tabel1[DWID_Sted],Beregninger!K$74,Tabel1[DWID_Dato],">="&Beregninger!K$75,Tabel1[DWID_Dato],"<="&Beregninger!K$76) -> -122305 | N79: =SUMIFS(Tabel1[Beloeb],INDIRECT("Tabel1["&$A79&"]"),$C79,INDIRECT("Tabel1["&$B79&"]"),$C79,Tabel1[DWID_Sted],Beregninger!N$74,Tabel1[DWID_Dato],">="&Beregninger!N$75,Tabel1[DWID_Dato],"<="&Beregninger!N$76) -> 0 | O79: =SUMIFS(Tabel1[Kvantum],INDIRECT("Tabel1["&$A79&"]"),$C79,INDIRECT("Tabel1["&$B79&"]"),$C79,Tabel1[DWID_Sted],Beregninger!N$74,Tabel1[DWID_Dato],">="&Beregninger!N$75,Tabel1[DWID_Dato],"<="&Beregninger!N$76) -> 0 | Q79: =SUMIFS(Tabel1[Beloeb],INDIRECT("Tabel1["&$A79&"]"),$C79,INDIRECT("Tabel1["&$B79&"]"),$C79,Tabel1[DWID_Sted],Beregninger!Q$74,Tabel1[DWID_Dato],">="&Beregninger!Q$75,Tabel1[DWID_Dato],"<="&Beregninger!Q$76) -> 0 | R79: =SUMIFS(Tabel1[Kvantum],INDIRECT("Tabel1["&$A79&"]"),$C79,INDIRECT("Tabel1["&$B79&"]"),$C79,Tabel1[DWID_Sted],Beregninger!Q$74,Tabel1[DWID_Dato],">="&Beregninger!Q$75,Tabel1[DWID_Dato],"<="&Beregninger!Q$76) -> 0 | T79: =SUMIFS(Tabel1[Beloeb],INDIRECT("Tabel1["&$A79&"]"),$C79,INDIRECT("Tabel1["&$B79&"]"),$C79,Tabel1[DWID_Sted],Beregninger!T$74,Tabel1[DWID_Dato],">="&Beregninger!T$75,Tabel1[DWID_Dato],"<="&Beregninger!T$76) -> 0 | U79: =SUMIFS(Tabel1[Kvantum],INDIRECT("Tabel1["&$A79&"]"),$C79,INDIRECT("Tabel1["&$B79&"]"),$C79,Tabel1[DWID_Sted],Beregninger!T$74,Tabel1[DWID_Dato],">="&Beregninger!T$75,Tabel1[DWID_Dato],"<="&Beregninger!T$76) -> 0 | W79: =SUMIFS(Tabel1[Beloeb],INDIRECT("Tabel1["&$A79&"]"),$C79,INDIRECT("Tabel1["&$B79&"]"),$C79,Tabel1[DWID_Sted],Beregninger!W$74,Tabel1[DWID_Dato],">="&Beregninger!W$75,Tabel1[DWID_Dato],"<="&Beregninger!W$76) -> 0 | X79: =SUMIFS(Tabel1[Kvantum],INDIRECT("Tabel1["&$A79&"]"),$C79,INDIRECT("Tabel1["&$B79&"]"),$C79,Tabel1[DWID_Sted],Beregninger!W$74,Tabel1[DWID_Dato],">="&Beregninger!W$75,Tabel1[DWID_Dato],"<="&Beregninger!W$76) -> 0 | Z79: =SUMIFS(Tabel1[Beloeb],INDIRECT("Tabel1["&$A79&"]"),$C79,INDIRECT("Tabel1["&$B79&"]"),$C79,Tabel1[DWID_Sted],Beregninger!Z$74,Tabel1[DWID_Dato],">="&Beregninger!Z$75,Tabel1[DWID_Dato],"<="&Beregninger!Z$76) -> 0 | AA79: =SUMIFS(Tabel1[Kvantum],INDIRECT("Tabel1["&$A79&"]"),$C79,INDIRECT("Tabel1["&$B79&"]"),$C79,Tabel1[DWID_Sted],Beregninger!Z$74,Tabel1[DWID_Dato],">="&Beregninger!Z$75,Tabel1[DWID_Dato],"<="&Beregninger!Z$76) -> 0 | AC79: =SUMIFS(Tabel1[Beloeb],INDIRECT("Tabel1["&$A79&"]"),$C79,INDIRECT("Tabel1["&$B79&"]"),$C79,Tabel1[DWID_Sted],Beregninger!AC$74,Tabel1[DWID_Dato],">="&Beregninger!AC$75,Tabel1[DWID_Dato],"<="&Beregninger!AC$76) -> 0 | AD79: =SUMIFS(Tabel1[Kvantum],INDIRECT("Tabel1["&$A79&"]"),$C79,INDIRECT("Tabel1["&$B79&"]"),$C79,Tabel1[DWID_Sted],Beregninger!AC$74,Tabel1[DWID_Dato],">="&Beregninger!AC$75,Tabel1[DWID_Dato],"<="&Beregninger!AC$76) -> 0 | AF79: =SUMIFS(Tabel1[Beloeb],INDIRECT("Tabel1["&$A79&"]"),$C79,INDIRECT("Tabel1["&$B79&"]"),$C79,Tabel1[DWID_Sted],Beregninger!AF$74,Tabel1[DWID_Dato],">="&Beregninger!AF$75,Tabel1[DWID_Dato],"<="&Beregninger!AF$76) -> 0 | AG79: =SUMIFS(Tabel1[Kvantum],INDIRECT("Tabel1["&$A79&"]"),$C79,INDIRECT("Tabel1["&$B79&"]"),$C79,Tabel1[DWID_Sted],Beregninger!AF$74,Tabel1[DWID_Dato],">="&Beregninger!AF$75,Tabel1[DWID_Dato],"<="&Beregninger!AF$76) -> 0
A80: Mælk 1 | B80: Mælk 3 | C80: 1 | D80: Eget grovfoder | E80: =SUMIFS(Tabel1[Beloeb],INDIRECT("Tabel1["&$A80&"]"),$C80,INDIRECT("Tabel1["&$B80&"]"),$C80,Tabel1[DWID_Sted],Beregninger!E$74,Tabel1[DWID_Dato],">="&Beregninger!E$75,Tabel1[DWID_Dato],"<="&Beregninger!E$76) -> 0 | F80: =SUMIFS(Tabel1[Kvantum],INDIRECT("Tabel1["&$A80&"]"),$C80,INDIRECT("Tabel1["&$B80&"]"),$C80,Tabel1[DWID_Sted],Beregninger!E$74,Tabel1[DWID_Dato],">="&Beregninger!E$75,Tabel1[DWID_Dato],"<="&Beregninger!E$76) -> 0 | H80: =SUMIFS(Tabel1[Beloeb],INDIRECT("Tabel1["&$A80&"]"),$C80,INDIRECT("Tabel1["&$B80&"]"),$C80,Tabel1[DWID_Sted],Beregninger!H$74,Tabel1[DWID_Dato],">="&Beregninger!H$75,Tabel1[DWID_Dato],"<="&Beregninger!H$76) -> 0 | I80: =SUMIFS(Tabel1[Kvantum],INDIRECT("Tabel1["&$A80&"]"),$C80,INDIRECT("Tabel1["&$B80&"]"),$C80,Tabel1[DWID_Sted],Beregninger!H$74,Tabel1[DWID_Dato],">="&Beregninger!H$75,Tabel1[DWID_Dato],"<="&Beregninger!H$76) -> 0 | K80: =SUMIFS(Tabel1[Beloeb],INDIRECT("Tabel1["&$A80&"]"),$C80,INDIRECT("Tabel1["&$B80&"]"),$C80,Tabel1[DWID_Sted],Beregninger!K$74,Tabel1[DWID_Dato],">="&Beregninger!K$75,Tabel1[DWID_Dato],"<="&Beregninger!K$76) -> 0 | L80: =SUMIFS(Tabel1[Kvantum],INDIRECT("Tabel1["&$A80&"]"),$C80,INDIRECT("Tabel1["&$B80&"]"),$C80,Tabel1[DWID_Sted],Beregninger!K$74,Tabel1[DWID_Dato],">="&Beregninger!K$75,Tabel1[DWID_Dato],"<="&Beregninger!K$76) -> 0 | N80: =SUMIFS(Tabel1[Beloeb],INDIRECT("Tabel1["&$A80&"]"),$C80,INDIRECT("Tabel1["&$B80&"]"),$C80,Tabel1[DWID_Sted],Beregninger!N$74,Tabel1[DWID_Dato],">="&Beregninger!N$75,Tabel1[DWID_Dato],"<="&Beregninger!N$76) -> 0 | O80: =SUMIFS(Tabel1[Kvantum],INDIRECT("Tabel1["&$A80&"]"),$C80,INDIRECT("Tabel1["&$B80&"]"),$C80,Tabel1[DWID_Sted],Beregninger!N$74,Tabel1[DWID_Dato],">="&Beregninger!N$75,Tabel1[DWID_Dato],"<="&Beregninger!N$76) -> 0 | Q80: =SUMIFS(Tabel1[Beloeb],INDIRECT("Tabel1["&$A80&"]"),$C80,INDIRECT("Tabel1["&$B80&"]"),$C80,Tabel1[DWID_Sted],Beregninger!Q$74,Tabel1[DWID_Dato],">="&Beregninger!Q$75,Tabel1[DWID_Dato],"<="&Beregninger!Q$76) -> 0 | R80: =SUMIFS(Tabel1[Kvantum],INDIRECT("Tabel1["&$A80&"]"),$C80,INDIRECT("Tabel1["&$B80&"]"),$C80,Tabel1[DWID_Sted],Beregninger!Q$74,Tabel1[DWID_Dato],">="&Beregninger!Q$75,Tabel1[DWID_Dato],"<="&Beregninger!Q$76) -> 0 | T80: =SUMIFS(Tabel1[Beloeb],INDIRECT("Tabel1["&$A80&"]"),$C80,INDIRECT("Tabel1["&$B80&"]"),$C80,Tabel1[DWID_Sted],Beregninger!T$74,Tabel1[DWID_Dato],">="&Beregninger!T$75,Tabel1[DWID_Dato],"<="&Beregninger!T$76) -> 0 | U80: =SUMIFS(Tabel1[Kvantum],INDIRECT("Tabel1["&$A80&"]"),$C80,INDIRECT("Tabel1["&$B80&"]"),$C80,Tabel1[DWID_Sted],Beregninger!T$74,Tabel1[DWID_Dato],">="&Beregninger!T$75,Tabel1[DWID_Dato],"<="&Beregninger!T$76) -> 0 | W80: =SUMIFS(Tabel1[Beloeb],INDIRECT("Tabel1["&$A80&"]"),$C80,INDIRECT("Tabel1["&$B80&"]"),$C80,Tabel1[DWID_Sted],Beregninger!W$74,Tabel1[DWID_Dato],">="&Beregninger!W$75,Tabel1[DWID_Dato],"<="&Beregninger!W$76) -> 0 | X80: =SUMIFS(Tabel1[Kvantum],INDIRECT("Tabel1["&$A80&"]"),$C80,INDIRECT("Tabel1["&$B80&"]"),$C80,Tabel1[DWID_Sted],Beregninger!W$74,Tabel1[DWID_Dato],">="&Beregninger!W$75,Tabel1[DWID_Dato],"<="&Beregninger!W$76) -> 0 | Z80: =SUMIFS(Tabel1[Beloeb],INDIRECT("Tabel1["&$A80&"]"),$C80,INDIRECT("Tabel1["&$B80&"]"),$C80,Tabel1[DWID_Sted],Beregninger!Z$74,Tabel1[DWID_Dato],">="&Beregninger!Z$75,Tabel1[DWID_Dato],"<="&Beregninger!Z$76) -> 0 | AA80: =SUMIFS(Tabel1[Kvantum],INDIRECT("Tabel1["&$A80&"]"),$C80,INDIRECT("Tabel1["&$B80&"]"),$C80,Tabel1[DWID_Sted],Beregninger!Z$74,Tabel1[DWID_Dato],">="&Beregninger!Z$75,Tabel1[DWID_Dato],"<="&Beregninger!Z$76) -> 0 | AC80: =SUMIFS(Tabel1[Beloeb],INDIRECT("Tabel1["&$A80&"]"),$C80,INDIRECT("Tabel1["&$B80&"]"),$C80,Tabel1[DWID_Sted],Beregninger!AC$74,Tabel1[DWID_Dato],">="&Beregninger!AC$75,Tabel1[DWID_Dato],"<="&Beregninger!AC$76) -> 0 | AD80: =SUMIFS(Tabel1[Kvantum],INDIRECT("Tabel1["&$A80&"]"),$C80,INDIRECT("Tabel1["&$B80&"]"),$C80,Tabel1[DWID_Sted],Beregninger!AC$74,Tabel1[DWID_Dato],">="&Beregninger!AC$75,Tabel1[DWID_Dato],"<="&Beregninger!AC$76) -> 0 | AF80: =SUMIFS(Tabel1[Beloeb],INDIRECT("Tabel1["&$A80&"]"),$C80,INDIRECT("Tabel1["&$B80&"]"),$C80,Tabel1[DWID_Sted],Beregninger!AF$74,Tabel1[DWID_Dato],">="&Beregninger!AF$75,Tabel1[DWID_Dato],"<="&Beregninger!AF$76) -> 0 | AG80: =SUMIFS(Tabel1[Kvantum],INDIRECT("Tabel1["&$A80&"]"),$C80,INDIRECT("Tabel1["&$B80&"]"),$C80,Tabel1[DWID_Sted],Beregninger!AF$74,Tabel1[DWID_Dato],">="&Beregninger!AF$75,Tabel1[DWID_Dato],"<="&Beregninger!AF$76) -> 0
A81: Mælk 1 | B81: Mælk 4 | C81: 1 | D81: Heraf kraffoder | E81: =SUMIFS(Tabel1[Beloeb],INDIRECT("Tabel1["&$A81&"]"),$C81,INDIRECT("Tabel1["&$B81&"]"),$C81,Tabel1[DWID_Sted],Beregninger!E$74,Tabel1[DWID_Dato],">="&Beregninger!E$75,Tabel1[DWID_Dato],"<="&Beregninger!E$76) -> -391714.51 | F81: =SUMIFS(Tabel1[Kvantum],INDIRECT("Tabel1["&$A81&"]"),$C81,INDIRECT("Tabel1["&$B81&"]"),$C81,Tabel1[DWID_Sted],Beregninger!E$74,Tabel1[DWID_Dato],">="&Beregninger!E$75,Tabel1[DWID_Dato],"<="&Beregninger!E$76) -> -168190 | H81: =SUMIFS(Tabel1[Beloeb],INDIRECT("Tabel1["&$A81&"]"),$C81,INDIRECT("Tabel1["&$B81&"]"),$C81,Tabel1[DWID_Sted],Beregninger!H$74,Tabel1[DWID_Dato],">="&Beregninger!H$75,Tabel1[DWID_Dato],"<="&Beregninger!H$76) -> -283016.42 | I81: =SUMIFS(Tabel1[Kvantum],INDIRECT("Tabel1["&$A81&"]"),$C81,INDIRECT("Tabel1["&$B81&"]"),$C81,Tabel1[DWID_Sted],Beregninger!H$74,Tabel1[DWID_Dato],">="&Beregninger!H$75,Tabel1[DWID_Dato],"<="&Beregninger!H$76) -> -121280 | K81: =SUMIFS(Tabel1[Beloeb],INDIRECT("Tabel1["&$A81&"]"),$C81,INDIRECT("Tabel1["&$B81&"]"),$C81,Tabel1[DWID_Sted],Beregninger!K$74,Tabel1[DWID_Dato],">="&Beregninger!K$75,Tabel1[DWID_Dato],"<="&Beregninger!K$76) -> -281406.52 | L81: =SUMIFS(Tabel1[Kvantum],INDIRECT("Tabel1["&$A81&"]"),$C81,INDIRECT("Tabel1["&$B81&"]"),$C81,Tabel1[DWID_Sted],Beregninger!K$74,Tabel1[DWID_Dato],">="&Beregninger!K$75,Tabel1[DWID_Dato],"<="&Beregninger!K$76) -> -120430 | N81: =SUMIFS(Tabel1[Beloeb],INDIRECT("Tabel1["&$A81&"]"),$C81,INDIRECT("Tabel1["&$B81&"]"),$C81,Tabel1[DWID_Sted],Beregninger!N$74,Tabel1[DWID_Dato],">="&Beregninger!N$75,Tabel1[DWID_Dato],"<="&Beregninger!N$76) -> 0 | O81: =SUMIFS(Tabel1[Kvantum],INDIRECT("Tabel1["&$A81&"]"),$C81,INDIRECT("Tabel1["&$B81&"]"),$C81,Tabel1[DWID_Sted],Beregninger!N$74,Tabel1[DWID_Dato],">="&Beregninger!N$75,Tabel1[DWID_Dato],"<="&Beregninger!N$76) -> 0 | Q81: =SUMIFS(Tabel1[Beloeb],INDIRECT("Tabel1["&$A81&"]"),$C81,INDIRECT("Tabel1["&$B81&"]"),$C81,Tabel1[DWID_Sted],Beregninger!Q$74,Tabel1[DWID_Dato],">="&Beregninger!Q$75,Tabel1[DWID_Dato],"<="&Beregninger!Q$76) -> 0 | R81: =SUMIFS(Tabel1[Kvantum],INDIRECT("Tabel1["&$A81&"]"),$C81,INDIRECT("Tabel1["&$B81&"]"),$C81,Tabel1[DWID_Sted],Beregninger!Q$74,Tabel1[DWID_Dato],">="&Beregninger!Q$75,Tabel1[DWID_Dato],"<="&Beregninger!Q$76) -> 0 | T81: =SUMIFS(Tabel1[Beloeb],INDIRECT("Tabel1["&$A81&"]"),$C81,INDIRECT("Tabel1["&$B81&"]"),$C81,Tabel1[DWID_Sted],Beregninger!T$74,Tabel1[DWID_Dato],">="&Beregninger!T$75,Tabel1[DWID_Dato],"<="&Beregninger!T$76) -> 0 | U81: =SUMIFS(Tabel1[Kvantum],INDIRECT("Tabel1["&$A81&"]"),$C81,INDIRECT("Tabel1["&$B81&"]"),$C81,Tabel1[DWID_Sted],Beregninger!T$74,Tabel1[DWID_Dato],">="&Beregninger!T$75,Tabel1[DWID_Dato],"<="&Beregninger!T$76) -> 0 | W81: =SUMIFS(Tabel1[Beloeb],INDIRECT("Tabel1["&$A81&"]"),$C81,INDIRECT("Tabel1["&$B81&"]"),$C81,Tabel1[DWID_Sted],Beregninger!W$74,Tabel1[DWID_Dato],">="&Beregninger!W$75,Tabel1[DWID_Dato],"<="&Beregninger!W$76) -> 0 | X81: =SUMIFS(Tabel1[Kvantum],INDIRECT("Tabel1["&$A81&"]"),$C81,INDIRECT("Tabel1["&$B81&"]"),$C81,Tabel1[DWID_Sted],Beregninger!W$74,Tabel1[DWID_Dato],">="&Beregninger!W$75,Tabel1[DWID_Dato],"<="&Beregninger!W$76) -> 0 | Z81: =SUMIFS(Tabel1[Beloeb],INDIRECT("Tabel1["&$A81&"]"),$C81,INDIRECT("Tabel1["&$B81&"]"),$C81,Tabel1[DWID_Sted],Beregninger!Z$74,Tabel1[DWID_Dato],">="&Beregninger!Z$75,Tabel1[DWID_Dato],"<="&Beregninger!Z$76) -> 0 | AA81: =SUMIFS(Tabel1[Kvantum],INDIRECT("Tabel1["&$A81&"]"),$C81,INDIRECT("Tabel1["&$B81&"]"),$C81,Tabel1[DWID_Sted],Beregninger!Z$74,Tabel1[DWID_Dato],">="&Beregninger!Z$75,Tabel1[DWID_Dato],"<="&Beregninger!Z$76) -> 0 | AC81: =SUMIFS(Tabel1[Beloeb],INDIRECT("Tabel1["&$A81&"]"),$C81,INDIRECT("Tabel1["&$B81&"]"),$C81,Tabel1[DWID_Sted],Beregninger!AC$74,Tabel1[DWID_Dato],">="&Beregninger!AC$75,Tabel1[DWID_Dato],"<="&Beregninger!AC$76) -> 0 | AD81: =SUMIFS(Tabel1[Kvantum],INDIRECT("Tabel1["&$A81&"]"),$C81,INDIRECT("Tabel1["&$B81&"]"),$C81,Tabel1[DWID_Sted],Beregninger!AC$74,Tabel1[DWID_Dato],">="&Beregninger!AC$75,Tabel1[DWID_Dato],"<="&Beregninger!AC$76) -> 0 | AF81: =SUMIFS(Tabel1[Beloeb],INDIRECT("Tabel1["&$A81&"]"),$C81,INDIRECT("Tabel1["&$B81&"]"),$C81,Tabel1[DWID_Sted],Beregninger!AF$74,Tabel1[DWID_Dato],">="&Beregninger!AF$75,Tabel1[DWID_Dato],"<="&Beregninger!AF$76) -> 0 | AG81: =SUMIFS(Tabel1[Kvantum],INDIRECT("Tabel1["&$A81&"]"),$C81,INDIRECT("Tabel1["&$B81&"]"),$C81,Tabel1[DWID_Sted],Beregninger!AF$74,Tabel1[DWID_Dato],">="&Beregninger!AF$75,Tabel1[DWID_Dato],"<="&Beregninger!AF$76) -> 0
A82: Mælk 1 | B82: Mælk 5 | C82: 1 | D82: Heraf A-blanding | E82: =SUMIFS(Tabel1[Beloeb],INDIRECT("Tabel1["&$A82&"]"),$C82,INDIRECT("Tabel1["&$B82&"]"),$C82,Tabel1[DWID_Sted],Beregninger!E$74,Tabel1[DWID_Dato],">="&Beregninger!E$75,Tabel1[DWID_Dato],"<="&Beregninger!E$76) -> -391714.51 | F82: =SUMIFS(Tabel1[Kvantum],INDIRECT("Tabel1["&$A82&"]"),$C82,INDIRECT("Tabel1["&$B82&"]"),$C82,Tabel1[DWID_Sted],Beregninger!E$74,Tabel1[DWID_Dato],">="&Beregninger!E$75,Tabel1[DWID_Dato],"<="&Beregninger!E$76) -> -168190 | H82: =SUMIFS(Tabel1[Beloeb],INDIRECT("Tabel1["&$A82&"]"),$C82,INDIRECT("Tabel1["&$B82&"]"),$C82,Tabel1[DWID_Sted],Beregninger!H$74,Tabel1[DWID_Dato],">="&Beregninger!H$75,Tabel1[DWID_Dato],"<="&Beregninger!H$76) -> -283016.42 | I82: =SUMIFS(Tabel1[Kvantum],INDIRECT("Tabel1["&$A82&"]"),$C82,INDIRECT("Tabel1["&$B82&"]"),$C82,Tabel1[DWID_Sted],Beregninger!H$74,Tabel1[DWID_Dato],">="&Beregninger!H$75,Tabel1[DWID_Dato],"<="&Beregninger!H$76) -> -121280 | K82: =SUMIFS(Tabel1[Beloeb],INDIRECT("Tabel1["&$A82&"]"),$C82,INDIRECT("Tabel1["&$B82&"]"),$C82,Tabel1[DWID_Sted],Beregninger!K$74,Tabel1[DWID_Dato],">="&Beregninger!K$75,Tabel1[DWID_Dato],"<="&Beregninger!K$76) -> -281406.52 | L82: =SUMIFS(Tabel1[Kvantum],INDIRECT("Tabel1["&$A82&"]"),$C82,INDIRECT("Tabel1["&$B82&"]"),$C82,Tabel1[DWID_Sted],Beregninger!K$74,Tabel1[DWID_Dato],">="&Beregninger!K$75,Tabel1[DWID_Dato],"<="&Beregninger!K$76) -> -120430 | N82: =SUMIFS(Tabel1[Beloeb],INDIRECT("Tabel1["&$A82&"]"),$C82,INDIRECT("Tabel1["&$B82&"]"),$C82,Tabel1[DWID_Sted],Beregninger!N$74,Tabel1[DWID_Dato],">="&Beregninger!N$75,Tabel1[DWID_Dato],"<="&Beregninger!N$76) -> 0 | O82: =SUMIFS(Tabel1[Kvantum],INDIRECT("Tabel1["&$A82&"]"),$C82,INDIRECT("Tabel1["&$B82&"]"),$C82,Tabel1[DWID_Sted],Beregninger!N$74,Tabel1[DWID_Dato],">="&Beregninger!N$75,Tabel1[DWID_Dato],"<="&Beregninger!N$76) -> 0 | Q82: =SUMIFS(Tabel1[Beloeb],INDIRECT("Tabel1["&$A82&"]"),$C82,INDIRECT("Tabel1["&$B82&"]"),$C82,Tabel1[DWID_Sted],Beregninger!Q$74,Tabel1[DWID_Dato],">="&Beregninger!Q$75,Tabel1[DWID_Dato],"<="&Beregninger!Q$76) -> 0 | R82: =SUMIFS(Tabel1[Kvantum],INDIRECT("Tabel1["&$A82&"]"),$C82,INDIRECT("Tabel1["&$B82&"]"),$C82,Tabel1[DWID_Sted],Beregninger!Q$74,Tabel1[DWID_Dato],">="&Beregninger!Q$75,Tabel1[DWID_Dato],"<="&Beregninger!Q$76) -> 0 | T82: =SUMIFS(Tabel1[Beloeb],INDIRECT("Tabel1["&$A82&"]"),$C82,INDIRECT("Tabel1["&$B82&"]"),$C82,Tabel1[DWID_Sted],Beregninger!T$74,Tabel1[DWID_Dato],">="&Beregninger!T$75,Tabel1[DWID_Dato],"<="&Beregninger!T$76) -> 0 | U82: =SUMIFS(Tabel1[Kvantum],INDIRECT("Tabel1["&$A82&"]"),$C82,INDIRECT("Tabel1["&$B82&"]"),$C82,Tabel1[DWID_Sted],Beregninger!T$74,Tabel1[DWID_Dato],">="&Beregninger!T$75,Tabel1[DWID_Dato],"<="&Beregninger!T$76) -> 0 | W82: =SUMIFS(Tabel1[Beloeb],INDIRECT("Tabel1["&$A82&"]"),$C82,INDIRECT("Tabel1["&$B82&"]"),$C82,Tabel1[DWID_Sted],Beregninger!W$74,Tabel1[DWID_Dato],">="&Beregninger!W$75,Tabel1[DWID_Dato],"<="&Beregninger!W$76) -> 0 | X82: =SUMIFS(Tabel1[Kvantum],INDIRECT("Tabel1["&$A82&"]"),$C82,INDIRECT("Tabel1["&$B82&"]"),$C82,Tabel1[DWID_Sted],Beregninger!W$74,Tabel1[DWID_Dato],">="&Beregninger!W$75,Tabel1[DWID_Dato],"<="&Beregninger!W$76) -> 0 | Z82: =SUMIFS(Tabel1[Beloeb],INDIRECT("Tabel1["&$A82&"]"),$C82,INDIRECT("Tabel1["&$B82&"]"),$C82,Tabel1[DWID_Sted],Beregninger!Z$74,Tabel1[DWID_Dato],">="&Beregninger!Z$75,Tabel1[DWID_Dato],"<="&Beregninger!Z$76) -> 0 | AA82: =SUMIFS(Tabel1[Kvantum],INDIRECT("Tabel1["&$A82&"]"),$C82,INDIRECT("Tabel1["&$B82&"]"),$C82,Tabel1[DWID_Sted],Beregninger!Z$74,Tabel1[DWID_Dato],">="&Beregninger!Z$75,Tabel1[DWID_Dato],"<="&Beregninger!Z$76) -> 0 | AC82: =SUMIFS(Tabel1[Beloeb],INDIRECT("Tabel1["&$A82&"]"),$C82,INDIRECT("Tabel1["&$B82&"]"),$C82,Tabel1[DWID_Sted],Beregninger!AC$74,Tabel1[DWID_Dato],">="&Beregninger!AC$75,Tabel1[DWID_Dato],"<="&Beregninger!AC$76) -> 0 | AD82: =SUMIFS(Tabel1[Kvantum],INDIRECT("Tabel1["&$A82&"]"),$C82,INDIRECT("Tabel1["&$B82&"]"),$C82,Tabel1[DWID_Sted],Beregninger!AC$74,Tabel1[DWID_Dato],">="&Beregninger!AC$75,Tabel1[DWID_Dato],"<="&Beregninger!AC$76) -> 0 | AF82: =SUMIFS(Tabel1[Beloeb],INDIRECT("Tabel1["&$A82&"]"),$C82,INDIRECT("Tabel1["&$B82&"]"),$C82,Tabel1[DWID_Sted],Beregninger!AF$74,Tabel1[DWID_Dato],">="&Beregninger!AF$75,Tabel1[DWID_Dato],"<="&Beregninger!AF$76) -> 0 | AG82: =SUMIFS(Tabel1[Kvantum],INDIRECT("Tabel1["&$A82&"]"),$C82,INDIRECT("Tabel1["&$B82&"]"),$C82,Tabel1[DWID_Sted],Beregninger!AF$74,Tabel1[DWID_Dato],">="&Beregninger!AF$75,Tabel1[DWID_Dato],"<="&Beregninger!AF$76) -> 0
A83: Mælk 1 | B83: Mælk 6 | C83: 1 | D83: Heraf C-blanding | E83: =SUMIFS(Tabel1[Beloeb],INDIRECT("Tabel1["&$A83&"]"),$C83,INDIRECT("Tabel1["&$B83&"]"),$C83,Tabel1[DWID_Sted],Beregninger!E$74,Tabel1[DWID_Dato],">="&Beregninger!E$75,Tabel1[DWID_Dato],"<="&Beregninger!E$76) -> 0 | F83: =SUMIFS(Tabel1[Kvantum],INDIRECT("Tabel1["&$A83&"]"),$C83,INDIRECT("Tabel1["&$B83&"]"),$C83,Tabel1[DWID_Sted],Beregninger!E$74,Tabel1[DWID_Dato],">="&Beregninger!E$75,Tabel1[DWID_Dato],"<="&Beregninger!E$76) -> 0 | H83: =SUMIFS(Tabel1[Beloeb],INDIRECT("Tabel1["&$A83&"]"),$C83,INDIRECT("Tabel1["&$B83&"]"),$C83,Tabel1[DWID_Sted],Beregninger!H$74,Tabel1[DWID_Dato],">="&Beregninger!H$75,Tabel1[DWID_Dato],"<="&Beregninger!H$76) -> 0 | I83: =SUMIFS(Tabel1[Kvantum],INDIRECT("Tabel1["&$A83&"]"),$C83,INDIRECT("Tabel1["&$B83&"]"),$C83,Tabel1[DWID_Sted],Beregninger!H$74,Tabel1[DWID_Dato],">="&Beregninger!H$75,Tabel1[DWID_Dato],"<="&Beregninger!H$76) -> 0 | K83: =SUMIFS(Tabel1[Beloeb],INDIRECT("Tabel1["&$A83&"]"),$C83,INDIRECT("Tabel1["&$B83&"]"),$C83,Tabel1[DWID_Sted],Beregninger!K$74,Tabel1[DWID_Dato],">="&Beregninger!K$75,Tabel1[DWID_Dato],"<="&Beregninger!K$76) -> 0 | L83: =SUMIFS(Tabel1[Kvantum],INDIRECT("Tabel1["&$A83&"]"),$C83,INDIRECT("Tabel1["&$B83&"]"),$C83,Tabel1[DWID_Sted],Beregninger!K$74,Tabel1[DWID_Dato],">="&Beregninger!K$75,Tabel1[DWID_Dato],"<="&Beregninger!K$76) -> 0 | N83: =SUMIFS(Tabel1[Beloeb],INDIRECT("Tabel1["&$A83&"]"),$C83,INDIRECT("Tabel1["&$B83&"]"),$C83,Tabel1[DWID_Sted],Beregninger!N$74,Tabel1[DWID_Dato],">="&Beregninger!N$75,Tabel1[DWID_Dato],"<="&Beregninger!N$76) -> 0 | O83: =SUMIFS(Tabel1[Kvantum],INDIRECT("Tabel1["&$A83&"]"),$C83,INDIRECT("Tabel1["&$B83&"]"),$C83,Tabel1[DWID_Sted],Beregninger!N$74,Tabel1[DWID_Dato],">="&Beregninger!N$75,Tabel1[DWID_Dato],"<="&Beregninger!N$76) -> 0 | Q83: =SUMIFS(Tabel1[Beloeb],INDIRECT("Tabel1["&$A83&"]"),$C83,INDIRECT("Tabel1["&$B83&"]"),$C83,Tabel1[DWID_Sted],Beregninger!Q$74,Tabel1[DWID_Dato],">="&Beregninger!Q$75,Tabel1[DWID_Dato],"<="&Beregninger!Q$76) -> 0 | R83: =SUMIFS(Tabel1[Kvantum],INDIRECT("Tabel1["&$A83&"]"),$C83,INDIRECT("Tabel1["&$B83&"]"),$C83,Tabel1[DWID_Sted],Beregninger!Q$74,Tabel1[DWID_Dato],">="&Beregninger!Q$75,Tabel1[DWID_Dato],"<="&Beregninger!Q$76) -> 0 | T83: =SUMIFS(Tabel1[Beloeb],INDIRECT("Tabel1["&$A83&"]"),$C83,INDIRECT("Tabel1["&$B83&"]"),$C83,Tabel1[DWID_Sted],Beregninger!T$74,Tabel1[DWID_Dato],">="&Beregninger!T$75,Tabel1[DWID_Dato],"<="&Beregninger!T$76) -> 0 | U83: =SUMIFS(Tabel1[Kvantum],INDIRECT("Tabel1["&$A83&"]"),$C83,INDIRECT("Tabel1["&$B83&"]"),$C83,Tabel1[DWID_Sted],Beregninger!T$74,Tabel1[DWID_Dato],">="&Beregninger!T$75,Tabel1[DWID_Dato],"<="&Beregninger!T$76) -> 0 | W83: =SUMIFS(Tabel1[Beloeb],INDIRECT("Tabel1["&$A83&"]"),$C83,INDIRECT("Tabel1["&$B83&"]"),$C83,Tabel1[DWID_Sted],Beregninger!W$74,Tabel1[DWID_Dato],">="&Beregninger!W$75,Tabel1[DWID_Dato],"<="&Beregninger!W$76) -> 0 | X83: =SUMIFS(Tabel1[Kvantum],INDIRECT("Tabel1["&$A83&"]"),$C83,INDIRECT("Tabel1["&$B83&"]"),$C83,Tabel1[DWID_Sted],Beregninger!W$74,Tabel1[DWID_Dato],">="&Beregninger!W$75,Tabel1[DWID_Dato],"<="&Beregninger!W$76) -> 0 | Z83: =SUMIFS(Tabel1[Beloeb],INDIRECT("Tabel1["&$A83&"]"),$C83,INDIRECT("Tabel1["&$B83&"]"),$C83,Tabel1[DWID_Sted],Beregninger!Z$74,Tabel1[DWID_Dato],">="&Beregninger!Z$75,Tabel1[DWID_Dato],"<="&Beregninger!Z$76) -> 0 | AA83: =SUMIFS(Tabel1[Kvantum],INDIRECT("Tabel1["&$A83&"]"),$C83,INDIRECT("Tabel1["&$B83&"]"),$C83,Tabel1[DWID_Sted],Beregninger!Z$74,Tabel1[DWID_Dato],">="&Beregninger!Z$75,Tabel1[DWID_Dato],"<="&Beregninger!Z$76) -> 0 | AC83: =SUMIFS(Tabel1[Beloeb],INDIRECT("Tabel1["&$A83&"]"),$C83,INDIRECT("Tabel1["&$B83&"]"),$C83,Tabel1[DWID_Sted],Beregninger!AC$74,Tabel1[DWID_Dato],">="&Beregninger!AC$75,Tabel1[DWID_Dato],"<="&Beregninger!AC$76) -> 0 | AD83: =SUMIFS(Tabel1[Kvantum],INDIRECT("Tabel1["&$A83&"]"),$C83,INDIRECT("Tabel1["&$B83&"]"),$C83,Tabel1[DWID_Sted],Beregninger!AC$74,Tabel1[DWID_Dato],">="&Beregninger!AC$75,Tabel1[DWID_Dato],"<="&Beregninger!AC$76) -> 0 | AF83: =SUMIFS(Tabel1[Beloeb],INDIRECT("Tabel1["&$A83&"]"),$C83,INDIRECT("Tabel1["&$B83&"]"),$C83,Tabel1[DWID_Sted],Beregninger!AF$74,Tabel1[DWID_Dato],">="&Beregninger!AF$75,Tabel1[DWID_Dato],"<="&Beregninger!AF$76) -> 0 | AG83: =SUMIFS(Tabel1[Kvantum],INDIRECT("Tabel1["&$A83&"]"),$C83,INDIRECT("Tabel1["&$B83&"]"),$C83,Tabel1[DWID_Sted],Beregninger!AF$74,Tabel1[DWID_Dato],">="&Beregninger!AF$75,Tabel1[DWID_Dato],"<="&Beregninger!AF$76) -> 0
A84: Mælk 1 | B84: Gen 2 | C84: 1 | D84: Dyrlæge om medicin | E84: =SUMIFS(Tabel1[Beloeb],INDIRECT("Tabel1["&$A84&"]"),$C84,INDIRECT("Tabel1["&$B84&"]"),$C84,Tabel1[DWID_Sted],Beregninger!E$74,Tabel1[DWID_Dato],">="&Beregninger!E$75,Tabel1[DWID_Dato],"<="&Beregninger!E$76) -> -30887.85 | F84: =SUMIFS(Tabel1[Kvantum],INDIRECT("Tabel1["&$A84&"]"),$C84,INDIRECT("Tabel1["&$B84&"]"),$C84,Tabel1[DWID_Sted],Beregninger!E$74,Tabel1[DWID_Dato],">="&Beregninger!E$75,Tabel1[DWID_Dato],"<="&Beregninger!E$76) -> 0 | H84: =SUMIFS(Tabel1[Beloeb],INDIRECT("Tabel1["&$A84&"]"),$C84,INDIRECT("Tabel1["&$B84&"]"),$C84,Tabel1[DWID_Sted],Beregninger!H$74,Tabel1[DWID_Dato],">="&Beregninger!H$75,Tabel1[DWID_Dato],"<="&Beregninger!H$76) -> -30159.97 | I84: =SUMIFS(Tabel1[Kvantum],INDIRECT("Tabel1["&$A84&"]"),$C84,INDIRECT("Tabel1["&$B84&"]"),$C84,Tabel1[DWID_Sted],Beregninger!H$74,Tabel1[DWID_Dato],">="&Beregninger!H$75,Tabel1[DWID_Dato],"<="&Beregninger!H$76) -> 0 | K84: =SUMIFS(Tabel1[Beloeb],INDIRECT("Tabel1["&$A84&"]"),$C84,INDIRECT("Tabel1["&$B84&"]"),$C84,Tabel1[DWID_Sted],Beregninger!K$74,Tabel1[DWID_Dato],">="&Beregninger!K$75,Tabel1[DWID_Dato],"<="&Beregninger!K$76) -> -31801.78 | L84: =SUMIFS(Tabel1[Kvantum],INDIRECT("Tabel1["&$A84&"]"),$C84,INDIRECT("Tabel1["&$B84&"]"),$C84,Tabel1[DWID_Sted],Beregninger!K$74,Tabel1[DWID_Dato],">="&Beregninger!K$75,Tabel1[DWID_Dato],"<="&Beregninger!K$76) -> 0 | N84: =SUMIFS(Tabel1[Beloeb],INDIRECT("Tabel1["&$A84&"]"),$C84,INDIRECT("Tabel1["&$B84&"]"),$C84,Tabel1[DWID_Sted],Beregninger!N$74,Tabel1[DWID_Dato],">="&Beregninger!N$75,Tabel1[DWID_Dato],"<="&Beregninger!N$76) -> 0 | O84: =SUMIFS(Tabel1[Kvantum],INDIRECT("Tabel1["&$A84&"]"),$C84,INDIRECT("Tabel1["&$B84&"]"),$C84,Tabel1[DWID_Sted],Beregninger!N$74,Tabel1[DWID_Dato],">="&Beregninger!N$75,Tabel1[DWID_Dato],"<="&Beregninger!N$76) -> 0 | Q84: =SUMIFS(Tabel1[Beloeb],INDIRECT("Tabel1["&$A84&"]"),$C84,INDIRECT("Tabel1["&$B84&"]"),$C84,Tabel1[DWID_Sted],Beregninger!Q$74,Tabel1[DWID_Dato],">="&Beregninger!Q$75,Tabel1[DWID_Dato],"<="&Beregninger!Q$76) -> 0 | R84: =SUMIFS(Tabel1[Kvantum],INDIRECT("Tabel1["&$A84&"]"),$C84,INDIRECT("Tabel1["&$B84&"]"),$C84,Tabel1[DWID_Sted],Beregninger!Q$74,Tabel1[DWID_Dato],">="&Beregninger!Q$75,Tabel1[DWID_Dato],"<="&Beregninger!Q$76) -> 0 | T84: =SUMIFS(Tabel1[Beloeb],INDIRECT("Tabel1["&$A84&"]"),$C84,INDIRECT("Tabel1["&$B84&"]"),$C84,Tabel1[DWID_Sted],Beregninger!T$74,Tabel1[DWID_Dato],">="&Beregninger!T$75,Tabel1[DWID_Dato],"<="&Beregninger!T$76) -> 0 | U84: =SUMIFS(Tabel1[Kvantum],INDIRECT("Tabel1["&$A84&"]"),$C84,INDIRECT("Tabel1["&$B84&"]"),$C84,Tabel1[DWID_Sted],Beregninger!T$74,Tabel1[DWID_Dato],">="&Beregninger!T$75,Tabel1[DWID_Dato],"<="&Beregninger!T$76) -> 0 | W84: =SUMIFS(Tabel1[Beloeb],INDIRECT("Tabel1["&$A84&"]"),$C84,INDIRECT("Tabel1["&$B84&"]"),$C84,Tabel1[DWID_Sted],Beregninger!W$74,Tabel1[DWID_Dato],">="&Beregninger!W$75,Tabel1[DWID_Dato],"<="&Beregninger!W$76) -> 0 | X84: =SUMIFS(Tabel1[Kvantum],INDIRECT("Tabel1["&$A84&"]"),$C84,INDIRECT("Tabel1["&$B84&"]"),$C84,Tabel1[DWID_Sted],Beregninger!W$74,Tabel1[DWID_Dato],">="&Beregninger!W$75,Tabel1[DWID_Dato],"<="&Beregninger!W$76) -> 0 | Z84: =SUMIFS(Tabel1[Beloeb],INDIRECT("Tabel1["&$A84&"]"),$C84,INDIRECT("Tabel1["&$B84&"]"),$C84,Tabel1[DWID_Sted],Beregninger!Z$74,Tabel1[DWID_Dato],">="&Beregninger!Z$75,Tabel1[DWID_Dato],"<="&Beregninger!Z$76) -> 0 | AA84: =SUMIFS(Tabel1[Kvantum],INDIRECT("Tabel1["&$A84&"]"),$C84,INDIRECT("Tabel1["&$B84&"]"),$C84,Tabel1[DWID_Sted],Beregninger!Z$74,Tabel1[DWID_Dato],">="&Beregninger!Z$75,Tabel1[DWID_Dato],"<="&Beregninger!Z$76) -> 0 | AC84: =SUMIFS(Tabel1[Beloeb],INDIRECT("Tabel1["&$A84&"]"),$C84,INDIRECT("Tabel1["&$B84&"]"),$C84,Tabel1[DWID_Sted],Beregninger!AC$74,Tabel1[DWID_Dato],">="&Beregninger!AC$75,Tabel1[DWID_Dato],"<="&Beregninger!AC$76) -> 0 | AD84: =SUMIFS(Tabel1[Kvantum],INDIRECT("Tabel1["&$A84&"]"),$C84,INDIRECT("Tabel1["&$B84&"]"),$C84,Tabel1[DWID_Sted],Beregninger!AC$74,Tabel1[DWID_Dato],">="&Beregninger!AC$75,Tabel1[DWID_Dato],"<="&Beregninger!AC$76) -> 0 | AF84: =SUMIFS(Tabel1[Beloeb],INDIRECT("Tabel1["&$A84&"]"),$C84,INDIRECT("Tabel1["&$B84&"]"),$C84,Tabel1[DWID_Sted],Beregninger!AF$74,Tabel1[DWID_Dato],">="&Beregninger!AF$75,Tabel1[DWID_Dato],"<="&Beregninger!AF$76) -> 0 | AG84: =SUMIFS(Tabel1[Kvantum],INDIRECT("Tabel1["&$A84&"]"),$C84,INDIRECT("Tabel1["&$B84&"]"),$C84,Tabel1[DWID_Sted],Beregninger!AF$74,Tabel1[DWID_Dato],">="&Beregninger!AF$75,Tabel1[DWID_Dato],"<="&Beregninger!AF$76) -> 0
A85: Gen 3 | B85: Gen 3 | C85: 1 | D85: Vedligehold bygninger* | E85: =SUMIFS(Tabel1[Beloeb],INDIRECT("Tabel1["&$A85&"]"),$C85,INDIRECT("Tabel1["&$B85&"]"),$C85,Tabel1[DWID_Sted],Beregninger!E$74,Tabel1[DWID_Dato],">="&Beregninger!E$75,Tabel1[DWID_Dato],"<="&Beregninger!E$76) -> 0 | F85: =SUMIFS(Tabel1[Kvantum],INDIRECT("Tabel1["&$A85&"]"),$C85,INDIRECT("Tabel1["&$B85&"]"),$C85,Tabel1[DWID_Sted],Beregninger!E$74,Tabel1[DWID_Dato],">="&Beregninger!E$75,Tabel1[DWID_Dato],"<="&Beregninger!E$76) -> 0 | H85: =SUMIFS(Tabel1[Beloeb],INDIRECT("Tabel1["&$A85&"]"),$C85,INDIRECT("Tabel1["&$B85&"]"),$C85,Tabel1[DWID_Sted],Beregninger!H$74,Tabel1[DWID_Dato],">="&Beregninger!H$75,Tabel1[DWID_Dato],"<="&Beregninger!H$76) -> 0 | I85: =SUMIFS(Tabel1[Kvantum],INDIRECT("Tabel1["&$A85&"]"),$C85,INDIRECT("Tabel1["&$B85&"]"),$C85,Tabel1[DWID_Sted],Beregninger!H$74,Tabel1[DWID_Dato],">="&Beregninger!H$75,Tabel1[DWID_Dato],"<="&Beregninger!H$76) -> 0 | K85: =SUMIFS(Tabel1[Beloeb],INDIRECT("Tabel1["&$A85&"]"),$C85,INDIRECT("Tabel1["&$B85&"]"),$C85,Tabel1[DWID_Sted],Beregninger!K$74,Tabel1[DWID_Dato],">="&Beregninger!K$75,Tabel1[DWID_Dato],"<="&Beregninger!K$76) -> 0 | L85: =SUMIFS(Tabel1[Kvantum],INDIRECT("Tabel1["&$A85&"]"),$C85,INDIRECT("Tabel1["&$B85&"]"),$C85,Tabel1[DWID_Sted],Beregninger!K$74,Tabel1[DWID_Dato],">="&Beregninger!K$75,Tabel1[DWID_Dato],"<="&Beregninger!K$76) -> 0 | N85: =SUMIFS(Tabel1[Beloeb],INDIRECT("Tabel1["&$A85&"]"),$C85,INDIRECT("Tabel1["&$B85&"]"),$C85,Tabel1[DWID_Sted],Beregninger!N$74,Tabel1[DWID_Dato],">="&Beregninger!N$75,Tabel1[DWID_Dato],"<="&Beregninger!N$76) -> 0 | O85: =SUMIFS(Tabel1[Kvantum],INDIRECT("Tabel1["&$A85&"]"),$C85,INDIRECT("Tabel1["&$B85&"]"),$C85,Tabel1[DWID_Sted],Beregninger!N$74,Tabel1[DWID_Dato],">="&Beregninger!N$75,Tabel1[DWID_Dato],"<="&Beregninger!N$76) -> 0 | Q85: =SUMIFS(Tabel1[Beloeb],INDIRECT("Tabel1["&$A85&"]"),$C85,INDIRECT("Tabel1["&$B85&"]"),$C85,Tabel1[DWID_Sted],Beregninger!Q$74,Tabel1[DWID_Dato],">="&Beregninger!Q$75,Tabel1[DWID_Dato],"<="&Beregninger!Q$76) -> 0 | R85: =SUMIFS(Tabel1[Kvantum],INDIRECT("Tabel1["&$A85&"]"),$C85,INDIRECT("Tabel1["&$B85&"]"),$C85,Tabel1[DWID_Sted],Beregninger!Q$74,Tabel1[DWID_Dato],">="&Beregninger!Q$75,Tabel1[DWID_Dato],"<="&Beregninger!Q$76) -> 0 | T85: =SUMIFS(Tabel1[Beloeb],INDIRECT("Tabel1["&$A85&"]"),$C85,INDIRECT("Tabel1["&$B85&"]"),$C85,Tabel1[DWID_Sted],Beregninger!T$74,Tabel1[DWID_Dato],">="&Beregninger!T$75,Tabel1[DWID_Dato],"<="&Beregninger!T$76) -> 0 | U85: =SUMIFS(Tabel1[Kvantum],INDIRECT("Tabel1["&$A85&"]"),$C85,INDIRECT("Tabel1["&$B85&"]"),$C85,Tabel1[DWID_Sted],Beregninger!T$74,Tabel1[DWID_Dato],">="&Beregninger!T$75,Tabel1[DWID_Dato],"<="&Beregninger!T$76) -> 0 | W85: =SUMIFS(Tabel1[Beloeb],INDIRECT("Tabel1["&$A85&"]"),$C85,INDIRECT("Tabel1["&$B85&"]"),$C85,Tabel1[DWID_Sted],Beregninger!W$74,Tabel1[DWID_Dato],">="&Beregninger!W$75,Tabel1[DWID_Dato],"<="&Beregninger!W$76) -> 0 | X85: =SUMIFS(Tabel1[Kvantum],INDIRECT("Tabel1["&$A85&"]"),$C85,INDIRECT("Tabel1["&$B85&"]"),$C85,Tabel1[DWID_Sted],Beregninger!W$74,Tabel1[DWID_Dato],">="&Beregninger!W$75,Tabel1[DWID_Dato],"<="&Beregninger!W$76) -> 0 | Z85: =SUMIFS(Tabel1[Beloeb],INDIRECT("Tabel1["&$A85&"]"),$C85,INDIRECT("Tabel1["&$B85&"]"),$C85,Tabel1[DWID_Sted],Beregninger!Z$74,Tabel1[DWID_Dato],">="&Beregninger!Z$75,Tabel1[DWID_Dato],"<="&Beregninger!Z$76) -> 0 | AA85: =SUMIFS(Tabel1[Kvantum],INDIRECT("Tabel1["&$A85&"]"),$C85,INDIRECT("Tabel1["&$B85&"]"),$C85,Tabel1[DWID_Sted],Beregninger!Z$74,Tabel1[DWID_Dato],">="&Beregninger!Z$75,Tabel1[DWID_Dato],"<="&Beregninger!Z$76) -> 0 | AC85: =SUMIFS(Tabel1[Beloeb],INDIRECT("Tabel1["&$A85&"]"),$C85,INDIRECT("Tabel1["&$B85&"]"),$C85,Tabel1[DWID_Sted],Beregninger!AC$74,Tabel1[DWID_Dato],">="&Beregninger!AC$75,Tabel1[DWID_Dato],"<="&Beregninger!AC$76) -> 0 | AD85: =SUMIFS(Tabel1[Kvantum],INDIRECT("Tabel1["&$A85&"]"),$C85,INDIRECT("Tabel1["&$B85&"]"),$C85,Tabel1[DWID_Sted],Beregninger!AC$74,Tabel1[DWID_Dato],">="&Beregninger!AC$75,Tabel1[DWID_Dato],"<="&Beregninger!AC$76) -> 0 | AF85: =SUMIFS(Tabel1[Beloeb],INDIRECT("Tabel1["&$A85&"]"),$C85,INDIRECT("Tabel1["&$B85&"]"),$C85,Tabel1[DWID_Sted],Beregninger!AF$74,Tabel1[DWID_Dato],">="&Beregninger!AF$75,Tabel1[DWID_Dato],"<="&Beregninger!AF$76) -> 0 | AG85: =SUMIFS(Tabel1[Kvantum],INDIRECT("Tabel1["&$A85&"]"),$C85,INDIRECT("Tabel1["&$B85&"]"),$C85,Tabel1[DWID_Sted],Beregninger!AF$74,Tabel1[DWID_Dato],">="&Beregninger!AF$75,Tabel1[DWID_Dato],"<="&Beregninger!AF$76) -> 0
A86: Gen 4 | B86: Gen 4 | C86: 1 | D86: Vedligehold staldinv.* | E86: =SUMIFS(Tabel1[Beloeb],INDIRECT("Tabel1["&$A86&"]"),$C86,INDIRECT("Tabel1["&$B86&"]"),$C86,Tabel1[DWID_Sted],Beregninger!E$74,Tabel1[DWID_Dato],">="&Beregninger!E$75,Tabel1[DWID_Dato],"<="&Beregninger!E$76) -> 0 | F86: =SUMIFS(Tabel1[Kvantum],INDIRECT("Tabel1["&$A86&"]"),$C86,INDIRECT("Tabel1["&$B86&"]"),$C86,Tabel1[DWID_Sted],Beregninger!E$74,Tabel1[DWID_Dato],">="&Beregninger!E$75,Tabel1[DWID_Dato],"<="&Beregninger!E$76) -> 0 | H86: =SUMIFS(Tabel1[Beloeb],INDIRECT("Tabel1["&$A86&"]"),$C86,INDIRECT("Tabel1["&$B86&"]"),$C86,Tabel1[DWID_Sted],Beregninger!H$74,Tabel1[DWID_Dato],">="&Beregninger!H$75,Tabel1[DWID_Dato],"<="&Beregninger!H$76) -> 0 | I86: =SUMIFS(Tabel1[Kvantum],INDIRECT("Tabel1["&$A86&"]"),$C86,INDIRECT("Tabel1["&$B86&"]"),$C86,Tabel1[DWID_Sted],Beregninger!H$74,Tabel1[DWID_Dato],">="&Beregninger!H$75,Tabel1[DWID_Dato],"<="&Beregninger!H$76) -> 0 | K86: =SUMIFS(Tabel1[Beloeb],INDIRECT("Tabel1["&$A86&"]"),$C86,INDIRECT("Tabel1["&$B86&"]"),$C86,Tabel1[DWID_Sted],Beregninger!K$74,Tabel1[DWID_Dato],">="&Beregninger!K$75,Tabel1[DWID_Dato],"<="&Beregninger!K$76) -> 0 | L86: =SUMIFS(Tabel1[Kvantum],INDIRECT("Tabel1["&$A86&"]"),$C86,INDIRECT("Tabel1["&$B86&"]"),$C86,Tabel1[DWID_Sted],Beregninger!K$74,Tabel1[DWID_Dato],">="&Beregninger!K$75,Tabel1[DWID_Dato],"<="&Beregninger!K$76) -> 0 | N86: =SUMIFS(Tabel1[Beloeb],INDIRECT("Tabel1["&$A86&"]"),$C86,INDIRECT("Tabel1["&$B86&"]"),$C86,Tabel1[DWID_Sted],Beregninger!N$74,Tabel1[DWID_Dato],">="&Beregninger!N$75,Tabel1[DWID_Dato],"<="&Beregninger!N$76) -> 0 | O86: =SUMIFS(Tabel1[Kvantum],INDIRECT("Tabel1["&$A86&"]"),$C86,INDIRECT("Tabel1["&$B86&"]"),$C86,Tabel1[DWID_Sted],Beregninger!N$74,Tabel1[DWID_Dato],">="&Beregninger!N$75,Tabel1[DWID_Dato],"<="&Beregninger!N$76) -> 0 | Q86: =SUMIFS(Tabel1[Beloeb],INDIRECT("Tabel1["&$A86&"]"),$C86,INDIRECT("Tabel1["&$B86&"]"),$C86,Tabel1[DWID_Sted],Beregninger!Q$74,Tabel1[DWID_Dato],">="&Beregninger!Q$75,Tabel1[DWID_Dato],"<="&Beregninger!Q$76) -> 0 | R86: =SUMIFS(Tabel1[Kvantum],INDIRECT("Tabel1["&$A86&"]"),$C86,INDIRECT("Tabel1["&$B86&"]"),$C86,Tabel1[DWID_Sted],Beregninger!Q$74,Tabel1[DWID_Dato],">="&Beregninger!Q$75,Tabel1[DWID_Dato],"<="&Beregninger!Q$76) -> 0 | T86: =SUMIFS(Tabel1[Beloeb],INDIRECT("Tabel1["&$A86&"]"),$C86,INDIRECT("Tabel1["&$B86&"]"),$C86,Tabel1[DWID_Sted],Beregninger!T$74,Tabel1[DWID_Dato],">="&Beregninger!T$75,Tabel1[DWID_Dato],"<="&Beregninger!T$76) -> 0 | U86: =SUMIFS(Tabel1[Kvantum],INDIRECT("Tabel1["&$A86&"]"),$C86,INDIRECT("Tabel1["&$B86&"]"),$C86,Tabel1[DWID_Sted],Beregninger!T$74,Tabel1[DWID_Dato],">="&Beregninger!T$75,Tabel1[DWID_Dato],"<="&Beregninger!T$76) -> 0 | W86: =SUMIFS(Tabel1[Beloeb],INDIRECT("Tabel1["&$A86&"]"),$C86,INDIRECT("Tabel1["&$B86&"]"),$C86,Tabel1[DWID_Sted],Beregninger!W$74,Tabel1[DWID_Dato],">="&Beregninger!W$75,Tabel1[DWID_Dato],"<="&Beregninger!W$76) -> 0 | X86: =SUMIFS(Tabel1[Kvantum],INDIRECT("Tabel1["&$A86&"]"),$C86,INDIRECT("Tabel1["&$B86&"]"),$C86,Tabel1[DWID_Sted],Beregninger!W$74,Tabel1[DWID_Dato],">="&Beregninger!W$75,Tabel1[DWID_Dato],"<="&Beregninger!W$76) -> 0 | Z86: =SUMIFS(Tabel1[Beloeb],INDIRECT("Tabel1["&$A86&"]"),$C86,INDIRECT("Tabel1["&$B86&"]"),$C86,Tabel1[DWID_Sted],Beregninger!Z$74,Tabel1[DWID_Dato],">="&Beregninger!Z$75,Tabel1[DWID_Dato],"<="&Beregninger!Z$76) -> 0 | AA86: =SUMIFS(Tabel1[Kvantum],INDIRECT("Tabel1["&$A86&"]"),$C86,INDIRECT("Tabel1["&$B86&"]"),$C86,Tabel1[DWID_Sted],Beregninger!Z$74,Tabel1[DWID_Dato],">="&Beregninger!Z$75,Tabel1[DWID_Dato],"<="&Beregninger!Z$76) -> 0 | AC86: =SUMIFS(Tabel1[Beloeb],INDIRECT("Tabel1["&$A86&"]"),$C86,INDIRECT("Tabel1["&$B86&"]"),$C86,Tabel1[DWID_Sted],Beregninger!AC$74,Tabel1[DWID_Dato],">="&Beregninger!AC$75,Tabel1[DWID_Dato],"<="&Beregninger!AC$76) -> 0 | AD86: =SUMIFS(Tabel1[Kvantum],INDIRECT("Tabel1["&$A86&"]"),$C86,INDIRECT("Tabel1["&$B86&"]"),$C86,Tabel1[DWID_Sted],Beregninger!AC$74,Tabel1[DWID_Dato],">="&Beregninger!AC$75,Tabel1[DWID_Dato],"<="&Beregninger!AC$76) -> 0 | AF86: =SUMIFS(Tabel1[Beloeb],INDIRECT("Tabel1["&$A86&"]"),$C86,INDIRECT("Tabel1["&$B86&"]"),$C86,Tabel1[DWID_Sted],Beregninger!AF$74,Tabel1[DWID_Dato],">="&Beregninger!AF$75,Tabel1[DWID_Dato],"<="&Beregninger!AF$76) -> 0 | AG86: =SUMIFS(Tabel1[Kvantum],INDIRECT("Tabel1["&$A86&"]"),$C86,INDIRECT("Tabel1["&$B86&"]"),$C86,Tabel1[DWID_Sted],Beregninger!AF$74,Tabel1[DWID_Dato],">="&Beregninger!AF$75,Tabel1[DWID_Dato],"<="&Beregninger!AF$76) -> 0
D88: Pr årsko
D89: Mælk leveret beløb - kvantum | E89: =IFERROR(E78/E$73,0) -> 6501.75865 | F89: =IFERROR(F78/E$73,0) -> 1827.61 | H89: =IFERROR(H78/H$73,0) -> 3049.277825 | I89: =IFERROR(I78/H$73,0) -> 853.06 | K89: =IFERROR(K78/K$73,0) -> 8089.691933 | L89: =IFERROR(L78/K$73,0) -> 1226.713333 | N89: =IFERROR(N78/N$73,0) -> 0 | O89: =IFERROR(O78/N$73,0) -> 0 | Q89: =IFERROR(Q78/Q$73,0) -> 0 | R89: =IFERROR(R78/Q$73,0) -> 0 | T89: =IFERROR(T78/T$73,0) -> 0 | U89: =IFERROR(U78/T$73,0) -> 0 | W89: =IFERROR(W78/W$73,0) -> 0 | X89: =IFERROR(X78/W$73,0) -> 0 | Z89: =IFERROR(Z78/Z$73,0) -> 0 | AA89: =IFERROR(AA78/Z$73,0) -> 0 | AC89: =IFERROR(AC78/AC$73,0) -> 0 | AD89: =IFERROR(AD78/AC$73,0) -> 0 | AF89: =IFERROR(AF78/AF$73,0) -> 0 | AG89: =IFERROR(AG78/AF$73,0) -> 0
D90: Foder | E90: -2049.46005 | F90: -855.2 | H90: -774.659175 | I90: -310.8875 | K90: -960.0425667 | L90: -407.6833333 | N90: 0 | O90: 0 | Q90: 0 | R90: 0 | T90: 0 | U90: 0 | W90: 0 | X90: 0 | Z90: 0 | AA90: 0 | AC90: 0 | AD90: 0 | AF90: 0 | AG90: 0
D91: Eget grovfoder | E91: 0 | F91: 0 | H91: 0 | I91: 0 | K91: 0 | L91: 0 | N91: 0 | O91: 0 | Q91: 0 | R91: 0 | T91: 0 | U91: 0 | W91: 0 | X91: 0 | Z91: 0 | AA91: 0 | AC91: 0 | AD91: 0 | AF91: 0 | AG91: 0
D92: Heraf kraffoder | E92: -1958.57255 | F92: -840.95 | H92: -707.54105 | I92: -303.2 | K92: -938.0217333 | L92: -401.4333333 | N92: 0 | O92: 0 | Q92: 0 | R92: 0 | T92: 0 | U92: 0 | W92: 0 | X92: 0 | Z92: 0 | AA92: 0 | AC92: 0 | AD92: 0 | AF92: 0 | AG92: 0
D93: Heraf A-blanding | E93: -1958.57255 | F93: -840.95 | H93: -707.54105 | I93: -303.2 | K93: -938.0217333 | L93: -401.4333333 | N93: 0 | O93: 0 | Q93: 0 | R93: 0 | T93: 0 | U93: 0 | W93: 0 | X93: 0 | Z93: 0 | AA93: 0 | AC93: 0 | AD93: 0 | AF93: 0 | AG93: 0
D94: Heraf C-blanding | E94: 0 | F94: 0 | H94: 0 | I94: 0 | K94: 0 | L94: 0 | N94: 0 | O94: 0 | Q94: 0 | R94: 0 | T94: 0 | U94: 0 | W94: 0 | X94: 0 | Z94: 0 | AA94: 0 | AC94: 0 | AD94: 0 | AF94: 0 | AG94: 0
D95: Dyrlæge om medicin | E95: -154.43925 | F95: 0 | H95: -75.399925 | I95: 0 | K95: -106.0059333 | L95: 0 | N95: 0 | O95: 0 | Q95: 0 | R95: 0 | T95: 0 | U95: 0 | W95: 0 | X95: 0 | Z95: 0 | AA95: 0 | AC95: 0 | AD95: 0 | AF95: 0 | AG95: 0
D96: Vedligehold bygninger* | E96: 0 | F96: 0 | H96: 0 | I96: 0 | K96: 0 | L96: 0 | N96: 0 | O96: 0 | Q96: 0 | R96: 0 | T96: 0 | U96: 0 | W96: 0 | X96: 0 | Z96: 0 | AA96: 0 | AC96: 0 | AD96: 0 | AF96: 0 | AG96: 0
D97: Vedligehold staldinv.* | E97: 0 | F97: 0 | H97: 0 | I97: 0 | K97: 0 | L97: 0 | N97: 0 | O97: 0 | Q97: 0 | R97: 0 | T97: 0 | U97: 0 | W97: 0 | X97: 0 | Z97: 0 | AA97: 0 | AC97: 0 | AD97: 0 | AF97: 0 | AG97: 0
D99: Pr. kg mælk leveret
D100: Mælk leveret beløb - kvantum | E100: =IFERROR(E78/F$78,0) -> 3.557519739 | F100: =IFERROR(F78/F$78,0) -> 1 | H100: =IFERROR(H78/I$78,0) -> 3.574517414 | I100: =IFERROR(I78/I$78,0) -> 1 | K100: =IFERROR(K78/L$78,0) -> 6.594606673 | L100: =IFERROR(L78/L$78,0) -> 1 | N100: =IFERROR(N78/O$78,0) -> 0 | O100: =IFERROR(O78/O$78,0) -> 0 | Q100: =IFERROR(Q78/R$78,0) -> 0 | R100: =IFERROR(R78/R$78,0) -> 0 | T100: =IFERROR(T78/U$78,0) -> 0 | U100: =IFERROR(U78/U$78,0) -> 0 | W100: =IFERROR(W78/X$78,0) -> 0 | X100: =IFERROR(X78/X$78,0) -> 0 | Z100: =IFERROR(Z78/AA$78,0) -> 0 | AA100: =IFERROR(AA78/AA$78,0) -> 0 | AC100: =IFERROR(AC78/AD$78,0) -> 0 | AD100: =IFERROR(AD78/AD$78,0) -> 0 | AF100: =IFERROR(AF78/AG$78,0) -> 0 | AG100: =IFERROR(AG78/AG$78,0) -> 0
D101: Foder | E101: -1.12138807 | F101: -0.4679335307 | H101: -0.9080945948 | I101: -0.3644380231 | K101: -0.7826136234 | L101: -0.3323379002 | N101: 0 | O101: 0 | Q101: 0 | R101: 0 | T101: 0 | U101: 0 | W101: 0 | X101: 0 | Z101: 0 | AA101: 0 | AC101: 0 | AD101: 0 | AF101: 0 | AG101: 0
D102: Eget grovfoder | E102: 0 | F102: 0 | H102: 0 | I102: 0 | K102: 0 | L102: 0 | N102: 0 | O102: 0 | Q102: 0 | R102: 0 | T102: 0 | U102: 0 | W102: 0 | X102: 0 | Z102: 0 | AA102: 0 | AC102: 0 | AD102: 0 | AF102: 0 | AG102: 0
D103: Heraf kraffoder | E103: -1.071657821 | F103: -0.4601364624 | H103: -0.8294153401 | I103: -0.3554263475 | K103: -0.76466254 | L103: -0.3272429853 | N103: 0 | O103: 0 | Q103: 0 | R103: 0 | T103: 0 | U103: 0 | W103: 0 | X103: 0 | Z103: 0 | AA103: 0 | AC103: 0 | AD103: 0 | AF103: 0 | AG103: 0
D104: Heraf A-blanding | E104: -1.071657821 | F104: -0.4601364624 | H104: -0.8294153401 | I104: -0.3554263475 | K104: -0.76466254 | L104: -0.3272429853 | N104: 0 | O104: 0 | Q104: 0 | R104: 0 | T104: 0 | U104: 0 | W104: 0 | X104: 0 | Z104: 0 | AA104: 0 | AC104: 0 | AD104: 0 | AF104: 0 | AG104: 0
D105: Heraf C-blanding | E105: 0 | F105: 0 | H105: 0 | I105: 0 | K105: 0 | L105: 0 | N105: 0 | O105: 0 | Q105: 0 | R105: 0 | T105: 0 | U105: 0 | W105: 0 | X105: 0 | Z105: 0 | AA105: 0 | AC105: 0 | AD105: 0 | AF105: 0 | AG105: 0
D106: Dyrlæge om medicin | E106: -0.08450339514 | F106: 0 | H106: -0.08838759876 | I106: 0 | K106: -0.08641459292 | L106: 0 | N106: 0 | O106: 0 | Q106: 0 | R106: 0 | T106: 0 | U106: 0 | W106: 0 | X106: 0 | Z106: 0 | AA106: 0 | AC106: 0 | AD106: 0 | AF106: 0 | AG106: 0
D107: Vedligehold bygninger* | E107: 0 | F107: 0 | H107: 0 | I107: 0 | K107: 0 | L107: 0 | N107: 0 | O107: 0 | Q107: 0 | R107: 0 | T107: 0 | U107: 0 | W107: 0 | X107: 0 | Z107: 0 | AA107: 0 | AC107: 0 | AD107: 0 | AF107: 0 | AG107: 0
D108: Vedligehold staldinv.* | E108: 0 | F108: 0 | H108: 0 | I108: 0 | K108: 0 | L108: 0 | N108: 0 | O108: 0 | Q108: 0 | R108: 0 | T108: 0 | U108: 0 | W108: 0 | X108: 0 | Z108: 0 | AA108: 0 | AC108: 0 | AD108: 0 | AF108: 0 | AG108: 0
D111: Antal Ha (indtast) | E111: =IF(Grovfoder!E13="",IF(Grovfoder!E22="","",Grovfoder!E22),Grovfoder!E13) ->  | H111: =IF(Grovfoder!H13="",IF(Grovfoder!H22="","",Grovfoder!H22),Grovfoder!H13) ->  | K111: =IF(Grovfoder!K13="",IF(Grovfoder!K22="","",Grovfoder!K22),Grovfoder!K13) ->  | N111: =IF(Grovfoder!N13="",IF(Grovfoder!N22="","",Grovfoder!N22),Grovfoder!N13) ->  | Q111: =IF(Grovfoder!Q13="",IF(Grovfoder!Q22="","",Grovfoder!Q22),Grovfoder!Q13) ->  | T111: =IF(Grovfoder!T13="",IF(Grovfoder!T22="","",Grovfoder!T22),Grovfoder!T13) ->  | W111: =IF(Grovfoder!W13="",IF(Grovfoder!W22="","",Grovfoder!W22),Grovfoder!W13) ->  | Z111: =IF(Grovfoder!Z13="",IF(Grovfoder!Z22="","",Grovfoder!Z22),Grovfoder!Z13) ->  | AC111: =IF(Grovfoder!AC13="",IF(Grovfoder!AC22="","",Grovfoder!AC22),Grovfoder!AC13) ->  | AF111: =IF(Grovfoder!AF13="",IF(Grovfoder!AF22="","",Grovfoder!AF22),Grovfoder!AF13) -> 
D112: Vælg ejendom (fra drop down) | E112: =IF(E113="","",IF(Grovfoder!$E$17="",IF(Grovfoder!E11="","",Grovfoder!E11),Grovfoder!$E$17)) ->  | H112: =IF(H113="","",IF(Grovfoder!$E$17="",IF(Grovfoder!H11="","",Grovfoder!H11),Grovfoder!$E$17)) ->  | K112: =IF(K113="","",IF(Grovfoder!$E$17="",IF(Grovfoder!K11="","",Grovfoder!K11),Grovfoder!$E$17)) ->  | N112: =IF(N113="","",IF(Grovfoder!$E$17="",IF(Grovfoder!N11="","",Grovfoder!N11),Grovfoder!$E$17)) ->  | Q112: =IF(Q113="","",IF(Grovfoder!$E$17="",IF(Grovfoder!Q11="","",Grovfoder!Q11),Grovfoder!$E$17)) ->  | T112: =IF(T113="","",IF(Grovfoder!$E$17="",IF(Grovfoder!T11="","",Grovfoder!T11),Grovfoder!$E$17)) ->  | W112: =IF(W113="","",IF(Grovfoder!$E$17="",IF(Grovfoder!W11="","",Grovfoder!W11),Grovfoder!$E$17)) ->  | Z112: =IF(Z113="","",IF(Grovfoder!$E$17="",IF(Grovfoder!Z11="","",Grovfoder!Z11),Grovfoder!$E$17)) ->  | AC112: =IF(AC113="","",IF(Grovfoder!$E$17="",IF(Grovfoder!AC11="","",Grovfoder!AC11),Grovfoder!$E$17)) ->  | AF112: =IF(AF113="","",IF(Grovfoder!$E$17="",IF(Grovfoder!AF11="","",Grovfoder!AF11),Grovfoder!$E$17)) -> 
D113: Vælg periode fra til (ååååmmdd) | E113: =IF(Grovfoder!$E$8="",IF(Grovfoder!E19="","",Grovfoder!E19),Grovfoder!$E$8) ->  | H113: =IF(Grovfoder!$E$8="",IF(Grovfoder!H19="","",Grovfoder!H19),Grovfoder!$E$8) ->  | K113: =IF(Grovfoder!$E$8="",IF(Grovfoder!K19="","",Grovfoder!K19),Grovfoder!$E$8) ->  | N113: =IF(Grovfoder!$E$8="",IF(Grovfoder!N19="","",Grovfoder!N19),Grovfoder!$E$8) ->  | Q113: =IF(Grovfoder!$E$8="",IF(Grovfoder!Q19="","",Grovfoder!Q19),Grovfoder!$E$8) ->  | T113: =IF(Grovfoder!$E$8="",IF(Grovfoder!T19="","",Grovfoder!T19),Grovfoder!$E$8) ->  | W113: =IF(Grovfoder!$E$8="",IF(Grovfoder!W19="","",Grovfoder!W19),Grovfoder!$E$8) ->  | Z113: =IF(Grovfoder!$E$8="",IF(Grovfoder!Z19="","",Grovfoder!Z19),Grovfoder!$E$8) ->  | AC113: =IF(Grovfoder!$E$8="",IF(Grovfoder!AC19="","",Grovfoder!AC19),Grovfoder!$E$8) ->  | AF113: =IF(Grovfoder!$E$8="",IF(Grovfoder!AF19="","",Grovfoder!AF19),Grovfoder!$E$8) -> 
E114: =IF(Grovfoder!$E$9="",IF(Grovfoder!E20="","",Grovfoder!E20),Grovfoder!$E$9) ->  | H114: =IF(Grovfoder!$E$9="",IF(Grovfoder!H20="","",Grovfoder!H20),Grovfoder!$E$9) ->  | K114: =IF(Grovfoder!$E$9="",IF(Grovfoder!K20="","",Grovfoder!K20),Grovfoder!$E$9) ->  | N114: =IF(Grovfoder!$E$9="",IF(Grovfoder!N20="","",Grovfoder!N20),Grovfoder!$E$9) ->  | Q114: =IF(Grovfoder!$E$9="",IF(Grovfoder!Q20="","",Grovfoder!Q20),Grovfoder!$E$9) ->  | T114: =IF(Grovfoder!$E$9="",IF(Grovfoder!T20="","",Grovfoder!T20),Grovfoder!$E$9) ->  | W114: =IF(Grovfoder!$E$9="",IF(Grovfoder!W20="","",Grovfoder!W20),Grovfoder!$E$9) ->  | Z114: =IF(Grovfoder!$E$9="",IF(Grovfoder!Z20="","",Grovfoder!Z20),Grovfoder!$E$9) ->  | AC114: =IF(Grovfoder!$E$9="",IF(Grovfoder!AC20="","",Grovfoder!AC20),Grovfoder!$E$9) ->  | AF114: =IF(Grovfoder!$E$9="",IF(Grovfoder!AF20="","",Grovfoder!AF20),Grovfoder!$E$9) -> 
A116: Grov 1 | B116: Grov 2 | C116: 1 | D116: Maskinstation i alt | E116: =SUMIFS(Tabel1[Beloeb],INDIRECT("Tabel1["&$A116&"]"),$C116,INDIRECT("Tabel1["&$B116&"]"),$C116,Tabel1[DWID_Sted],Beregninger!E$112,Tabel1[DWID_Dato],">="&Beregninger!E$113,Tabel1[DWID_Dato],"<="&Beregninger!E$114) -> 0 | F116: =SUMIFS(Tabel1[Kvantum],INDIRECT("Tabel1["&$A116&"]"),$C116,INDIRECT("Tabel1["&$B116&"]"),$C116,Tabel1[DWID_Sted],Beregninger!E$112,Tabel1[DWID_Dato],">="&Beregninger!E$113,Tabel1[DWID_Dato],"<="&Beregninger!E$114) -> 0 | H116: =SUMIFS(Tabel1[Beloeb],INDIRECT("Tabel1["&$A116&"]"),$C116,INDIRECT("Tabel1["&$B116&"]"),$C116,Tabel1[DWID_Sted],Beregninger!H$112,Tabel1[DWID_Dato],">="&Beregninger!H$113,Tabel1[DWID_Dato],"<="&Beregninger!H$114) -> 0 | I116: =SUMIFS(Tabel1[Kvantum],INDIRECT("Tabel1["&$A116&"]"),$C116,INDIRECT("Tabel1["&$B116&"]"),$C116,Tabel1[DWID_Sted],Beregninger!H$112,Tabel1[DWID_Dato],">="&Beregninger!H$113,Tabel1[DWID_Dato],"<="&Beregninger!H$114) -> 0 | K116: =SUMIFS(Tabel1[Beloeb],INDIRECT("Tabel1["&$A116&"]"),$C116,INDIRECT("Tabel1["&$B116&"]"),$C116,Tabel1[DWID_Sted],Beregninger!K$112,Tabel1[DWID_Dato],">="&Beregninger!K$113,Tabel1[DWID_Dato],"<="&Beregninger!K$114) -> 0 | L116: =SUMIFS(Tabel1[Kvantum],INDIRECT("Tabel1["&$A116&"]"),$C116,INDIRECT("Tabel1["&$B116&"]"),$C116,Tabel1[DWID_Sted],Beregninger!K$112,Tabel1[DWID_Dato],">="&Beregninger!K$113,Tabel1[DWID_Dato],"<="&Beregninger!K$114) -> 0 | N116: =SUMIFS(Tabel1[Beloeb],INDIRECT("Tabel1["&$A116&"]"),$C116,INDIRECT("Tabel1["&$B116&"]"),$C116,Tabel1[DWID_Sted],Beregninger!N$112,Tabel1[DWID_Dato],">="&Beregninger!N$113,Tabel1[DWID_Dato],"<="&Beregninger!N$114) -> 0 | O116: =SUMIFS(Tabel1[Kvantum],INDIRECT("Tabel1["&$A116&"]"),$C116,INDIRECT("Tabel1["&$B116&"]"),$C116,Tabel1[DWID_Sted],Beregninger!N$112,Tabel1[DWID_Dato],">="&Beregninger!N$113,Tabel1[DWID_Dato],"<="&Beregninger!N$114) -> 0 | Q116: =SUMIFS(Tabel1[Beloeb],INDIRECT("Tabel1["&$A116&"]"),$C116,INDIRECT("Tabel1["&$B116&"]"),$C116,Tabel1[DWID_Sted],Beregninger!Q$112,Tabel1[DWID_Dato],">="&Beregninger!Q$113,Tabel1[DWID_Dato],"<="&Beregninger!Q$114) -> 0 | R116: =SUMIFS(Tabel1[Kvantum],INDIRECT("Tabel1["&$A116&"]"),$C116,INDIRECT("Tabel1["&$B116&"]"),$C116,Tabel1[DWID_Sted],Beregninger!Q$112,Tabel1[DWID_Dato],">="&Beregninger!Q$113,Tabel1[DWID_Dato],"<="&Beregninger!Q$114) -> 0 | T116: =SUMIFS(Tabel1[Beloeb],INDIRECT("Tabel1["&$A116&"]"),$C116,INDIRECT("Tabel1["&$B116&"]"),$C116,Tabel1[DWID_Sted],Beregninger!T$112,Tabel1[DWID_Dato],">="&Beregninger!T$113,Tabel1[DWID_Dato],"<="&Beregninger!T$114) -> 0 | U116: =SUMIFS(Tabel1[Kvantum],INDIRECT("Tabel1["&$A116&"]"),$C116,INDIRECT("Tabel1["&$B116&"]"),$C116,Tabel1[DWID_Sted],Beregninger!T$112,Tabel1[DWID_Dato],">="&Beregninger!T$113,Tabel1[DWID_Dato],"<="&Beregninger!T$114) -> 0 | W116: =SUMIFS(Tabel1[Beloeb],INDIRECT("Tabel1["&$A116&"]"),$C116,INDIRECT("Tabel1["&$B116&"]"),$C116,Tabel1[DWID_Sted],Beregninger!W$112,Tabel1[DWID_Dato],">="&Beregninger!W$113,Tabel1[DWID_Dato],"<="&Beregninger!W$114) -> 0 | X116: =SUMIFS(Tabel1[Kvantum],INDIRECT("Tabel1["&$A116&"]"),$C116,INDIRECT("Tabel1["&$B116&"]"),$C116,Tabel1[DWID_Sted],Beregninger!W$112,Tabel1[DWID_Dato],">="&Beregninger!W$113,Tabel1[DWID_Dato],"<="&Beregninger!W$114) -> 0 | Z116: =SUMIFS(Tabel1[Beloeb],INDIRECT("Tabel1["&$A116&"]"),$C116,INDIRECT("Tabel1["&$B116&"]"),$C116,Tabel1[DWID_Sted],Beregninger!Z$112,Tabel1[DWID_Dato],">="&Beregninger!Z$113,Tabel1[DWID_Dato],"<="&Beregninger!Z$114) -> 0 | AA116: =SUMIFS(Tabel1[Kvantum],INDIRECT("Tabel1["&$A116&"]"),$C116,INDIRECT("Tabel1["&$B116&"]"),$C116,Tabel1[DWID_Sted],Beregninger!Z$112,Tabel1[DWID_Dato],">="&Beregninger!Z$113,Tabel1[DWID_Dato],"<="&Beregninger!Z$114) -> 0 | AC116: =SUMIFS(Tabel1[Beloeb],INDIRECT("Tabel1["&$A116&"]"),$C116,INDIRECT("Tabel1["&$B116&"]"),$C116,Tabel1[DWID_Sted],Beregninger!AC$112,Tabel1[DWID_Dato],">="&Beregninger!AC$113,Tabel1[DWID_Dato],"<="&Beregninger!AC$114) -> 0 | AD116: =SUMIFS(Tabel1[Kvantum],INDIRECT("Tabel1["&$A116&"]"),$C116,INDIRECT("Tabel1["&$B116&"]"),$C116,Tabel1[DWID_Sted],Beregninger!AC$112,Tabel1[DWID_Dato],">="&Beregninger!AC$113,Tabel1[DWID_Dato],"<="&Beregninger!AC$114) -> 0 | AF116: =SUMIFS(Tabel1[Beloeb],INDIRECT("Tabel1["&$A116&"]"),$C116,INDIRECT("Tabel1["&$B116&"]"),$C116,Tabel1[DWID_Sted],Beregninger!AF$112,Tabel1[DWID_Dato],">="&Beregninger!AF$113,Tabel1[DWID_Dato],"<="&Beregninger!AF$114) -> 0 | AG116: =SUMIFS(Tabel1[Kvantum],INDIRECT("Tabel1["&$A116&"]"),$C116,INDIRECT("Tabel1["&$B116&"]"),$C116,Tabel1[DWID_Sted],Beregninger!AF$112,Tabel1[DWID_Dato],">="&Beregninger!AF$113,Tabel1[DWID_Dato],"<="&Beregninger!AF$114) -> 0
A117: Grov 1 | B117: Grov 3 | C117: 1 | D117: Heraf høst grovfoder | E117: =SUMIFS(Tabel1[Beloeb],INDIRECT("Tabel1["&$A117&"]"),$C117,INDIRECT("Tabel1["&$B117&"]"),$C117,Tabel1[DWID_Sted],Beregninger!E$112,Tabel1[DWID_Dato],">="&Beregninger!E$113,Tabel1[DWID_Dato],"<="&Beregninger!E$114) -> 0 | F117: =SUMIFS(Tabel1[Kvantum],INDIRECT("Tabel1["&$A117&"]"),$C117,INDIRECT("Tabel1["&$B117&"]"),$C117,Tabel1[DWID_Sted],Beregninger!E$112,Tabel1[DWID_Dato],">="&Beregninger!E$113,Tabel1[DWID_Dato],"<="&Beregninger!E$114) -> 0 | H117: =SUMIFS(Tabel1[Beloeb],INDIRECT("Tabel1["&$A117&"]"),$C117,INDIRECT("Tabel1["&$B117&"]"),$C117,Tabel1[DWID_Sted],Beregninger!H$112,Tabel1[DWID_Dato],">="&Beregninger!H$113,Tabel1[DWID_Dato],"<="&Beregninger!H$114) -> 0 | I117: =SUMIFS(Tabel1[Kvantum],INDIRECT("Tabel1["&$A117&"]"),$C117,INDIRECT("Tabel1["&$B117&"]"),$C117,Tabel1[DWID_Sted],Beregninger!H$112,Tabel1[DWID_Dato],">="&Beregninger!H$113,Tabel1[DWID_Dato],"<="&Beregninger!H$114) -> 0 | K117: =SUMIFS(Tabel1[Beloeb],INDIRECT("Tabel1["&$A117&"]"),$C117,INDIRECT("Tabel1["&$B117&"]"),$C117,Tabel1[DWID_Sted],Beregninger!K$112,Tabel1[DWID_Dato],">="&Beregninger!K$113,Tabel1[DWID_Dato],"<="&Beregninger!K$114) -> 0 | L117: =SUMIFS(Tabel1[Kvantum],INDIRECT("Tabel1["&$A117&"]"),$C117,INDIRECT("Tabel1["&$B117&"]"),$C117,Tabel1[DWID_Sted],Beregninger!K$112,Tabel1[DWID_Dato],">="&Beregninger!K$113,Tabel1[DWID_Dato],"<="&Beregninger!K$114) -> 0 | N117: =SUMIFS(Tabel1[Beloeb],INDIRECT("Tabel1["&$A117&"]"),$C117,INDIRECT("Tabel1["&$B117&"]"),$C117,Tabel1[DWID_Sted],Beregninger!N$112,Tabel1[DWID_Dato],">="&Beregninger!N$113,Tabel1[DWID_Dato],"<="&Beregninger!N$114) -> 0 | O117: =SUMIFS(Tabel1[Kvantum],INDIRECT("Tabel1["&$A117&"]"),$C117,INDIRECT("Tabel1["&$B117&"]"),$C117,Tabel1[DWID_Sted],Beregninger!N$112,Tabel1[DWID_Dato],">="&Beregninger!N$113,Tabel1[DWID_Dato],"<="&Beregninger!N$114) -> 0 | Q117: =SUMIFS(Tabel1[Beloeb],INDIRECT("Tabel1["&$A117&"]"),$C117,INDIRECT("Tabel1["&$B117&"]"),$C117,Tabel1[DWID_Sted],Beregninger!Q$112,Tabel1[DWID_Dato],">="&Beregninger!Q$113,Tabel1[DWID_Dato],"<="&Beregninger!Q$114) -> 0 | R117: =SUMIFS(Tabel1[Kvantum],INDIRECT("Tabel1["&$A117&"]"),$C117,INDIRECT("Tabel1["&$B117&"]"),$C117,Tabel1[DWID_Sted],Beregninger!Q$112,Tabel1[DWID_Dato],">="&Beregninger!Q$113,Tabel1[DWID_Dato],"<="&Beregninger!Q$114) -> 0 | T117: =SUMIFS(Tabel1[Beloeb],INDIRECT("Tabel1["&$A117&"]"),$C117,INDIRECT("Tabel1["&$B117&"]"),$C117,Tabel1[DWID_Sted],Beregninger!T$112,Tabel1[DWID_Dato],">="&Beregninger!T$113,Tabel1[DWID_Dato],"<="&Beregninger!T$114) -> 0 | U117: =SUMIFS(Tabel1[Kvantum],INDIRECT("Tabel1["&$A117&"]"),$C117,INDIRECT("Tabel1["&$B117&"]"),$C117,Tabel1[DWID_Sted],Beregninger!T$112,Tabel1[DWID_Dato],">="&Beregninger!T$113,Tabel1[DWID_Dato],"<="&Beregninger!T$114) -> 0 | W117: =SUMIFS(Tabel1[Beloeb],INDIRECT("Tabel1["&$A117&"]"),$C117,INDIRECT("Tabel1["&$B117&"]"),$C117,Tabel1[DWID_Sted],Beregninger!W$112,Tabel1[DWID_Dato],">="&Beregninger!W$113,Tabel1[DWID_Dato],"<="&Beregninger!W$114) -> 0 | X117: =SUMIFS(Tabel1[Kvantum],INDIRECT("Tabel1["&$A117&"]"),$C117,INDIRECT("Tabel1["&$B117&"]"),$C117,Tabel1[DWID_Sted],Beregninger!W$112,Tabel1[DWID_Dato],">="&Beregninger!W$113,Tabel1[DWID_Dato],"<="&Beregninger!W$114) -> 0 | Z117: =SUMIFS(Tabel1[Beloeb],INDIRECT("Tabel1["&$A117&"]"),$C117,INDIRECT("Tabel1["&$B117&"]"),$C117,Tabel1[DWID_Sted],Beregninger!Z$112,Tabel1[DWID_Dato],">="&Beregninger!Z$113,Tabel1[DWID_Dato],"<="&Beregninger!Z$114) -> 0 | AA117: =SUMIFS(Tabel1[Kvantum],INDIRECT("Tabel1["&$A117&"]"),$C117,INDIRECT("Tabel1["&$B117&"]"),$C117,Tabel1[DWID_Sted],Beregninger!Z$112,Tabel1[DWID_Dato],">="&Beregninger!Z$113,Tabel1[DWID_Dato],"<="&Beregninger!Z$114) -> 0 | AC117: =SUMIFS(Tabel1[Beloeb],INDIRECT("Tabel1["&$A117&"]"),$C117,INDIRECT("Tabel1["&$B117&"]"),$C117,Tabel1[DWID_Sted],Beregninger!AC$112,Tabel1[DWID_Dato],">="&Beregninger!AC$113,Tabel1[DWID_Dato],"<="&Beregninger!AC$114) -> 0 | AD117: =SUMIFS(Tabel1[Kvantum],INDIRECT("Tabel1["&$A117&"]"),$C117,INDIRECT("Tabel1["&$B117&"]"),$C117,Tabel1[DWID_Sted],Beregninger!AC$112,Tabel1[DWID_Dato],">="&Beregninger!AC$113,Tabel1[DWID_Dato],"<="&Beregninger!AC$114) -> 0 | AF117: =SUMIFS(Tabel1[Beloeb],INDIRECT("Tabel1["&$A117&"]"),$C117,INDIRECT("Tabel1["&$B117&"]"),$C117,Tabel1[DWID_Sted],Beregninger!AF$112,Tabel1[DWID_Dato],">="&Beregninger!AF$113,Tabel1[DWID_Dato],"<="&Beregninger!AF$114) -> 0 | AG117: =SUMIFS(Tabel1[Kvantum],INDIRECT("Tabel1["&$A117&"]"),$C117,INDIRECT("Tabel1["&$B117&"]"),$C117,Tabel1[DWID_Sted],Beregninger!AF$112,Tabel1[DWID_Dato],">="&Beregninger!AF$113,Tabel1[DWID_Dato],"<="&Beregninger!AF$114) -> 0
A118: Gen 5 | B118: Gen 5 | C118: 1 | D118: Vedligehold maskiner | E118: =SUMIFS(Tabel1[Beloeb],INDIRECT("Tabel1["&$A118&"]"),$C118,INDIRECT("Tabel1["&$B118&"]"),$C118,Tabel1[DWID_Sted],Beregninger!E$112,Tabel1[DWID_Dato],">="&Beregninger!E$113,Tabel1[DWID_Dato],"<="&Beregninger!E$114) -> 0 | F118: =SUMIFS(Tabel1[Kvantum],INDIRECT("Tabel1["&$A118&"]"),$C118,INDIRECT("Tabel1["&$B118&"]"),$C118,Tabel1[DWID_Sted],Beregninger!E$112,Tabel1[DWID_Dato],">="&Beregninger!E$113,Tabel1[DWID_Dato],"<="&Beregninger!E$114) -> 0 | H118: =SUMIFS(Tabel1[Beloeb],INDIRECT("Tabel1["&$A118&"]"),$C118,INDIRECT("Tabel1["&$B118&"]"),$C118,Tabel1[DWID_Sted],Beregninger!H$112,Tabel1[DWID_Dato],">="&Beregninger!H$113,Tabel1[DWID_Dato],"<="&Beregninger!H$114) -> 0 | I118: =SUMIFS(Tabel1[Kvantum],INDIRECT("Tabel1["&$A118&"]"),$C118,INDIRECT("Tabel1["&$B118&"]"),$C118,Tabel1[DWID_Sted],Beregninger!H$112,Tabel1[DWID_Dato],">="&Beregninger!H$113,Tabel1[DWID_Dato],"<="&Beregninger!H$114) -> 0 | K118: =SUMIFS(Tabel1[Beloeb],INDIRECT("Tabel1["&$A118&"]"),$C118,INDIRECT("Tabel1["&$B118&"]"),$C118,Tabel1[DWID_Sted],Beregninger!K$112,Tabel1[DWID_Dato],">="&Beregninger!K$113,Tabel1[DWID_Dato],"<="&Beregninger!K$114) -> 0 | L118: =SUMIFS(Tabel1[Kvantum],INDIRECT("Tabel1["&$A118&"]"),$C118,INDIRECT("Tabel1["&$B118&"]"),$C118,Tabel1[DWID_Sted],Beregninger!K$112,Tabel1[DWID_Dato],">="&Beregninger!K$113,Tabel1[DWID_Dato],"<="&Beregninger!K$114) -> 0 | N118: =SUMIFS(Tabel1[Beloeb],INDIRECT("Tabel1["&$A118&"]"),$C118,INDIRECT("Tabel1["&$B118&"]"),$C118,Tabel1[DWID_Sted],Beregninger!N$112,Tabel1[DWID_Dato],">="&Beregninger!N$113,Tabel1[DWID_Dato],"<="&Beregninger!N$114) -> 0 | O118: =SUMIFS(Tabel1[Kvantum],INDIRECT("Tabel1["&$A118&"]"),$C118,INDIRECT("Tabel1["&$B118&"]"),$C118,Tabel1[DWID_Sted],Beregninger!N$112,Tabel1[DWID_Dato],">="&Beregninger!N$113,Tabel1[DWID_Dato],"<="&Beregninger!N$114) -> 0 | Q118: =SUMIFS(Tabel1[Beloeb],INDIRECT("Tabel1["&$A118&"]"),$C118,INDIRECT("Tabel1["&$B118&"]"),$C118,Tabel1[DWID_Sted],Beregninger!Q$112,Tabel1[DWID_Dato],">="&Beregninger!Q$113,Tabel1[DWID_Dato],"<="&Beregninger!Q$114) -> 0 | R118: =SUMIFS(Tabel1[Kvantum],INDIRECT("Tabel1["&$A118&"]"),$C118,INDIRECT("Tabel1["&$B118&"]"),$C118,Tabel1[DWID_Sted],Beregninger!Q$112,Tabel1[DWID_Dato],">="&Beregninger!Q$113,Tabel1[DWID_Dato],"<="&Beregninger!Q$114) -> 0 | T118: =SUMIFS(Tabel1[Beloeb],INDIRECT("Tabel1["&$A118&"]"),$C118,INDIRECT("Tabel1["&$B118&"]"),$C118,Tabel1[DWID_Sted],Beregninger!T$112,Tabel1[DWID_Dato],">="&Beregninger!T$113,Tabel1[DWID_Dato],"<="&Beregninger!T$114) -> 0 | U118: =SUMIFS(Tabel1[Kvantum],INDIRECT("Tabel1["&$A118&"]"),$C118,INDIRECT("Tabel1["&$B118&"]"),$C118,Tabel1[DWID_Sted],Beregninger!T$112,Tabel1[DWID_Dato],">="&Beregninger!T$113,Tabel1[DWID_Dato],"<="&Beregninger!T$114) -> 0 | W118: =SUMIFS(Tabel1[Beloeb],INDIRECT("Tabel1["&$A118&"]"),$C118,INDIRECT("Tabel1["&$B118&"]"),$C118,Tabel1[DWID_Sted],Beregninger!W$112,Tabel1[DWID_Dato],">="&Beregninger!W$113,Tabel1[DWID_Dato],"<="&Beregninger!W$114) -> 0 | X118: =SUMIFS(Tabel1[Kvantum],INDIRECT("Tabel1["&$A118&"]"),$C118,INDIRECT("Tabel1["&$B118&"]"),$C118,Tabel1[DWID_Sted],Beregninger!W$112,Tabel1[DWID_Dato],">="&Beregninger!W$113,Tabel1[DWID_Dato],"<="&Beregninger!W$114) -> 0 | Z118: =SUMIFS(Tabel1[Beloeb],INDIRECT("Tabel1["&$A118&"]"),$C118,INDIRECT("Tabel1["&$B118&"]"),$C118,Tabel1[DWID_Sted],Beregninger!Z$112,Tabel1[DWID_Dato],">="&Beregninger!Z$113,Tabel1[DWID_Dato],"<="&Beregninger!Z$114) -> 0 | AA118: =SUMIFS(Tabel1[Kvantum],INDIRECT("Tabel1["&$A118&"]"),$C118,INDIRECT("Tabel1["&$B118&"]"),$C118,Tabel1[DWID_Sted],Beregninger!Z$112,Tabel1[DWID_Dato],">="&Beregninger!Z$113,Tabel1[DWID_Dato],"<="&Beregninger!Z$114) -> 0 | AC118: =SUMIFS(Tabel1[Beloeb],INDIRECT("Tabel1["&$A118&"]"),$C118,INDIRECT("Tabel1["&$B118&"]"),$C118,Tabel1[DWID_Sted],Beregninger!AC$112,Tabel1[DWID_Dato],">="&Beregninger!AC$113,Tabel1[DWID_Dato],"<="&Beregninger!AC$114) -> 0 | AD118: =SUMIFS(Tabel1[Kvantum],INDIRECT("Tabel1["&$A118&"]"),$C118,INDIRECT("Tabel1["&$B118&"]"),$C118,Tabel1[DWID_Sted],Beregninger!AC$112,Tabel1[DWID_Dato],">="&Beregninger!AC$113,Tabel1[DWID_Dato],"<="&Beregninger!AC$114) -> 0 | AF118: =SUMIFS(Tabel1[Beloeb],INDIRECT("Tabel1["&$A118&"]"),$C118,INDIRECT("Tabel1["&$B118&"]"),$C118,Tabel1[DWID_Sted],Beregninger!AF$112,Tabel1[DWID_Dato],">="&Beregninger!AF$113,Tabel1[DWID_Dato],"<="&Beregninger!AF$114) -> 0 | AG118: =SUMIFS(Tabel1[Kvantum],INDIRECT("Tabel1["&$A118&"]"),$C118,INDIRECT("Tabel1["&$B118&"]"),$C118,Tabel1[DWID_Sted],Beregninger!AF$112,Tabel1[DWID_Dato],">="&Beregninger!AF$113,Tabel1[DWID_Dato],"<="&Beregninger!AF$114) -> 0
D120: Pr ha
D122: Maskinstation i alt | E122: =IFERROR(E116/E$111,0) -> 0 | F122: =IFERROR(F116/E$111,0) -> 0 | H122: =IFERROR(H116/H$111,0) -> 0 | I122: =IFERROR(I116/H$111,0) -> 0 | K122: =IFERROR(K116/K$111,0) -> 0 | L122: =IFERROR(L116/K$111,0) -> 0 | N122: =IFERROR(N116/N$111,0) -> 0 | O122: =IFERROR(O116/N$111,0) -> 0 | Q122: =IFERROR(Q116/Q$111,0) -> 0 | R122: =IFERROR(R116/Q$111,0) -> 0 | T122: =IFERROR(T116/T$111,0) -> 0 | U122: =IFERROR(U116/T$111,0) -> 0 | W122: =IFERROR(W116/W$111,0) -> 0 | X122: =IFERROR(X116/W$111,0) -> 0 | Z122: =IFERROR(Z116/Z$111,0) -> 0 | AA122: =IFERROR(AA116/Z$111,0) -> 0 | AC122: =IFERROR(AC116/AC$111,0) -> 0 | AD122: =IFERROR(AD116/AC$111,0) -> 0 | AF122: =IFERROR(AF116/AF$111,0) -> 0 | AG122: =IFERROR(AG116/AF$111,0) -> 0
D123: Heraf høst grovfoder | E123: =IFERROR(E117/E$111,0) -> 0 | F123: =IFERROR(F117/E$111,0) -> 0 | H123: =IFERROR(H117/H$111,0) -> 0 | I123: =IFERROR(I117/H$111,0) -> 0 | K123: =IFERROR(K117/K$111,0) -> 0 | L123: =IFERROR(L117/K$111,0) -> 0 | N123: =IFERROR(N117/N$111,0) -> 0 | O123: =IFERROR(O117/N$111,0) -> 0 | Q123: =IFERROR(Q117/Q$111,0) -> 0 | R123: =IFERROR(R117/Q$111,0) -> 0 | T123: =IFERROR(T117/T$111,0) -> 0 | U123: =IFERROR(U117/T$111,0) -> 0 | W123: =IFERROR(W117/W$111,0) -> 0 | X123: =IFERROR(X117/W$111,0) -> 0 | Z123: =IFERROR(Z117/Z$111,0) -> 0 | AA123: =IFERROR(AA117/Z$111,0) -> 0 | AC123: =IFERROR(AC117/AC$111,0) -> 0 | AD123: =IFERROR(AD117/AC$111,0) -> 0 | AF123: =IFERROR(AF117/AF$111,0) -> 0 | AG123: =IFERROR(AG117/AF$111,0) -> 0
D124: Vedligehold maskiner | E124: 0 | F124: 0 | H124: 0 | I124: 0 | K124: 0 | L124: 0 | N124: 0 | O124: 0 | Q124: 0 | R124: 0 | T124: 0 | U124: 0 | W124: 0 | X124: 0 | Z124: 0 | AA124: 0 | AC124: 0 | AD124: 0 | AF124: 0 | AG124: 0
D128: Antal årssøer | E128: =IF(Sohold30kg!E13="",IF(Sohold30kg!E22="","",Sohold30kg!E22),Sohold30kg!E13) ->  | H128: =IF(Sohold30kg!H13="",IF(Sohold30kg!H22="","",Sohold30kg!H22),Sohold30kg!H13) ->  | K128: =IF(Sohold30kg!K13="",IF(Sohold30kg!K22="","",Sohold30kg!K22),Sohold30kg!K13) ->  | N128: =IF(Sohold30kg!N13="",IF(Sohold30kg!N22="","",Sohold30kg!N22),Sohold30kg!N13) ->  | Q128: =IF(Sohold30kg!Q13="",IF(Sohold30kg!Q22="","",Sohold30kg!Q22),Sohold30kg!Q13) ->  | T128: =IF(Sohold30kg!T13="",IF(Sohold30kg!T22="","",Sohold30kg!T22),Sohold30kg!T13) ->  | W128: =IF(Sohold30kg!W13="",IF(Sohold30kg!W22="","",Sohold30kg!W22),Sohold30kg!W13) ->  | Z128: =IF(Sohold30kg!Z13="",IF(Sohold30kg!Z22="","",Sohold30kg!Z22),Sohold30kg!Z13) ->  | AC128: =IF(Sohold30kg!AC13="",IF(Sohold30kg!AC22="","",Sohold30kg!AC22),Sohold30kg!AC13) ->  | AF128: =IF(Sohold30kg!AF13="",IF(Sohold30kg!AF22="","",Sohold30kg!AF22),Sohold30kg!AF13) -> 
D129: Vælg ejendom (fra drop down) | E129: =IF(E130="","",IF(Sohold30kg!$E$17="",IF(Sohold30kg!E11="","",Sohold30kg!E11),Sohold30kg!$E$17)) ->  | H129: =IF(H130="","",IF(Sohold30kg!$E$17="",IF(Sohold30kg!H11="","",Sohold30kg!H11),Sohold30kg!$E$17)) ->  | K129: =IF(K130="","",IF(Sohold30kg!$E$17="",IF(Sohold30kg!K11="","",Sohold30kg!K11),Sohold30kg!$E$17)) ->  | N129: =IF(N130="","",IF(Sohold30kg!$E$17="",IF(Sohold30kg!N11="","",Sohold30kg!N11),Sohold30kg!$E$17)) ->  | Q129: =IF(Q130="","",IF(Sohold30kg!$E$17="",IF(Sohold30kg!Q11="","",Sohold30kg!Q11),Sohold30kg!$E$17)) ->  | T129: =IF(T130="","",IF(Sohold30kg!$E$17="",IF(Sohold30kg!T11="","",Sohold30kg!T11),Sohold30kg!$E$17)) ->  | W129: =IF(W130="","",IF(Sohold30kg!$E$17="",IF(Sohold30kg!W11="","",Sohold30kg!W11),Sohold30kg!$E$17)) ->  | Z129: =IF(Z130="","",IF(Sohold30kg!$E$17="",IF(Sohold30kg!Z11="","",Sohold30kg!Z11),Sohold30kg!$E$17)) ->  | AC129: =IF(AC130="","",IF(Sohold30kg!$E$17="",IF(Sohold30kg!AC11="","",Sohold30kg!AC11),Sohold30kg!$E$17)) ->  | AF129: =IF(AF130="","",IF(Sohold30kg!$E$17="",IF(Sohold30kg!AF11="","",Sohold30kg!AF11),Sohold30kg!$E$17)) -> 
D130: Vælg periode fra til (ååååmmdd) | E130: =IF(Sohold30kg!$E$8="",IF(Sohold30kg!E19="","",Sohold30kg!E19),Sohold30kg!$E$8) ->  | H130: =IF(Sohold30kg!$E$8="",IF(Sohold30kg!H19="","",Sohold30kg!H19),Sohold30kg!$E$8) ->  | K130: =IF(Sohold30kg!$E$8="",IF(Sohold30kg!K19="","",Sohold30kg!K19),Sohold30kg!$E$8) ->  | N130: =IF(Sohold30kg!$E$8="",IF(Sohold30kg!N19="","",Sohold30kg!N19),Sohold30kg!$E$8) ->  | Q130: =IF(Sohold30kg!$E$8="",IF(Sohold30kg!Q19="","",Sohold30kg!Q19),Sohold30kg!$E$8) ->  | T130: =IF(Sohold30kg!$E$8="",IF(Sohold30kg!T19="","",Sohold30kg!T19),Sohold30kg!$E$8) ->  | W130: =IF(Sohold30kg!$E$8="",IF(Sohold30kg!W19="","",Sohold30kg!W19),Sohold30kg!$E$8) ->  | Z130: =IF(Sohold30kg!$E$8="",IF(Sohold30kg!Z19="","",Sohold30kg!Z19),Sohold30kg!$E$8) ->  | AC130: =IF(Sohold30kg!$E$8="",IF(Sohold30kg!AC19="","",Sohold30kg!AC19),Sohold30kg!$E$8) ->  | AF130: =IF(Sohold30kg!$E$8="",IF(Sohold30kg!AF19="","",Sohold30kg!AF19),Sohold30kg!$E$8) -> 
E131: =IF(Sohold30kg!$E$9="",IF(Sohold30kg!E20="","",Sohold30kg!E20),Sohold30kg!$E$9) ->  | H131: =IF(Sohold30kg!$E$9="",IF(Sohold30kg!H20="","",Sohold30kg!H20),Sohold30kg!$E$9) ->  | K131: =IF(Sohold30kg!$E$9="",IF(Sohold30kg!K20="","",Sohold30kg!K20),Sohold30kg!$E$9) ->  | N131: =IF(Sohold30kg!$E$9="",IF(Sohold30kg!N20="","",Sohold30kg!N20),Sohold30kg!$E$9) ->  | Q131: =IF(Sohold30kg!$E$9="",IF(Sohold30kg!Q20="","",Sohold30kg!Q20),Sohold30kg!$E$9) ->  | T131: =IF(Sohold30kg!$E$9="",IF(Sohold30kg!T20="","",Sohold30kg!T20),Sohold30kg!$E$9) ->  | W131: =IF(Sohold30kg!$E$9="",IF(Sohold30kg!W20="","",Sohold30kg!W20),Sohold30kg!$E$9) ->  | Z131: =IF(Sohold30kg!$E$9="",IF(Sohold30kg!Z20="","",Sohold30kg!Z20),Sohold30kg!$E$9) ->  | AC131: =IF(Sohold30kg!$E$9="",IF(Sohold30kg!AC20="","",Sohold30kg!AC20),Sohold30kg!$E$9) ->  | AF131: =IF(Sohold30kg!$E$9="",IF(Sohold30kg!AF20="","",Sohold30kg!AF20),Sohold30kg!$E$9) -> 
A133: Små 1 | B133: Små 2 | C133: 1 | D133: Solgte smågrise beløb - kvantum | E133: =SUMIFS(Tabel1[Beloeb],INDIRECT("Tabel1["&$A133&"]"),$C133,INDIRECT("Tabel1["&$B133&"]"),$C133,Tabel1[DWID_Sted],Beregninger!E$129,Tabel1[DWID_Dato],">="&Beregninger!E$130,Tabel1[DWID_Dato],"<="&Beregninger!E$131) -> 0 | F133: =SUMIFS(Tabel1[Kvantum],INDIRECT("Tabel1["&$A133&"]"),$C133,INDIRECT("Tabel1["&$B133&"]"),$C133,Tabel1[DWID_Sted],Beregninger!E$129,Tabel1[DWID_Dato],">="&Beregninger!E$130,Tabel1[DWID_Dato],"<="&Beregninger!E$131) -> 0 | H133: =SUMIFS(Tabel1[Beloeb],INDIRECT("Tabel1["&$A133&"]"),$C133,INDIRECT("Tabel1["&$B133&"]"),$C133,Tabel1[DWID_Sted],Beregninger!H$129,Tabel1[DWID_Dato],">="&Beregninger!H$130,Tabel1[DWID_Dato],"<="&Beregninger!H$131) -> 0 | I133: =SUMIFS(Tabel1[Kvantum],INDIRECT("Tabel1["&$A133&"]"),$C133,INDIRECT("Tabel1["&$B133&"]"),$C133,Tabel1[DWID_Sted],Beregninger!H$129,Tabel1[DWID_Dato],">="&Beregninger!H$130,Tabel1[DWID_Dato],"<="&Beregninger!H$131) -> 0 | K133: =SUMIFS(Tabel1[Beloeb],INDIRECT("Tabel1["&$A133&"]"),$C133,INDIRECT("Tabel1["&$B133&"]"),$C133,Tabel1[DWID_Sted],Beregninger!K$129,Tabel1[DWID_Dato],">="&Beregninger!K$130,Tabel1[DWID_Dato],"<="&Beregninger!K$131) -> 0 | L133: =SUMIFS(Tabel1[Kvantum],INDIRECT("Tabel1["&$A133&"]"),$C133,INDIRECT("Tabel1["&$B133&"]"),$C133,Tabel1[DWID_Sted],Beregninger!K$129,Tabel1[DWID_Dato],">="&Beregninger!K$130,Tabel1[DWID_Dato],"<="&Beregninger!K$131) -> 0 | N133: =SUMIFS(Tabel1[Beloeb],INDIRECT("Tabel1["&$A133&"]"),$C133,INDIRECT("Tabel1["&$B133&"]"),$C133,Tabel1[DWID_Sted],Beregninger!N$129,Tabel1[DWID_Dato],">="&Beregninger!N$130,Tabel1[DWID_Dato],"<="&Beregninger!N$131) -> 0 | O133: =SUMIFS(Tabel1[Kvantum],INDIRECT("Tabel1["&$A133&"]"),$C133,INDIRECT("Tabel1["&$B133&"]"),$C133,Tabel1[DWID_Sted],Beregninger!N$129,Tabel1[DWID_Dato],">="&Beregninger!N$130,Tabel1[DWID_Dato],"<="&Beregninger!N$131) -> 0 | Q133: =SUMIFS(Tabel1[Beloeb],INDIRECT("Tabel1["&$A133&"]"),$C133,INDIRECT("Tabel1["&$B133&"]"),$C133,Tabel1[DWID_Sted],Beregninger!Q$129,Tabel1[DWID_Dato],">="&Beregninger!Q$130,Tabel1[DWID_Dato],"<="&Beregninger!Q$131) -> 0 | R133: =SUMIFS(Tabel1[Kvantum],INDIRECT("Tabel1["&$A133&"]"),$C133,INDIRECT("Tabel1["&$B133&"]"),$C133,Tabel1[DWID_Sted],Beregninger!Q$129,Tabel1[DWID_Dato],">="&Beregninger!Q$130,Tabel1[DWID_Dato],"<="&Beregninger!Q$131) -> 0 | T133: =SUMIFS(Tabel1[Beloeb],INDIRECT("Tabel1["&$A133&"]"),$C133,INDIRECT("Tabel1["&$B133&"]"),$C133,Tabel1[DWID_Sted],Beregninger!T$129,Tabel1[DWID_Dato],">="&Beregninger!T$130,Tabel1[DWID_Dato],"<="&Beregninger!T$131) -> 0 | U133: =SUMIFS(Tabel1[Kvantum],INDIRECT("Tabel1["&$A133&"]"),$C133,INDIRECT("Tabel1["&$B133&"]"),$C133,Tabel1[DWID_Sted],Beregninger!T$129,Tabel1[DWID_Dato],">="&Beregninger!T$130,Tabel1[DWID_Dato],"<="&Beregninger!T$131) -> 0 | W133: =SUMIFS(Tabel1[Beloeb],INDIRECT("Tabel1["&$A133&"]"),$C133,INDIRECT("Tabel1["&$B133&"]"),$C133,Tabel1[DWID_Sted],Beregninger!W$129,Tabel1[DWID_Dato],">="&Beregninger!W$130,Tabel1[DWID_Dato],"<="&Beregninger!W$131) -> 0 | X133: =SUMIFS(Tabel1[Kvantum],INDIRECT("Tabel1["&$A133&"]"),$C133,INDIRECT("Tabel1["&$B133&"]"),$C133,Tabel1[DWID_Sted],Beregninger!W$129,Tabel1[DWID_Dato],">="&Beregninger!W$130,Tabel1[DWID_Dato],"<="&Beregninger!W$131) -> 0 | Z133: =SUMIFS(Tabel1[Beloeb],INDIRECT("Tabel1["&$A133&"]"),$C133,INDIRECT("Tabel1["&$B133&"]"),$C133,Tabel1[DWID_Sted],Beregninger!Z$129,Tabel1[DWID_Dato],">="&Beregninger!Z$130,Tabel1[DWID_Dato],"<="&Beregninger!Z$131) -> 0 | AA133: =SUMIFS(Tabel1[Kvantum],INDIRECT("Tabel1["&$A133&"]"),$C133,INDIRECT("Tabel1["&$B133&"]"),$C133,Tabel1[DWID_Sted],Beregninger!Z$129,Tabel1[DWID_Dato],">="&Beregninger!Z$130,Tabel1[DWID_Dato],"<="&Beregninger!Z$131) -> 0 | AC133: =SUMIFS(Tabel1[Beloeb],INDIRECT("Tabel1["&$A133&"]"),$C133,INDIRECT("Tabel1["&$B133&"]"),$C133,Tabel1[DWID_Sted],Beregninger!AC$129,Tabel1[DWID_Dato],">="&Beregninger!AC$130,Tabel1[DWID_Dato],"<="&Beregninger!AC$131) -> 0 | AD133: =SUMIFS(Tabel1[Kvantum],INDIRECT("Tabel1["&$A133&"]"),$C133,INDIRECT("Tabel1["&$B133&"]"),$C133,Tabel1[DWID_Sted],Beregninger!AC$129,Tabel1[DWID_Dato],">="&Beregninger!AC$130,Tabel1[DWID_Dato],"<="&Beregninger!AC$131) -> 0 | AF133: =SUMIFS(Tabel1[Beloeb],INDIRECT("Tabel1["&$A133&"]"),$C133,INDIRECT("Tabel1["&$B133&"]"),$C133,Tabel1[DWID_Sted],Beregninger!AF$129,Tabel1[DWID_Dato],">="&Beregninger!AF$130,Tabel1[DWID_Dato],"<="&Beregninger!AF$131) -> 0 | AG133: =SUMIFS(Tabel1[Kvantum],INDIRECT("Tabel1["&$A133&"]"),$C133,INDIRECT("Tabel1["&$B133&"]"),$C133,Tabel1[DWID_Sted],Beregninger!AF$129,Tabel1[DWID_Dato],">="&Beregninger!AF$130,Tabel1[DWID_Dato],"<="&Beregninger!AF$131) -> 0
A134: Små 1 | B134: Gen 1 | C134: 1 | D134: Foder | E134: =SUMIFS(Tabel1[Beloeb],INDIRECT("Tabel1["&$A134&"]"),$C134,INDIRECT("Tabel1["&$B134&"]"),$C134,Tabel1[DWID_Sted],Beregninger!E$129,Tabel1[DWID_Dato],">="&Beregninger!E$130,Tabel1[DWID_Dato],"<="&Beregninger!E$131) -> 0 | F134: =SUMIFS(Tabel1[Kvantum],INDIRECT("Tabel1["&$A134&"]"),$C134,INDIRECT("Tabel1["&$B134&"]"),$C134,Tabel1[DWID_Sted],Beregninger!E$129,Tabel1[DWID_Dato],">="&Beregninger!E$130,Tabel1[DWID_Dato],"<="&Beregninger!E$131) -> 0 | H134: =SUMIFS(Tabel1[Beloeb],INDIRECT("Tabel1["&$A134&"]"),$C134,INDIRECT("Tabel1["&$B134&"]"),$C134,Tabel1[DWID_Sted],Beregninger!H$129,Tabel1[DWID_Dato],">="&Beregninger!H$130,Tabel1[DWID_Dato],"<="&Beregninger!H$131) -> 0 | I134: =SUMIFS(Tabel1[Kvantum],INDIRECT("Tabel1["&$A134&"]"),$C134,INDIRECT("Tabel1["&$B134&"]"),$C134,Tabel1[DWID_Sted],Beregninger!H$129,Tabel1[DWID_Dato],">="&Beregninger!H$130,Tabel1[DWID_Dato],"<="&Beregninger!H$131) -> 0 | K134: =SUMIFS(Tabel1[Beloeb],INDIRECT("Tabel1["&$A134&"]"),$C134,INDIRECT("Tabel1["&$B134&"]"),$C134,Tabel1[DWID_Sted],Beregninger!K$129,Tabel1[DWID_Dato],">="&Beregninger!K$130,Tabel1[DWID_Dato],"<="&Beregninger!K$131) -> 0 | L134: =SUMIFS(Tabel1[Kvantum],INDIRECT("Tabel1["&$A134&"]"),$C134,INDIRECT("Tabel1["&$B134&"]"),$C134,Tabel1[DWID_Sted],Beregninger!K$129,Tabel1[DWID_Dato],">="&Beregninger!K$130,Tabel1[DWID_Dato],"<="&Beregninger!K$131) -> 0 | N134: =SUMIFS(Tabel1[Beloeb],INDIRECT("Tabel1["&$A134&"]"),$C134,INDIRECT("Tabel1["&$B134&"]"),$C134,Tabel1[DWID_Sted],Beregninger!N$129,Tabel1[DWID_Dato],">="&Beregninger!N$130,Tabel1[DWID_Dato],"<="&Beregninger!N$131) -> 0 | O134: =SUMIFS(Tabel1[Kvantum],INDIRECT("Tabel1["&$A134&"]"),$C134,INDIRECT("Tabel1["&$B134&"]"),$C134,Tabel1[DWID_Sted],Beregninger!N$129,Tabel1[DWID_Dato],">="&Beregninger!N$130,Tabel1[DWID_Dato],"<="&Beregninger!N$131) -> 0 | Q134: =SUMIFS(Tabel1[Beloeb],INDIRECT("Tabel1["&$A134&"]"),$C134,INDIRECT("Tabel1["&$B134&"]"),$C134,Tabel1[DWID_Sted],Beregninger!Q$129,Tabel1[DWID_Dato],">="&Beregninger!Q$130,Tabel1[DWID_Dato],"<="&Beregninger!Q$131) -> 0 | R134: =SUMIFS(Tabel1[Kvantum],INDIRECT("Tabel1["&$A134&"]"),$C134,INDIRECT("Tabel1["&$B134&"]"),$C134,Tabel1[DWID_Sted],Beregninger!Q$129,Tabel1[DWID_Dato],">="&Beregninger!Q$130,Tabel1[DWID_Dato],"<="&Beregninger!Q$131) -> 0 | T134: =SUMIFS(Tabel1[Beloeb],INDIRECT("Tabel1["&$A134&"]"),$C134,INDIRECT("Tabel1["&$B134&"]"),$C134,Tabel1[DWID_Sted],Beregninger!T$129,Tabel1[DWID_Dato],">="&Beregninger!T$130,Tabel1[DWID_Dato],"<="&Beregninger!T$131) -> 0 | U134: =SUMIFS(Tabel1[Kvantum],INDIRECT("Tabel1["&$A134&"]"),$C134,INDIRECT("Tabel1["&$B134&"]"),$C134,Tabel1[DWID_Sted],Beregninger!T$129,Tabel1[DWID_Dato],">="&Beregninger!T$130,Tabel1[DWID_Dato],"<="&Beregninger!T$131) -> 0 | W134: =SUMIFS(Tabel1[Beloeb],INDIRECT("Tabel1["&$A134&"]"),$C134,INDIRECT("Tabel1["&$B134&"]"),$C134,Tabel1[DWID_Sted],Beregninger!W$129,Tabel1[DWID_Dato],">="&Beregninger!W$130,Tabel1[DWID_Dato],"<="&Beregninger!W$131) -> 0 | X134: =SUMIFS(Tabel1[Kvantum],INDIRECT("Tabel1["&$A134&"]"),$C134,INDIRECT("Tabel1["&$B134&"]"),$C134,Tabel1[DWID_Sted],Beregninger!W$129,Tabel1[DWID_Dato],">="&Beregninger!W$130,Tabel1[DWID_Dato],"<="&Beregninger!W$131) -> 0 | Z134: =SUMIFS(Tabel1[Beloeb],INDIRECT("Tabel1["&$A134&"]"),$C134,INDIRECT("Tabel1["&$B134&"]"),$C134,Tabel1[DWID_Sted],Beregninger!Z$129,Tabel1[DWID_Dato],">="&Beregninger!Z$130,Tabel1[DWID_Dato],"<="&Beregninger!Z$131) -> 0 | AA134: =SUMIFS(Tabel1[Kvantum],INDIRECT("Tabel1["&$A134&"]"),$C134,INDIRECT("Tabel1["&$B134&"]"),$C134,Tabel1[DWID_Sted],Beregninger!Z$129,Tabel1[DWID_Dato],">="&Beregninger!Z$130,Tabel1[DWID_Dato],"<="&Beregninger!Z$131) -> 0 | AC134: =SUMIFS(Tabel1[Beloeb],INDIRECT("Tabel1["&$A134&"]"),$C134,INDIRECT("Tabel1["&$B134&"]"),$C134,Tabel1[DWID_Sted],Beregninger!AC$129,Tabel1[DWID_Dato],">="&Beregninger!AC$130,Tabel1[DWID_Dato],"<="&Beregninger!AC$131) -> 0 | AD134: =SUMIFS(Tabel1[Kvantum],INDIRECT("Tabel1["&$A134&"]"),$C134,INDIRECT("Tabel1["&$B134&"]"),$C134,Tabel1[DWID_Sted],Beregninger!AC$129,Tabel1[DWID_Dato],">="&Beregninger!AC$130,Tabel1[DWID_Dato],"<="&Beregninger!AC$131) -> 0 | AF134: =SUMIFS(Tabel1[Beloeb],INDIRECT("Tabel1["&$A134&"]"),$C134,INDIRECT("Tabel1["&$B134&"]"),$C134,Tabel1[DWID_Sted],Beregninger!AF$129,Tabel1[DWID_Dato],">="&Beregninger!AF$130,Tabel1[DWID_Dato],"<="&Beregninger!AF$131) -> 0 | AG134: =SUMIFS(Tabel1[Kvantum],INDIRECT("Tabel1["&$A134&"]"),$C134,INDIRECT("Tabel1["&$B134&"]"),$C134,Tabel1[DWID_Sted],Beregninger!AF$129,Tabel1[DWID_Dato],">="&Beregninger!AF$130,Tabel1[DWID_Dato],"<="&Beregninger!AF$131) -> 0
A135: Små 1 | B135: Små 3 | C135: 1 | D135: Heraf korn | E135: =SUMIFS(Tabel1[Beloeb],INDIRECT("Tabel1["&$A135&"]"),$C135,INDIRECT("Tabel1["&$B135&"]"),$C135,Tabel1[DWID_Sted],Beregninger!E$129,Tabel1[DWID_Dato],">="&Beregninger!E$130,Tabel1[DWID_Dato],"<="&Beregninger!E$131) -> 0 | F135: =SUMIFS(Tabel1[Kvantum],INDIRECT("Tabel1["&$A135&"]"),$C135,INDIRECT("Tabel1["&$B135&"]"),$C135,Tabel1[DWID_Sted],Beregninger!E$129,Tabel1[DWID_Dato],">="&Beregninger!E$130,Tabel1[DWID_Dato],"<="&Beregninger!E$131) -> 0 | H135: =SUMIFS(Tabel1[Beloeb],INDIRECT("Tabel1["&$A135&"]"),$C135,INDIRECT("Tabel1["&$B135&"]"),$C135,Tabel1[DWID_Sted],Beregninger!H$129,Tabel1[DWID_Dato],">="&Beregninger!H$130,Tabel1[DWID_Dato],"<="&Beregninger!H$131) -> 0 | I135: =SUMIFS(Tabel1[Kvantum],INDIRECT("Tabel1["&$A135&"]"),$C135,INDIRECT("Tabel1["&$B135&"]"),$C135,Tabel1[DWID_Sted],Beregninger!H$129,Tabel1[DWID_Dato],">="&Beregninger!H$130,Tabel1[DWID_Dato],"<="&Beregninger!H$131) -> 0 | K135: =SUMIFS(Tabel1[Beloeb],INDIRECT("Tabel1["&$A135&"]"),$C135,INDIRECT("Tabel1["&$B135&"]"),$C135,Tabel1[DWID_Sted],Beregninger!K$129,Tabel1[DWID_Dato],">="&Beregninger!K$130,Tabel1[DWID_Dato],"<="&Beregninger!K$131) -> 0 | L135: =SUMIFS(Tabel1[Kvantum],INDIRECT("Tabel1["&$A135&"]"),$C135,INDIRECT("Tabel1["&$B135&"]"),$C135,Tabel1[DWID_Sted],Beregninger!K$129,Tabel1[DWID_Dato],">="&Beregninger!K$130,Tabel1[DWID_Dato],"<="&Beregninger!K$131) -> 0 | N135: =SUMIFS(Tabel1[Beloeb],INDIRECT("Tabel1["&$A135&"]"),$C135,INDIRECT("Tabel1["&$B135&"]"),$C135,Tabel1[DWID_Sted],Beregninger!N$129,Tabel1[DWID_Dato],">="&Beregninger!N$130,Tabel1[DWID_Dato],"<="&Beregninger!N$131) -> 0 | O135: =SUMIFS(Tabel1[Kvantum],INDIRECT("Tabel1["&$A135&"]"),$C135,INDIRECT("Tabel1["&$B135&"]"),$C135,Tabel1[DWID_Sted],Beregninger!N$129,Tabel1[DWID_Dato],">="&Beregninger!N$130,Tabel1[DWID_Dato],"<="&Beregninger!N$131) -> 0 | Q135: =SUMIFS(Tabel1[Beloeb],INDIRECT("Tabel1["&$A135&"]"),$C135,INDIRECT("Tabel1["&$B135&"]"),$C135,Tabel1[DWID_Sted],Beregninger!Q$129,Tabel1[DWID_Dato],">="&Beregninger!Q$130,Tabel1[DWID_Dato],"<="&Beregninger!Q$131) -> 0 | R135: =SUMIFS(Tabel1[Kvantum],INDIRECT("Tabel1["&$A135&"]"),$C135,INDIRECT("Tabel1["&$B135&"]"),$C135,Tabel1[DWID_Sted],Beregninger!Q$129,Tabel1[DWID_Dato],">="&Beregninger!Q$130,Tabel1[DWID_Dato],"<="&Beregninger!Q$131) -> 0 | T135: =SUMIFS(Tabel1[Beloeb],INDIRECT("Tabel1["&$A135&"]"),$C135,INDIRECT("Tabel1["&$B135&"]"),$C135,Tabel1[DWID_Sted],Beregninger!T$129,Tabel1[DWID_Dato],">="&Beregninger!T$130,Tabel1[DWID_Dato],"<="&Beregninger!T$131) -> 0 | U135: =SUMIFS(Tabel1[Kvantum],INDIRECT("Tabel1["&$A135&"]"),$C135,INDIRECT("Tabel1["&$B135&"]"),$C135,Tabel1[DWID_Sted],Beregninger!T$129,Tabel1[DWID_Dato],">="&Beregninger!T$130,Tabel1[DWID_Dato],"<="&Beregninger!T$131) -> 0 | W135: =SUMIFS(Tabel1[Beloeb],INDIRECT("Tabel1["&$A135&"]"),$C135,INDIRECT("Tabel1["&$B135&"]"),$C135,Tabel1[DWID_Sted],Beregninger!W$129,Tabel1[DWID_Dato],">="&Beregninger!W$130,Tabel1[DWID_Dato],"<="&Beregninger!W$131) -> 0 | X135: =SUMIFS(Tabel1[Kvantum],INDIRECT("Tabel1["&$A135&"]"),$C135,INDIRECT("Tabel1["&$B135&"]"),$C135,Tabel1[DWID_Sted],Beregninger!W$129,Tabel1[DWID_Dato],">="&Beregninger!W$130,Tabel1[DWID_Dato],"<="&Beregninger!W$131) -> 0 | Z135: =SUMIFS(Tabel1[Beloeb],INDIRECT("Tabel1["&$A135&"]"),$C135,INDIRECT("Tabel1["&$B135&"]"),$C135,Tabel1[DWID_Sted],Beregninger!Z$129,Tabel1[DWID_Dato],">="&Beregninger!Z$130,Tabel1[DWID_Dato],"<="&Beregninger!Z$131) -> 0 | AA135: =SUMIFS(Tabel1[Kvantum],INDIRECT("Tabel1["&$A135&"]"),$C135,INDIRECT("Tabel1["&$B135&"]"),$C135,Tabel1[DWID_Sted],Beregninger!Z$129,Tabel1[DWID_Dato],">="&Beregninger!Z$130,Tabel1[DWID_Dato],"<="&Beregninger!Z$131) -> 0 | AC135: =SUMIFS(Tabel1[Beloeb],INDIRECT("Tabel1["&$A135&"]"),$C135,INDIRECT("Tabel1["&$B135&"]"),$C135,Tabel1[DWID_Sted],Beregninger!AC$129,Tabel1[DWID_Dato],">="&Beregninger!AC$130,Tabel1[DWID_Dato],"<="&Beregninger!AC$131) -> 0 | AD135: =SUMIFS(Tabel1[Kvantum],INDIRECT("Tabel1["&$A135&"]"),$C135,INDIRECT("Tabel1["&$B135&"]"),$C135,Tabel1[DWID_Sted],Beregninger!AC$129,Tabel1[DWID_Dato],">="&Beregninger!AC$130,Tabel1[DWID_Dato],"<="&Beregninger!AC$131) -> 0 | AF135: =SUMIFS(Tabel1[Beloeb],INDIRECT("Tabel1["&$A135&"]"),$C135,INDIRECT("Tabel1["&$B135&"]"),$C135,Tabel1[DWID_Sted],Beregninger!AF$129,Tabel1[DWID_Dato],">="&Beregninger!AF$130,Tabel1[DWID_Dato],"<="&Beregninger!AF$131) -> 0 | AG135: =SUMIFS(Tabel1[Kvantum],INDIRECT("Tabel1["&$A135&"]"),$C135,INDIRECT("Tabel1["&$B135&"]"),$C135,Tabel1[DWID_Sted],Beregninger!AF$129,Tabel1[DWID_Dato],">="&Beregninger!AF$130,Tabel1[DWID_Dato],"<="&Beregninger!AF$131) -> 0
A136: Små 1 | B136: Små 4 | C136: 1 | D136: Heraf tilskudsfoder | E136: =SUMIFS(Tabel1[Beloeb],INDIRECT("Tabel1["&$A136&"]"),$C136,INDIRECT("Tabel1["&$B136&"]"),$C136,Tabel1[DWID_Sted],Beregninger!E$129,Tabel1[DWID_Dato],">="&Beregninger!E$130,Tabel1[DWID_Dato],"<="&Beregninger!E$131) -> 0 | F136: =SUMIFS(Tabel1[Kvantum],INDIRECT("Tabel1["&$A136&"]"),$C136,INDIRECT("Tabel1["&$B136&"]"),$C136,Tabel1[DWID_Sted],Beregninger!E$129,Tabel1[DWID_Dato],">="&Beregninger!E$130,Tabel1[DWID_Dato],"<="&Beregninger!E$131) -> 0 | H136: =SUMIFS(Tabel1[Beloeb],INDIRECT("Tabel1["&$A136&"]"),$C136,INDIRECT("Tabel1["&$B136&"]"),$C136,Tabel1[DWID_Sted],Beregninger!H$129,Tabel1[DWID_Dato],">="&Beregninger!H$130,Tabel1[DWID_Dato],"<="&Beregninger!H$131) -> 0 | I136: =SUMIFS(Tabel1[Kvantum],INDIRECT("Tabel1["&$A136&"]"),$C136,INDIRECT("Tabel1["&$B136&"]"),$C136,Tabel1[DWID_Sted],Beregninger!H$129,Tabel1[DWID_Dato],">="&Beregninger!H$130,Tabel1[DWID_Dato],"<="&Beregninger!H$131) -> 0 | K136: =SUMIFS(Tabel1[Beloeb],INDIRECT("Tabel1["&$A136&"]"),$C136,INDIRECT("Tabel1["&$B136&"]"),$C136,Tabel1[DWID_Sted],Beregninger!K$129,Tabel1[DWID_Dato],">="&Beregninger!K$130,Tabel1[DWID_Dato],"<="&Beregninger!K$131) -> 0 | L136: =SUMIFS(Tabel1[Kvantum],INDIRECT("Tabel1["&$A136&"]"),$C136,INDIRECT("Tabel1["&$B136&"]"),$C136,Tabel1[DWID_Sted],Beregninger!K$129,Tabel1[DWID_Dato],">="&Beregninger!K$130,Tabel1[DWID_Dato],"<="&Beregninger!K$131) -> 0 | N136: =SUMIFS(Tabel1[Beloeb],INDIRECT("Tabel1["&$A136&"]"),$C136,INDIRECT("Tabel1["&$B136&"]"),$C136,Tabel1[DWID_Sted],Beregninger!N$129,Tabel1[DWID_Dato],">="&Beregninger!N$130,Tabel1[DWID_Dato],"<="&Beregninger!N$131) -> 0 | O136: =SUMIFS(Tabel1[Kvantum],INDIRECT("Tabel1["&$A136&"]"),$C136,INDIRECT("Tabel1["&$B136&"]"),$C136,Tabel1[DWID_Sted],Beregninger!N$129,Tabel1[DWID_Dato],">="&Beregninger!N$130,Tabel1[DWID_Dato],"<="&Beregninger!N$131) -> 0 | Q136: =SUMIFS(Tabel1[Beloeb],INDIRECT("Tabel1["&$A136&"]"),$C136,INDIRECT("Tabel1["&$B136&"]"),$C136,Tabel1[DWID_Sted],Beregninger!Q$129,Tabel1[DWID_Dato],">="&Beregninger!Q$130,Tabel1[DWID_Dato],"<="&Beregninger!Q$131) -> 0 | R136: =SUMIFS(Tabel1[Kvantum],INDIRECT("Tabel1["&$A136&"]"),$C136,INDIRECT("Tabel1["&$B136&"]"),$C136,Tabel1[DWID_Sted],Beregninger!Q$129,Tabel1[DWID_Dato],">="&Beregninger!Q$130,Tabel1[DWID_Dato],"<="&Beregninger!Q$131) -> 0 | T136: =SUMIFS(Tabel1[Beloeb],INDIRECT("Tabel1["&$A136&"]"),$C136,INDIRECT("Tabel1["&$B136&"]"),$C136,Tabel1[DWID_Sted],Beregninger!T$129,Tabel1[DWID_Dato],">="&Beregninger!T$130,Tabel1[DWID_Dato],"<="&Beregninger!T$131) -> 0 | U136: =SUMIFS(Tabel1[Kvantum],INDIRECT("Tabel1["&$A136&"]"),$C136,INDIRECT("Tabel1["&$B136&"]"),$C136,Tabel1[DWID_Sted],Beregninger!T$129,Tabel1[DWID_Dato],">="&Beregninger!T$130,Tabel1[DWID_Dato],"<="&Beregninger!T$131) -> 0 | W136: =SUMIFS(Tabel1[Beloeb],INDIRECT("Tabel1["&$A136&"]"),$C136,INDIRECT("Tabel1["&$B136&"]"),$C136,Tabel1[DWID_Sted],Beregninger!W$129,Tabel1[DWID_Dato],">="&Beregninger!W$130,Tabel1[DWID_Dato],"<="&Beregninger!W$131) -> 0 | X136: =SUMIFS(Tabel1[Kvantum],INDIRECT("Tabel1["&$A136&"]"),$C136,INDIRECT("Tabel1["&$B136&"]"),$C136,Tabel1[DWID_Sted],Beregninger!W$129,Tabel1[DWID_Dato],">="&Beregninger!W$130,Tabel1[DWID_Dato],"<="&Beregninger!W$131) -> 0 | Z136: =SUMIFS(Tabel1[Beloeb],INDIRECT("Tabel1["&$A136&"]"),$C136,INDIRECT("Tabel1["&$B136&"]"),$C136,Tabel1[DWID_Sted],Beregninger!Z$129,Tabel1[DWID_Dato],">="&Beregninger!Z$130,Tabel1[DWID_Dato],"<="&Beregninger!Z$131) -> 0 | AA136: =SUMIFS(Tabel1[Kvantum],INDIRECT("Tabel1["&$A136&"]"),$C136,INDIRECT("Tabel1["&$B136&"]"),$C136,Tabel1[DWID_Sted],Beregninger!Z$129,Tabel1[DWID_Dato],">="&Beregninger!Z$130,Tabel1[DWID_Dato],"<="&Beregninger!Z$131) -> 0 | AC136: =SUMIFS(Tabel1[Beloeb],INDIRECT("Tabel1["&$A136&"]"),$C136,INDIRECT("Tabel1["&$B136&"]"),$C136,Tabel1[DWID_Sted],Beregninger!AC$129,Tabel1[DWID_Dato],">="&Beregninger!AC$130,Tabel1[DWID_Dato],"<="&Beregninger!AC$131) -> 0 | AD136: =SUMIFS(Tabel1[Kvantum],INDIRECT("Tabel1["&$A136&"]"),$C136,INDIRECT("Tabel1["&$B136&"]"),$C136,Tabel1[DWID_Sted],Beregninger!AC$129,Tabel1[DWID_Dato],">="&Beregninger!AC$130,Tabel1[DWID_Dato],"<="&Beregninger!AC$131) -> 0 | AF136: =SUMIFS(Tabel1[Beloeb],INDIRECT("Tabel1["&$A136&"]"),$C136,INDIRECT("Tabel1["&$B136&"]"),$C136,Tabel1[DWID_Sted],Beregninger!AF$129,Tabel1[DWID_Dato],">="&Beregninger!AF$130,Tabel1[DWID_Dato],"<="&Beregninger!AF$131) -> 0 | AG136: =SUMIFS(Tabel1[Kvantum],INDIRECT("Tabel1["&$A136&"]"),$C136,INDIRECT("Tabel1["&$B136&"]"),$C136,Tabel1[DWID_Sted],Beregninger!AF$129,Tabel1[DWID_Dato],">="&Beregninger!AF$130,Tabel1[DWID_Dato],"<="&Beregninger!AF$131) -> 0
A137: Små 1 | B137: Små 5 | C137: 1 | D137: Heraf Smågriseblanding | E137: =SUMIFS(Tabel1[Beloeb],INDIRECT("Tabel1["&$A137&"]"),$C137,INDIRECT("Tabel1["&$B137&"]"),$C137,Tabel1[DWID_Sted],Beregninger!E$129,Tabel1[DWID_Dato],">="&Beregninger!E$130,Tabel1[DWID_Dato],"<="&Beregninger!E$131) -> 0 | F137: =SUMIFS(Tabel1[Kvantum],INDIRECT("Tabel1["&$A137&"]"),$C137,INDIRECT("Tabel1["&$B137&"]"),$C137,Tabel1[DWID_Sted],Beregninger!E$129,Tabel1[DWID_Dato],">="&Beregninger!E$130,Tabel1[DWID_Dato],"<="&Beregninger!E$131) -> 0 | H137: =SUMIFS(Tabel1[Beloeb],INDIRECT("Tabel1["&$A137&"]"),$C137,INDIRECT("Tabel1["&$B137&"]"),$C137,Tabel1[DWID_Sted],Beregninger!H$129,Tabel1[DWID_Dato],">="&Beregninger!H$130,Tabel1[DWID_Dato],"<="&Beregninger!H$131) -> 0 | I137: =SUMIFS(Tabel1[Kvantum],INDIRECT("Tabel1["&$A137&"]"),$C137,INDIRECT("Tabel1["&$B137&"]"),$C137,Tabel1[DWID_Sted],Beregninger!H$129,Tabel1[DWID_Dato],">="&Beregninger!H$130,Tabel1[DWID_Dato],"<="&Beregninger!H$131) -> 0 | K137: =SUMIFS(Tabel1[Beloeb],INDIRECT("Tabel1["&$A137&"]"),$C137,INDIRECT("Tabel1["&$B137&"]"),$C137,Tabel1[DWID_Sted],Beregninger!K$129,Tabel1[DWID_Dato],">="&Beregninger!K$130,Tabel1[DWID_Dato],"<="&Beregninger!K$131) -> 0 | L137: =SUMIFS(Tabel1[Kvantum],INDIRECT("Tabel1["&$A137&"]"),$C137,INDIRECT("Tabel1["&$B137&"]"),$C137,Tabel1[DWID_Sted],Beregninger!K$129,Tabel1[DWID_Dato],">="&Beregninger!K$130,Tabel1[DWID_Dato],"<="&Beregninger!K$131) -> 0 | N137: =SUMIFS(Tabel1[Beloeb],INDIRECT("Tabel1["&$A137&"]"),$C137,INDIRECT("Tabel1["&$B137&"]"),$C137,Tabel1[DWID_Sted],Beregninger!N$129,Tabel1[DWID_Dato],">="&Beregninger!N$130,Tabel1[DWID_Dato],"<="&Beregninger!N$131) -> 0 | O137: =SUMIFS(Tabel1[Kvantum],INDIRECT("Tabel1["&$A137&"]"),$C137,INDIRECT("Tabel1["&$B137&"]"),$C137,Tabel1[DWID_Sted],Beregninger!N$129,Tabel1[DWID_Dato],">="&Beregninger!N$130,Tabel1[DWID_Dato],"<="&Beregninger!N$131) -> 0 | Q137: =SUMIFS(Tabel1[Beloeb],INDIRECT("Tabel1["&$A137&"]"),$C137,INDIRECT("Tabel1["&$B137&"]"),$C137,Tabel1[DWID_Sted],Beregninger!Q$129,Tabel1[DWID_Dato],">="&Beregninger!Q$130,Tabel1[DWID_Dato],"<="&Beregninger!Q$131) -> 0 | R137: =SUMIFS(Tabel1[Kvantum],INDIRECT("Tabel1["&$A137&"]"),$C137,INDIRECT("Tabel1["&$B137&"]"),$C137,Tabel1[DWID_Sted],Beregninger!Q$129,Tabel1[DWID_Dato],">="&Beregninger!Q$130,Tabel1[DWID_Dato],"<="&Beregninger!Q$131) -> 0 | T137: =SUMIFS(Tabel1[Beloeb],INDIRECT("Tabel1["&$A137&"]"),$C137,INDIRECT("Tabel1["&$B137&"]"),$C137,Tabel1[DWID_Sted],Beregninger!T$129,Tabel1[DWID_Dato],">="&Beregninger!T$130,Tabel1[DWID_Dato],"<="&Beregninger!T$131) -> 0 | U137: =SUMIFS(Tabel1[Kvantum],INDIRECT("Tabel1["&$A137&"]"),$C137,INDIRECT("Tabel1["&$B137&"]"),$C137,Tabel1[DWID_Sted],Beregninger!T$129,Tabel1[DWID_Dato],">="&Beregninger!T$130,Tabel1[DWID_Dato],"<="&Beregninger!T$131) -> 0 | W137: =SUMIFS(Tabel1[Beloeb],INDIRECT("Tabel1["&$A137&"]"),$C137,INDIRECT("Tabel1["&$B137&"]"),$C137,Tabel1[DWID_Sted],Beregninger!W$129,Tabel1[DWID_Dato],">="&Beregninger!W$130,Tabel1[DWID_Dato],"<="&Beregninger!W$131) -> 0 | X137: =SUMIFS(Tabel1[Kvantum],INDIRECT("Tabel1["&$A137&"]"),$C137,INDIRECT("Tabel1["&$B137&"]"),$C137,Tabel1[DWID_Sted],Beregninger!W$129,Tabel1[DWID_Dato],">="&Beregninger!W$130,Tabel1[DWID_Dato],"<="&Beregninger!W$131) -> 0 | Z137: =SUMIFS(Tabel1[Beloeb],INDIRECT("Tabel1["&$A137&"]"),$C137,INDIRECT("Tabel1["&$B137&"]"),$C137,Tabel1[DWID_Sted],Beregninger!Z$129,Tabel1[DWID_Dato],">="&Beregninger!Z$130,Tabel1[DWID_Dato],"<="&Beregninger!Z$131) -> 0 | AA137: =SUMIFS(Tabel1[Kvantum],INDIRECT("Tabel1["&$A137&"]"),$C137,INDIRECT("Tabel1["&$B137&"]"),$C137,Tabel1[DWID_Sted],Beregninger!Z$129,Tabel1[DWID_Dato],">="&Beregninger!Z$130,Tabel1[DWID_Dato],"<="&Beregninger!Z$131) -> 0 | AC137: =SUMIFS(Tabel1[Beloeb],INDIRECT("Tabel1["&$A137&"]"),$C137,INDIRECT("Tabel1["&$B137&"]"),$C137,Tabel1[DWID_Sted],Beregninger!AC$129,Tabel1[DWID_Dato],">="&Beregninger!AC$130,Tabel1[DWID_Dato],"<="&Beregninger!AC$131) -> 0 | AD137: =SUMIFS(Tabel1[Kvantum],INDIRECT("Tabel1["&$A137&"]"),$C137,INDIRECT("Tabel1["&$B137&"]"),$C137,Tabel1[DWID_Sted],Beregninger!AC$129,Tabel1[DWID_Dato],">="&Beregninger!AC$130,Tabel1[DWID_Dato],"<="&Beregninger!AC$131) -> 0 | AF137: =SUMIFS(Tabel1[Beloeb],INDIRECT("Tabel1["&$A137&"]"),$C137,INDIRECT("Tabel1["&$B137&"]"),$C137,Tabel1[DWID_Sted],Beregninger!AF$129,Tabel1[DWID_Dato],">="&Beregninger!AF$130,Tabel1[DWID_Dato],"<="&Beregninger!AF$131) -> 0 | AG137: =SUMIFS(Tabel1[Kvantum],INDIRECT("Tabel1["&$A137&"]"),$C137,INDIRECT("Tabel1["&$B137&"]"),$C137,Tabel1[DWID_Sted],Beregninger!AF$129,Tabel1[DWID_Dato],">="&Beregninger!AF$130,Tabel1[DWID_Dato],"<="&Beregninger!AF$131) -> 0
A138: Små 1 | B138: Små 6 | C138: 1 | D138: Heraf Færdigblanding søer | E138: =SUMIFS(Tabel1[Beloeb],INDIRECT("Tabel1["&$A138&"]"),$C138,INDIRECT("Tabel1["&$B138&"]"),$C138,Tabel1[DWID_Sted],Beregninger!E$129,Tabel1[DWID_Dato],">="&Beregninger!E$130,Tabel1[DWID_Dato],"<="&Beregninger!E$131) -> 0 | F138: =SUMIFS(Tabel1[Kvantum],INDIRECT("Tabel1["&$A138&"]"),$C138,INDIRECT("Tabel1["&$B138&"]"),$C138,Tabel1[DWID_Sted],Beregninger!E$129,Tabel1[DWID_Dato],">="&Beregninger!E$130,Tabel1[DWID_Dato],"<="&Beregninger!E$131) -> 0 | H138: =SUMIFS(Tabel1[Beloeb],INDIRECT("Tabel1["&$A138&"]"),$C138,INDIRECT("Tabel1["&$B138&"]"),$C138,Tabel1[DWID_Sted],Beregninger!H$129,Tabel1[DWID_Dato],">="&Beregninger!H$130,Tabel1[DWID_Dato],"<="&Beregninger!H$131) -> 0 | I138: =SUMIFS(Tabel1[Kvantum],INDIRECT("Tabel1["&$A138&"]"),$C138,INDIRECT("Tabel1["&$B138&"]"),$C138,Tabel1[DWID_Sted],Beregninger!H$129,Tabel1[DWID_Dato],">="&Beregninger!H$130,Tabel1[DWID_Dato],"<="&Beregninger!H$131) -> 0 | K138: =SUMIFS(Tabel1[Beloeb],INDIRECT("Tabel1["&$A138&"]"),$C138,INDIRECT("Tabel1["&$B138&"]"),$C138,Tabel1[DWID_Sted],Beregninger!K$129,Tabel1[DWID_Dato],">="&Beregninger!K$130,Tabel1[DWID_Dato],"<="&Beregninger!K$131) -> 0 | L138: =SUMIFS(Tabel1[Kvantum],INDIRECT("Tabel1["&$A138&"]"),$C138,INDIRECT("Tabel1["&$B138&"]"),$C138,Tabel1[DWID_Sted],Beregninger!K$129,Tabel1[DWID_Dato],">="&Beregninger!K$130,Tabel1[DWID_Dato],"<="&Beregninger!K$131) -> 0 | N138: =SUMIFS(Tabel1[Beloeb],INDIRECT("Tabel1["&$A138&"]"),$C138,INDIRECT("Tabel1["&$B138&"]"),$C138,Tabel1[DWID_Sted],Beregninger!N$129,Tabel1[DWID_Dato],">="&Beregninger!N$130,Tabel1[DWID_Dato],"<="&Beregninger!N$131) -> 0 | O138: =SUMIFS(Tabel1[Kvantum],INDIRECT("Tabel1["&$A138&"]"),$C138,INDIRECT("Tabel1["&$B138&"]"),$C138,Tabel1[DWID_Sted],Beregninger!N$129,Tabel1[DWID_Dato],">="&Beregninger!N$130,Tabel1[DWID_Dato],"<="&Beregninger!N$131) -> 0 | Q138: =SUMIFS(Tabel1[Beloeb],INDIRECT("Tabel1["&$A138&"]"),$C138,INDIRECT("Tabel1["&$B138&"]"),$C138,Tabel1[DWID_Sted],Beregninger!Q$129,Tabel1[DWID_Dato],">="&Beregninger!Q$130,Tabel1[DWID_Dato],"<="&Beregninger!Q$131) -> 0 | R138: =SUMIFS(Tabel1[Kvantum],INDIRECT("Tabel1["&$A138&"]"),$C138,INDIRECT("Tabel1["&$B138&"]"),$C138,Tabel1[DWID_Sted],Beregninger!Q$129,Tabel1[DWID_Dato],">="&Beregninger!Q$130,Tabel1[DWID_Dato],"<="&Beregninger!Q$131) -> 0 | T138: =SUMIFS(Tabel1[Beloeb],INDIRECT("Tabel1["&$A138&"]"),$C138,INDIRECT("Tabel1["&$B138&"]"),$C138,Tabel1[DWID_Sted],Beregninger!T$129,Tabel1[DWID_Dato],">="&Beregninger!T$130,Tabel1[DWID_Dato],"<="&Beregninger!T$131) -> 0 | U138: =SUMIFS(Tabel1[Kvantum],INDIRECT("Tabel1["&$A138&"]"),$C138,INDIRECT("Tabel1["&$B138&"]"),$C138,Tabel1[DWID_Sted],Beregninger!T$129,Tabel1[DWID_Dato],">="&Beregninger!T$130,Tabel1[DWID_Dato],"<="&Beregninger!T$131) -> 0 | W138: =SUMIFS(Tabel1[Beloeb],INDIRECT("Tabel1["&$A138&"]"),$C138,INDIRECT("Tabel1["&$B138&"]"),$C138,Tabel1[DWID_Sted],Beregninger!W$129,Tabel1[DWID_Dato],">="&Beregninger!W$130,Tabel1[DWID_Dato],"<="&Beregninger!W$131) -> 0 | X138: =SUMIFS(Tabel1[Kvantum],INDIRECT("Tabel1["&$A138&"]"),$C138,INDIRECT("Tabel1["&$B138&"]"),$C138,Tabel1[DWID_Sted],Beregninger!W$129,Tabel1[DWID_Dato],">="&Beregninger!W$130,Tabel1[DWID_Dato],"<="&Beregninger!W$131) -> 0 | Z138: =SUMIFS(Tabel1[Beloeb],INDIRECT("Tabel1["&$A138&"]"),$C138,INDIRECT("Tabel1["&$B138&"]"),$C138,Tabel1[DWID_Sted],Beregninger!Z$129,Tabel1[DWID_Dato],">="&Beregninger!Z$130,Tabel1[DWID_Dato],"<="&Beregninger!Z$131) -> 0 | AA138: =SUMIFS(Tabel1[Kvantum],INDIRECT("Tabel1["&$A138&"]"),$C138,INDIRECT("Tabel1["&$B138&"]"),$C138,Tabel1[DWID_Sted],Beregninger!Z$129,Tabel1[DWID_Dato],">="&Beregninger!Z$130,Tabel1[DWID_Dato],"<="&Beregninger!Z$131) -> 0 | AC138: =SUMIFS(Tabel1[Beloeb],INDIRECT("Tabel1["&$A138&"]"),$C138,INDIRECT("Tabel1["&$B138&"]"),$C138,Tabel1[DWID_Sted],Beregninger!AC$129,Tabel1[DWID_Dato],">="&Beregninger!AC$130,Tabel1[DWID_Dato],"<="&Beregninger!AC$131) -> 0 | AD138: =SUMIFS(Tabel1[Kvantum],INDIRECT("Tabel1["&$A138&"]"),$C138,INDIRECT("Tabel1["&$B138&"]"),$C138,Tabel1[DWID_Sted],Beregninger!AC$129,Tabel1[DWID_Dato],">="&Beregninger!AC$130,Tabel1[DWID_Dato],"<="&Beregninger!AC$131) -> 0 | AF138: =SUMIFS(Tabel1[Beloeb],INDIRECT("Tabel1["&$A138&"]"),$C138,INDIRECT("Tabel1["&$B138&"]"),$C138,Tabel1[DWID_Sted],Beregninger!AF$129,Tabel1[DWID_Dato],">="&Beregninger!AF$130,Tabel1[DWID_Dato],"<="&Beregninger!AF$131) -> 0 | AG138: =SUMIFS(Tabel1[Kvantum],INDIRECT("Tabel1["&$A138&"]"),$C138,INDIRECT("Tabel1["&$B138&"]"),$C138,Tabel1[DWID_Sted],Beregninger!AF$129,Tabel1[DWID_Dato],">="&Beregninger!AF$130,Tabel1[DWID_Dato],"<="&Beregninger!AF$131) -> 0
A139: Små 1 | B139: Små 7 | C139: 1 | D139: Heraf Færdigblanding smågrise | E139: =SUMIFS(Tabel1[Beloeb],INDIRECT("Tabel1["&$A139&"]"),$C139,INDIRECT("Tabel1["&$B139&"]"),$C139,Tabel1[DWID_Sted],Beregninger!E$129,Tabel1[DWID_Dato],">="&Beregninger!E$130,Tabel1[DWID_Dato],"<="&Beregninger!E$131) -> 0 | F139: =SUMIFS(Tabel1[Kvantum],INDIRECT("Tabel1["&$A139&"]"),$C139,INDIRECT("Tabel1["&$B139&"]"),$C139,Tabel1[DWID_Sted],Beregninger!E$129,Tabel1[DWID_Dato],">="&Beregninger!E$130,Tabel1[DWID_Dato],"<="&Beregninger!E$131) -> 0 | H139: =SUMIFS(Tabel1[Beloeb],INDIRECT("Tabel1["&$A139&"]"),$C139,INDIRECT("Tabel1["&$B139&"]"),$C139,Tabel1[DWID_Sted],Beregninger!H$129,Tabel1[DWID_Dato],">="&Beregninger!H$130,Tabel1[DWID_Dato],"<="&Beregninger!H$131) -> 0 | I139: =SUMIFS(Tabel1[Kvantum],INDIRECT("Tabel1["&$A139&"]"),$C139,INDIRECT("Tabel1["&$B139&"]"),$C139,Tabel1[DWID_Sted],Beregninger!H$129,Tabel1[DWID_Dato],">="&Beregninger!H$130,Tabel1[DWID_Dato],"<="&Beregninger!H$131) -> 0 | K139: =SUMIFS(Tabel1[Beloeb],INDIRECT("Tabel1["&$A139&"]"),$C139,INDIRECT("Tabel1["&$B139&"]"),$C139,Tabel1[DWID_Sted],Beregninger!K$129,Tabel1[DWID_Dato],">="&Beregninger!K$130,Tabel1[DWID_Dato],"<="&Beregninger!K$131) -> 0 | L139: =SUMIFS(Tabel1[Kvantum],INDIRECT("Tabel1["&$A139&"]"),$C139,INDIRECT("Tabel1["&$B139&"]"),$C139,Tabel1[DWID_Sted],Beregninger!K$129,Tabel1[DWID_Dato],">="&Beregninger!K$130,Tabel1[DWID_Dato],"<="&Beregninger!K$131) -> 0 | N139: =SUMIFS(Tabel1[Beloeb],INDIRECT("Tabel1["&$A139&"]"),$C139,INDIRECT("Tabel1["&$B139&"]"),$C139,Tabel1[DWID_Sted],Beregninger!N$129,Tabel1[DWID_Dato],">="&Beregninger!N$130,Tabel1[DWID_Dato],"<="&Beregninger!N$131) -> 0 | O139: =SUMIFS(Tabel1[Kvantum],INDIRECT("Tabel1["&$A139&"]"),$C139,INDIRECT("Tabel1["&$B139&"]"),$C139,Tabel1[DWID_Sted],Beregninger!N$129,Tabel1[DWID_Dato],">="&Beregninger!N$130,Tabel1[DWID_Dato],"<="&Beregninger!N$131) -> 0 | Q139: =SUMIFS(Tabel1[Beloeb],INDIRECT("Tabel1["&$A139&"]"),$C139,INDIRECT("Tabel1["&$B139&"]"),$C139,Tabel1[DWID_Sted],Beregninger!Q$129,Tabel1[DWID_Dato],">="&Beregninger!Q$130,Tabel1[DWID_Dato],"<="&Beregninger!Q$131) -> 0 | R139: =SUMIFS(Tabel1[Kvantum],INDIRECT("Tabel1["&$A139&"]"),$C139,INDIRECT("Tabel1["&$B139&"]"),$C139,Tabel1[DWID_Sted],Beregninger!Q$129,Tabel1[DWID_Dato],">="&Beregninger!Q$130,Tabel1[DWID_Dato],"<="&Beregninger!Q$131) -> 0 | T139: =SUMIFS(Tabel1[Beloeb],INDIRECT("Tabel1["&$A139&"]"),$C139,INDIRECT("Tabel1["&$B139&"]"),$C139,Tabel1[DWID_Sted],Beregninger!T$129,Tabel1[DWID_Dato],">="&Beregninger!T$130,Tabel1[DWID_Dato],"<="&Beregninger!T$131) -> 0 | U139: =SUMIFS(Tabel1[Kvantum],INDIRECT("Tabel1["&$A139&"]"),$C139,INDIRECT("Tabel1["&$B139&"]"),$C139,Tabel1[DWID_Sted],Beregninger!T$129,Tabel1[DWID_Dato],">="&Beregninger!T$130,Tabel1[DWID_Dato],"<="&Beregninger!T$131) -> 0 | W139: =SUMIFS(Tabel1[Beloeb],INDIRECT("Tabel1["&$A139&"]"),$C139,INDIRECT("Tabel1["&$B139&"]"),$C139,Tabel1[DWID_Sted],Beregninger!W$129,Tabel1[DWID_Dato],">="&Beregninger!W$130,Tabel1[DWID_Dato],"<="&Beregninger!W$131) -> 0 | X139: =SUMIFS(Tabel1[Kvantum],INDIRECT("Tabel1["&$A139&"]"),$C139,INDIRECT("Tabel1["&$B139&"]"),$C139,Tabel1[DWID_Sted],Beregninger!W$129,Tabel1[DWID_Dato],">="&Beregninger!W$130,Tabel1[DWID_Dato],"<="&Beregninger!W$131) -> 0 | Z139: =SUMIFS(Tabel1[Beloeb],INDIRECT("Tabel1["&$A139&"]"),$C139,INDIRECT("Tabel1["&$B139&"]"),$C139,Tabel1[DWID_Sted],Beregninger!Z$129,Tabel1[DWID_Dato],">="&Beregninger!Z$130,Tabel1[DWID_Dato],"<="&Beregninger!Z$131) -> 0 | AA139: =SUMIFS(Tabel1[Kvantum],INDIRECT("Tabel1["&$A139&"]"),$C139,INDIRECT("Tabel1["&$B139&"]"),$C139,Tabel1[DWID_Sted],Beregninger!Z$129,Tabel1[DWID_Dato],">="&Beregninger!Z$130,Tabel1[DWID_Dato],"<="&Beregninger!Z$131) -> 0 | AC139: =SUMIFS(Tabel1[Beloeb],INDIRECT("Tabel1["&$A139&"]"),$C139,INDIRECT("Tabel1["&$B139&"]"),$C139,Tabel1[DWID_Sted],Beregninger!AC$129,Tabel1[DWID_Dato],">="&Beregninger!AC$130,Tabel1[DWID_Dato],"<="&Beregninger!AC$131) -> 0 | AD139: =SUMIFS(Tabel1[Kvantum],INDIRECT("Tabel1["&$A139&"]"),$C139,INDIRECT("Tabel1["&$B139&"]"),$C139,Tabel1[DWID_Sted],Beregninger!AC$129,Tabel1[DWID_Dato],">="&Beregninger!AC$130,Tabel1[DWID_Dato],"<="&Beregninger!AC$131) -> 0 | AF139: =SUMIFS(Tabel1[Beloeb],INDIRECT("Tabel1["&$A139&"]"),$C139,INDIRECT("Tabel1["&$B139&"]"),$C139,Tabel1[DWID_Sted],Beregninger!AF$129,Tabel1[DWID_Dato],">="&Beregninger!AF$130,Tabel1[DWID_Dato],"<="&Beregninger!AF$131) -> 0 | AG139: =SUMIFS(Tabel1[Kvantum],INDIRECT("Tabel1["&$A139&"]"),$C139,INDIRECT("Tabel1["&$B139&"]"),$C139,Tabel1[DWID_Sted],Beregninger!AF$129,Tabel1[DWID_Dato],">="&Beregninger!AF$130,Tabel1[DWID_Dato],"<="&Beregninger!AF$131) -> 0
A140: Små 1 | B140: Gen 2 | C140: 1 | D140: Dyrlæge om medicin | E140: =SUMIFS(Tabel1[Beloeb],INDIRECT("Tabel1["&$A140&"]"),$C140,INDIRECT("Tabel1["&$B140&"]"),$C140,Tabel1[DWID_Sted],Beregninger!E$129,Tabel1[DWID_Dato],">="&Beregninger!E$130,Tabel1[DWID_Dato],"<="&Beregninger!E$131) -> 0 | F140: =SUMIFS(Tabel1[Kvantum],INDIRECT("Tabel1["&$A140&"]"),$C140,INDIRECT("Tabel1["&$B140&"]"),$C140,Tabel1[DWID_Sted],Beregninger!E$129,Tabel1[DWID_Dato],">="&Beregninger!E$130,Tabel1[DWID_Dato],"<="&Beregninger!E$131) -> 0 | H140: =SUMIFS(Tabel1[Beloeb],INDIRECT("Tabel1["&$A140&"]"),$C140,INDIRECT("Tabel1["&$B140&"]"),$C140,Tabel1[DWID_Sted],Beregninger!H$129,Tabel1[DWID_Dato],">="&Beregninger!H$130,Tabel1[DWID_Dato],"<="&Beregninger!H$131) -> 0 | I140: =SUMIFS(Tabel1[Kvantum],INDIRECT("Tabel1["&$A140&"]"),$C140,INDIRECT("Tabel1["&$B140&"]"),$C140,Tabel1[DWID_Sted],Beregninger!H$129,Tabel1[DWID_Dato],">="&Beregninger!H$130,Tabel1[DWID_Dato],"<="&Beregninger!H$131) -> 0 | K140: =SUMIFS(Tabel1[Beloeb],INDIRECT("Tabel1["&$A140&"]"),$C140,INDIRECT("Tabel1["&$B140&"]"),$C140,Tabel1[DWID_Sted],Beregninger!K$129,Tabel1[DWID_Dato],">="&Beregninger!K$130,Tabel1[DWID_Dato],"<="&Beregninger!K$131) -> 0 | L140: =SUMIFS(Tabel1[Kvantum],INDIRECT("Tabel1["&$A140&"]"),$C140,INDIRECT("Tabel1["&$B140&"]"),$C140,Tabel1[DWID_Sted],Beregninger!K$129,Tabel1[DWID_Dato],">="&Beregninger!K$130,Tabel1[DWID_Dato],"<="&Beregninger!K$131) -> 0 | N140: =SUMIFS(Tabel1[Beloeb],INDIRECT("Tabel1["&$A140&"]"),$C140,INDIRECT("Tabel1["&$B140&"]"),$C140,Tabel1[DWID_Sted],Beregninger!N$129,Tabel1[DWID_Dato],">="&Beregninger!N$130,Tabel1[DWID_Dato],"<="&Beregninger!N$131) -> 0 | O140: =SUMIFS(Tabel1[Kvantum],INDIRECT("Tabel1["&$A140&"]"),$C140,INDIRECT("Tabel1["&$B140&"]"),$C140,Tabel1[DWID_Sted],Beregninger!N$129,Tabel1[DWID_Dato],">="&Beregninger!N$130,Tabel1[DWID_Dato],"<="&Beregninger!N$131) -> 0 | Q140: =SUMIFS(Tabel1[Beloeb],INDIRECT("Tabel1["&$A140&"]"),$C140,INDIRECT("Tabel1["&$B140&"]"),$C140,Tabel1[DWID_Sted],Beregninger!Q$129,Tabel1[DWID_Dato],">="&Beregninger!Q$130,Tabel1[DWID_Dato],"<="&Beregninger!Q$131) -> 0 | R140: =SUMIFS(Tabel1[Kvantum],INDIRECT("Tabel1["&$A140&"]"),$C140,INDIRECT("Tabel1["&$B140&"]"),$C140,Tabel1[DWID_Sted],Beregninger!Q$129,Tabel1[DWID_Dato],">="&Beregninger!Q$130,Tabel1[DWID_Dato],"<="&Beregninger!Q$131) -> 0 | T140: =SUMIFS(Tabel1[Beloeb],INDIRECT("Tabel1["&$A140&"]"),$C140,INDIRECT("Tabel1["&$B140&"]"),$C140,Tabel1[DWID_Sted],Beregninger!T$129,Tabel1[DWID_Dato],">="&Beregninger!T$130,Tabel1[DWID_Dato],"<="&Beregninger!T$131) -> 0 | U140: =SUMIFS(Tabel1[Kvantum],INDIRECT("Tabel1["&$A140&"]"),$C140,INDIRECT("Tabel1["&$B140&"]"),$C140,Tabel1[DWID_Sted],Beregninger!T$129,Tabel1[DWID_Dato],">="&Beregninger!T$130,Tabel1[DWID_Dato],"<="&Beregninger!T$131) -> 0 | W140: =SUMIFS(Tabel1[Beloeb],INDIRECT("Tabel1["&$A140&"]"),$C140,INDIRECT("Tabel1["&$B140&"]"),$C140,Tabel1[DWID_Sted],Beregninger!W$129,Tabel1[DWID_Dato],">="&Beregninger!W$130,Tabel1[DWID_Dato],"<="&Beregninger!W$131) -> 0 | X140: =SUMIFS(Tabel1[Kvantum],INDIRECT("Tabel1["&$A140&"]"),$C140,INDIRECT("Tabel1["&$B140&"]"),$C140,Tabel1[DWID_Sted],Beregninger!W$129,Tabel1[DWID_Dato],">="&Beregninger!W$130,Tabel1[DWID_Dato],"<="&Beregninger!W$131) -> 0 | Z140: =SUMIFS(Tabel1[Beloeb],INDIRECT("Tabel1["&$A140&"]"),$C140,INDIRECT("Tabel1["&$B140&"]"),$C140,Tabel1[DWID_Sted],Beregninger!Z$129,Tabel1[DWID_Dato],">="&Beregninger!Z$130,Tabel1[DWID_Dato],"<="&Beregninger!Z$131) -> 0 | AA140: =SUMIFS(Tabel1[Kvantum],INDIRECT("Tabel1["&$A140&"]"),$C140,INDIRECT("Tabel1["&$B140&"]"),$C140,Tabel1[DWID_Sted],Beregninger!Z$129,Tabel1[DWID_Dato],">="&Beregninger!Z$130,Tabel1[DWID_Dato],"<="&Beregninger!Z$131) -> 0 | AC140: =SUMIFS(Tabel1[Beloeb],INDIRECT("Tabel1["&$A140&"]"),$C140,INDIRECT("Tabel1["&$B140&"]"),$C140,Tabel1[DWID_Sted],Beregninger!AC$129,Tabel1[DWID_Dato],">="&Beregninger!AC$130,Tabel1[DWID_Dato],"<="&Beregninger!AC$131) -> 0 | AD140: =SUMIFS(Tabel1[Kvantum],INDIRECT("Tabel1["&$A140&"]"),$C140,INDIRECT("Tabel1["&$B140&"]"),$C140,Tabel1[DWID_Sted],Beregninger!AC$129,Tabel1[DWID_Dato],">="&Beregninger!AC$130,Tabel1[DWID_Dato],"<="&Beregninger!AC$131) -> 0 | AF140: =SUMIFS(Tabel1[Beloeb],INDIRECT("Tabel1["&$A140&"]"),$C140,INDIRECT("Tabel1["&$B140&"]"),$C140,Tabel1[DWID_Sted],Beregninger!AF$129,Tabel1[DWID_Dato],">="&Beregninger!AF$130,Tabel1[DWID_Dato],"<="&Beregninger!AF$131) -> 0 | AG140: =SUMIFS(Tabel1[Kvantum],INDIRECT("Tabel1["&$A140&"]"),$C140,INDIRECT("Tabel1["&$B140&"]"),$C140,Tabel1[DWID_Sted],Beregninger!AF$129,Tabel1[DWID_Dato],">="&Beregninger!AF$130,Tabel1[DWID_Dato],"<="&Beregninger!AF$131) -> 0
A141: Gen 3 | B141: Gen 3 | C141: 1 | D141: Vedligehold bygninger* | E141: =SUMIFS(Tabel1[Beloeb],INDIRECT("Tabel1["&$A141&"]"),$C141,INDIRECT("Tabel1["&$B141&"]"),$C141,Tabel1[DWID_Sted],Beregninger!E$129,Tabel1[DWID_Dato],">="&Beregninger!E$130,Tabel1[DWID_Dato],"<="&Beregninger!E$131) -> 0 | F141: =SUMIFS(Tabel1[Kvantum],INDIRECT("Tabel1["&$A141&"]"),$C141,INDIRECT("Tabel1["&$B141&"]"),$C141,Tabel1[DWID_Sted],Beregninger!E$129,Tabel1[DWID_Dato],">="&Beregninger!E$130,Tabel1[DWID_Dato],"<="&Beregninger!E$131) -> 0 | H141: =SUMIFS(Tabel1[Beloeb],INDIRECT("Tabel1["&$A141&"]"),$C141,INDIRECT("Tabel1["&$B141&"]"),$C141,Tabel1[DWID_Sted],Beregninger!H$129,Tabel1[DWID_Dato],">="&Beregninger!H$130,Tabel1[DWID_Dato],"<="&Beregninger!H$131) -> 0 | I141: =SUMIFS(Tabel1[Kvantum],INDIRECT("Tabel1["&$A141&"]"),$C141,INDIRECT("Tabel1["&$B141&"]"),$C141,Tabel1[DWID_Sted],Beregninger!H$129,Tabel1[DWID_Dato],">="&Beregninger!H$130,Tabel1[DWID_Dato],"<="&Beregninger!H$131) -> 0 | K141: =SUMIFS(Tabel1[Beloeb],INDIRECT("Tabel1["&$A141&"]"),$C141,INDIRECT("Tabel1["&$B141&"]"),$C141,Tabel1[DWID_Sted],Beregninger!K$129,Tabel1[DWID_Dato],">="&Beregninger!K$130,Tabel1[DWID_Dato],"<="&Beregninger!K$131) -> 0 | L141: =SUMIFS(Tabel1[Kvantum],INDIRECT("Tabel1["&$A141&"]"),$C141,INDIRECT("Tabel1["&$B141&"]"),$C141,Tabel1[DWID_Sted],Beregninger!K$129,Tabel1[DWID_Dato],">="&Beregninger!K$130,Tabel1[DWID_Dato],"<="&Beregninger!K$131) -> 0 | N141: =SUMIFS(Tabel1[Beloeb],INDIRECT("Tabel1["&$A141&"]"),$C141,INDIRECT("Tabel1["&$B141&"]"),$C141,Tabel1[DWID_Sted],Beregninger!N$129,Tabel1[DWID_Dato],">="&Beregninger!N$130,Tabel1[DWID_Dato],"<="&Beregninger!N$131) -> 0 | O141: =SUMIFS(Tabel1[Kvantum],INDIRECT("Tabel1["&$A141&"]"),$C141,INDIRECT("Tabel1["&$B141&"]"),$C141,Tabel1[DWID_Sted],Beregninger!N$129,Tabel1[DWID_Dato],">="&Beregninger!N$130,Tabel1[DWID_Dato],"<="&Beregninger!N$131) -> 0 | Q141: =SUMIFS(Tabel1[Beloeb],INDIRECT("Tabel1["&$A141&"]"),$C141,INDIRECT("Tabel1["&$B141&"]"),$C141,Tabel1[DWID_Sted],Beregninger!Q$129,Tabel1[DWID_Dato],">="&Beregninger!Q$130,Tabel1[DWID_Dato],"<="&Beregninger!Q$131) -> 0 | R141: =SUMIFS(Tabel1[Kvantum],INDIRECT("Tabel1["&$A141&"]"),$C141,INDIRECT("Tabel1["&$B141&"]"),$C141,Tabel1[DWID_Sted],Beregninger!Q$129,Tabel1[DWID_Dato],">="&Beregninger!Q$130,Tabel1[DWID_Dato],"<="&Beregninger!Q$131) -> 0 | T141: =SUMIFS(Tabel1[Beloeb],INDIRECT("Tabel1["&$A141&"]"),$C141,INDIRECT("Tabel1["&$B141&"]"),$C141,Tabel1[DWID_Sted],Beregninger!T$129,Tabel1[DWID_Dato],">="&Beregninger!T$130,Tabel1[DWID_Dato],"<="&Beregninger!T$131) -> 0 | U141: =SUMIFS(Tabel1[Kvantum],INDIRECT("Tabel1["&$A141&"]"),$C141,INDIRECT("Tabel1["&$B141&"]"),$C141,Tabel1[DWID_Sted],Beregninger!T$129,Tabel1[DWID_Dato],">="&Beregninger!T$130,Tabel1[DWID_Dato],"<="&Beregninger!T$131) -> 0 | W141: =SUMIFS(Tabel1[Beloeb],INDIRECT("Tabel1["&$A141&"]"),$C141,INDIRECT("Tabel1["&$B141&"]"),$C141,Tabel1[DWID_Sted],Beregninger!W$129,Tabel1[DWID_Dato],">="&Beregninger!W$130,Tabel1[DWID_Dato],"<="&Beregninger!W$131) -> 0 | X141: =SUMIFS(Tabel1[Kvantum],INDIRECT("Tabel1["&$A141&"]"),$C141,INDIRECT("Tabel1["&$B141&"]"),$C141,Tabel1[DWID_Sted],Beregninger!W$129,Tabel1[DWID_Dato],">="&Beregninger!W$130,Tabel1[DWID_Dato],"<="&Beregninger!W$131) -> 0 | Z141: =SUMIFS(Tabel1[Beloeb],INDIRECT("Tabel1["&$A141&"]"),$C141,INDIRECT("Tabel1["&$B141&"]"),$C141,Tabel1[DWID_Sted],Beregninger!Z$129,Tabel1[DWID_Dato],">="&Beregninger!Z$130,Tabel1[DWID_Dato],"<="&Beregninger!Z$131) -> 0 | AA141: =SUMIFS(Tabel1[Kvantum],INDIRECT("Tabel1["&$A141&"]"),$C141,INDIRECT("Tabel1["&$B141&"]"),$C141,Tabel1[DWID_Sted],Beregninger!Z$129,Tabel1[DWID_Dato],">="&Beregninger!Z$130,Tabel1[DWID_Dato],"<="&Beregninger!Z$131) -> 0 | AC141: =SUMIFS(Tabel1[Beloeb],INDIRECT("Tabel1["&$A141&"]"),$C141,INDIRECT("Tabel1["&$B141&"]"),$C141,Tabel1[DWID_Sted],Beregninger!AC$129,Tabel1[DWID_Dato],">="&Beregninger!AC$130,Tabel1[DWID_Dato],"<="&Beregninger!AC$131) -> 0 | AD141: =SUMIFS(Tabel1[Kvantum],INDIRECT("Tabel1["&$A141&"]"),$C141,INDIRECT("Tabel1["&$B141&"]"),$C141,Tabel1[DWID_Sted],Beregninger!AC$129,Tabel1[DWID_Dato],">="&Beregninger!AC$130,Tabel1[DWID_Dato],"<="&Beregninger!AC$131) -> 0 | AF141: =SUMIFS(Tabel1[Beloeb],INDIRECT("Tabel1["&$A141&"]"),$C141,INDIRECT("Tabel1["&$B141&"]"),$C141,Tabel1[DWID_Sted],Beregninger!AF$129,Tabel1[DWID_Dato],">="&Beregninger!AF$130,Tabel1[DWID_Dato],"<="&Beregninger!AF$131) -> 0 | AG141: =SUMIFS(Tabel1[Kvantum],INDIRECT("Tabel1["&$A141&"]"),$C141,INDIRECT("Tabel1["&$B141&"]"),$C141,Tabel1[DWID_Sted],Beregninger!AF$129,Tabel1[DWID_Dato],">="&Beregninger!AF$130,Tabel1[DWID_Dato],"<="&Beregninger!AF$131) -> 0
A142: Gen 4 | B142: Gen 4 | C142: 1 | D142: Vedligehold staldinv.* | E142: =SUMIFS(Tabel1[Beloeb],INDIRECT("Tabel1["&$A142&"]"),$C142,INDIRECT("Tabel1["&$B142&"]"),$C142,Tabel1[DWID_Sted],Beregninger!E$129,Tabel1[DWID_Dato],">="&Beregninger!E$130,Tabel1[DWID_Dato],"<="&Beregninger!E$131) -> 0 | F142: =SUMIFS(Tabel1[Kvantum],INDIRECT("Tabel1["&$A142&"]"),$C142,INDIRECT("Tabel1["&$B142&"]"),$C142,Tabel1[DWID_Sted],Beregninger!E$129,Tabel1[DWID_Dato],">="&Beregninger!E$130,Tabel1[DWID_Dato],"<="&Beregninger!E$131) -> 0 | H142: =SUMIFS(Tabel1[Beloeb],INDIRECT("Tabel1["&$A142&"]"),$C142,INDIRECT("Tabel1["&$B142&"]"),$C142,Tabel1[DWID_Sted],Beregninger!H$129,Tabel1[DWID_Dato],">="&Beregninger!H$130,Tabel1[DWID_Dato],"<="&Beregninger!H$131) -> 0 | I142: =SUMIFS(Tabel1[Kvantum],INDIRECT("Tabel1["&$A142&"]"),$C142,INDIRECT("Tabel1["&$B142&"]"),$C142,Tabel1[DWID_Sted],Beregninger!H$129,Tabel1[DWID_Dato],">="&Beregninger!H$130,Tabel1[DWID_Dato],"<="&Beregninger!H$131) -> 0 | K142: =SUMIFS(Tabel1[Beloeb],INDIRECT("Tabel1["&$A142&"]"),$C142,INDIRECT("Tabel1["&$B142&"]"),$C142,Tabel1[DWID_Sted],Beregninger!K$129,Tabel1[DWID_Dato],">="&Beregninger!K$130,Tabel1[DWID_Dato],"<="&Beregninger!K$131) -> 0 | L142: =SUMIFS(Tabel1[Kvantum],INDIRECT("Tabel1["&$A142&"]"),$C142,INDIRECT("Tabel1["&$B142&"]"),$C142,Tabel1[DWID_Sted],Beregninger!K$129,Tabel1[DWID_Dato],">="&Beregninger!K$130,Tabel1[DWID_Dato],"<="&Beregninger!K$131) -> 0 | N142: =SUMIFS(Tabel1[Beloeb],INDIRECT("Tabel1["&$A142&"]"),$C142,INDIRECT("Tabel1["&$B142&"]"),$C142,Tabel1[DWID_Sted],Beregninger!N$129,Tabel1[DWID_Dato],">="&Beregninger!N$130,Tabel1[DWID_Dato],"<="&Beregninger!N$131) -> 0 | O142: =SUMIFS(Tabel1[Kvantum],INDIRECT("Tabel1["&$A142&"]"),$C142,INDIRECT("Tabel1["&$B142&"]"),$C142,Tabel1[DWID_Sted],Beregninger!N$129,Tabel1[DWID_Dato],">="&Beregninger!N$130,Tabel1[DWID_Dato],"<="&Beregninger!N$131) -> 0 | Q142: =SUMIFS(Tabel1[Beloeb],INDIRECT("Tabel1["&$A142&"]"),$C142,INDIRECT("Tabel1["&$B142&"]"),$C142,Tabel1[DWID_Sted],Beregninger!Q$129,Tabel1[DWID_Dato],">="&Beregninger!Q$130,Tabel1[DWID_Dato],"<="&Beregninger!Q$131) -> 0 | R142: =SUMIFS(Tabel1[Kvantum],INDIRECT("Tabel1["&$A142&"]"),$C142,INDIRECT("Tabel1["&$B142&"]"),$C142,Tabel1[DWID_Sted],Beregninger!Q$129,Tabel1[DWID_Dato],">="&Beregninger!Q$130,Tabel1[DWID_Dato],"<="&Beregninger!Q$131) -> 0 | T142: =SUMIFS(Tabel1[Beloeb],INDIRECT("Tabel1["&$A142&"]"),$C142,INDIRECT("Tabel1["&$B142&"]"),$C142,Tabel1[DWID_Sted],Beregninger!T$129,Tabel1[DWID_Dato],">="&Beregninger!T$130,Tabel1[DWID_Dato],"<="&Beregninger!T$131) -> 0 | U142: =SUMIFS(Tabel1[Kvantum],INDIRECT("Tabel1["&$A142&"]"),$C142,INDIRECT("Tabel1["&$B142&"]"),$C142,Tabel1[DWID_Sted],Beregninger!T$129,Tabel1[DWID_Dato],">="&Beregninger!T$130,Tabel1[DWID_Dato],"<="&Beregninger!T$131) -> 0 | W142: =SUMIFS(Tabel1[Beloeb],INDIRECT("Tabel1["&$A142&"]"),$C142,INDIRECT("Tabel1["&$B142&"]"),$C142,Tabel1[DWID_Sted],Beregninger!W$129,Tabel1[DWID_Dato],">="&Beregninger!W$130,Tabel1[DWID_Dato],"<="&Beregninger!W$131) -> 0 | X142: =SUMIFS(Tabel1[Kvantum],INDIRECT("Tabel1["&$A142&"]"),$C142,INDIRECT("Tabel1["&$B142&"]"),$C142,Tabel1[DWID_Sted],Beregninger!W$129,Tabel1[DWID_Dato],">="&Beregninger!W$130,Tabel1[DWID_Dato],"<="&Beregninger!W$131) -> 0 | Z142: =SUMIFS(Tabel1[Beloeb],INDIRECT("Tabel1["&$A142&"]"),$C142,INDIRECT("Tabel1["&$B142&"]"),$C142,Tabel1[DWID_Sted],Beregninger!Z$129,Tabel1[DWID_Dato],">="&Beregninger!Z$130,Tabel1[DWID_Dato],"<="&Beregninger!Z$131) -> 0 | AA142: =SUMIFS(Tabel1[Kvantum],INDIRECT("Tabel1["&$A142&"]"),$C142,INDIRECT("Tabel1["&$B142&"]"),$C142,Tabel1[DWID_Sted],Beregninger!Z$129,Tabel1[DWID_Dato],">="&Beregninger!Z$130,Tabel1[DWID_Dato],"<="&Beregninger!Z$131) -> 0 | AC142: =SUMIFS(Tabel1[Beloeb],INDIRECT("Tabel1["&$A142&"]"),$C142,INDIRECT("Tabel1["&$B142&"]"),$C142,Tabel1[DWID_Sted],Beregninger!AC$129,Tabel1[DWID_Dato],">="&Beregninger!AC$130,Tabel1[DWID_Dato],"<="&Beregninger!AC$131) -> 0 | AD142: =SUMIFS(Tabel1[Kvantum],INDIRECT("Tabel1["&$A142&"]"),$C142,INDIRECT("Tabel1["&$B142&"]"),$C142,Tabel1[DWID_Sted],Beregninger!AC$129,Tabel1[DWID_Dato],">="&Beregninger!AC$130,Tabel1[DWID_Dato],"<="&Beregninger!AC$131) -> 0 | AF142: =SUMIFS(Tabel1[Beloeb],INDIRECT("Tabel1["&$A142&"]"),$C142,INDIRECT("Tabel1["&$B142&"]"),$C142,Tabel1[DWID_Sted],Beregninger!AF$129,Tabel1[DWID_Dato],">="&Beregninger!AF$130,Tabel1[DWID_Dato],"<="&Beregninger!AF$131) -> 0 | AG142: =SUMIFS(Tabel1[Kvantum],INDIRECT("Tabel1["&$A142&"]"),$C142,INDIRECT("Tabel1["&$B142&"]"),$C142,Tabel1[DWID_Sted],Beregninger!AF$129,Tabel1[DWID_Dato],">="&Beregninger!AF$130,Tabel1[DWID_Dato],"<="&Beregninger!AF$131) -> 0
D145: pr årsso
D146: Solgte smågrise beløb - kvantum | E146: =IFERROR(E133/E$128,0) -> 0 | F146: =IFERROR(F133/E$128,0) -> 0 | H146: =IFERROR(H133/H$128,0) -> 0 | I146: =IFERROR(I133/H$128,0) -> 0 | K146: =IFERROR(K133/K$128,0) -> 0 | L146: =IFERROR(L133/K$128,0) -> 0 | N146: =IFERROR(N133/N$128,0) -> 0 | O146: =IFERROR(O133/N$128,0) -> 0 | Q146: =IFERROR(Q133/Q$128,0) -> 0 | R146: =IFERROR(R133/Q$128,0) -> 0 | T146: =IFERROR(T133/T$128,0) -> 0 | U146: =IFERROR(U133/T$128,0) -> 0 | W146: =IFERROR(W133/W$128,0) -> 0 | X146: =IFERROR(X133/W$128,0) -> 0 | Z146: =IFERROR(Z133/Z$128,0) -> 0 | AA146: =IFERROR(AA133/Z$128,0) -> 0 | AC146: =IFERROR(AC133/AC$128,0) -> 0 | AD146: =IFERROR(AD133/AC$128,0) -> 0 | AF146: =IFERROR(AF133/AF$128,0) -> 0 | AG146: =IFERROR(AG133/AF$128,0) -> 0
D147: Foder | E147: =IFERROR(E134/E$128,0) -> 0 | F147: =IFERROR(F134/E$128,0) -> 0 | H147: =IFERROR(H134/H$128,0) -> 0 | I147: =IFERROR(I134/H$128,0) -> 0 | K147: =IFERROR(K134/K$128,0) -> 0 | L147: =IFERROR(L134/K$128,0) -> 0 | N147: =IFERROR(N134/N$128,0) -> 0 | O147: =IFERROR(O134/N$128,0) -> 0 | Q147: =IFERROR(Q134/Q$128,0) -> 0 | R147: =IFERROR(R134/Q$128,0) -> 0 | T147: =IFERROR(T134/T$128,0) -> 0 | U147: =IFERROR(U134/T$128,0) -> 0 | W147: =IFERROR(W134/W$128,0) -> 0 | X147: =IFERROR(X134/W$128,0) -> 0 | Z147: =IFERROR(Z134/Z$128,0) -> 0 | AA147: =IFERROR(AA134/Z$128,0) -> 0 | AC147: =IFERROR(AC134/AC$128,0) -> 0 | AD147: =IFERROR(AD134/AC$128,0) -> 0 | AF147: =IFERROR(AF134/AF$128,0) -> 0 | AG147: =IFERROR(AG134/AF$128,0) -> 0
D148: Heraf korn | E148: 0 | F148: 0 | H148: 0 | I148: 0 | K148: 0 | L148: 0 | N148: 0 | O148: 0 | Q148: 0 | R148: 0 | T148: 0 | U148: 0 | W148: 0 | X148: 0 | Z148: 0 | AA148: 0 | AC148: 0 | AD148: 0 | AF148: 0 | AG148: 0
D149: Heraf tilskudsfoder | E149: 0 | F149: 0 | H149: 0 | I149: 0 | K149: 0 | L149: 0 | N149: 0 | O149: 0 | Q149: 0 | R149: 0 | T149: 0 | U149: 0 | W149: 0 | X149: 0 | Z149: 0 | AA149: 0 | AC149: 0 | AD149: 0 | AF149: 0 | AG149: 0
D150: Heraf Smågriseblanding | E150: 0 | F150: 0 | H150: 0 | I150: 0 | K150: 0 | L150: 0 | N150: 0 | O150: 0 | Q150: 0 | R150: 0 | T150: 0 | U150: 0 | W150: 0 | X150: 0 | Z150: 0 | AA150: 0 | AC150: 0 | AD150: 0 | AF150: 0 | AG150: 0
D151: Heraf Færdigblanding søer | E151: 0 | F151: 0 | H151: 0 | I151: 0 | K151: 0 | L151: 0 | N151: 0 | O151: 0 | Q151: 0 | R151: 0 | T151: 0 | U151: 0 | W151: 0 | X151: 0 | Z151: 0 | AA151: 0 | AC151: 0 | AD151: 0 | AF151: 0 | AG151: 0
D152: Heraf Færdigblanding smågrise | E152: 0 | F152: 0 | H152: 0 | I152: 0 | K152: 0 | L152: 0 | N152: 0 | O152: 0 | Q152: 0 | R152: 0 | T152: 0 | U152: 0 | W152: 0 | X152: 0 | Z152: 0 | AA152: 0 | AC152: 0 | AD152: 0 | AF152: 0 | AG152: 0
D153: Dyrlæge om medicin | E153: 0 | F153: 0 | H153: 0 | I153: 0 | K153: 0 | L153: 0 | N153: 0 | O153: 0 | Q153: 0 | R153: 0 | T153: 0 | U153: 0 | W153: 0 | X153: 0 | Z153: 0 | AA153: 0 | AC153: 0 | AD153: 0 | AF153: 0 | AG153: 0
D154: Vedligehold bygninger* | E154: 0 | F154: 0 | H154: 0 | I154: 0 | K154: 0 | L154: 0 | N154: 0 | O154: 0 | Q154: 0 | R154: 0 | T154: 0 | U154: 0 | W154: 0 | X154: 0 | Z154: 0 | AA154: 0 | AC154: 0 | AD154: 0 | AF154: 0 | AG154: 0
D155: Vedligehold staldinv.* | E155: 0 | F155: 0 | H155: 0 | I155: 0 | K155: 0 | L155: 0 | N155: 0 | O155: 0 | Q155: 0 | R155: 0 | T155: 0 | U155: 0 | W155: 0 | X155: 0 | Z155: 0 | AA155: 0 | AC155: 0 | AD155: 0 | AF155: 0 | AG155: 0
D158: pr smågris
D159: Solgte smågrise beløb - kvantum | E159: =IFERROR(E133/F$133,0) -> 0 | F159: =IFERROR(F133/F$133,0) -> 0 | H159: =IFERROR(H133/I$133,0) -> 0 | I159: =IFERROR(I133/I$133,0) -> 0 | K159: =IFERROR(K133/L$133,0) -> 0 | L159: =IFERROR(L133/L$133,0) -> 0 | N159: =IFERROR(N133/O$133,0) -> 0 | O159: =IFERROR(O133/O$133,0) -> 0 | Q159: =IFERROR(Q133/R$133,0) -> 0 | R159: =IFERROR(R133/R$133,0) -> 0 | T159: =IFERROR(T133/U$133,0) -> 0 | U159: =IFERROR(U133/U$133,0) -> 0 | W159: =IFERROR(W133/X$133,0) -> 0 | X159: =IFERROR(X133/X$133,0) -> 0 | Z159: =IFERROR(Z133/AA$133,0) -> 0 | AA159: =IFERROR(AA133/AA$133,0) -> 0 | AC159: =IFERROR(AC133/AD$133,0) -> 0 | AD159: =IFERROR(AD133/AD$133,0) -> 0 | AF159: =IFERROR(AF133/AG$133,0) -> 0 | AG159: =IFERROR(AG133/AG$133,0) -> 0
D160: Foder | E160: =IFERROR(E134/F$133,0) -> 0 | F160: =IFERROR(F134/F$133,0) -> 0 | H160: =IFERROR(H134/I$133,0) -> 0 | I160: =IFERROR(I134/I$133,0) -> 0 | K160: =IFERROR(K134/L$133,0) -> 0 | L160: =IFERROR(L134/L$133,0) -> 0 | N160: =IFERROR(N134/O$133,0) -> 0 | O160: =IFERROR(O134/O$133,0) -> 0 | Q160: =IFERROR(Q134/R$133,0) -> 0 | R160: =IFERROR(R134/R$133,0) -> 0 | T160: =IFERROR(T134/U$133,0) -> 0 | U160: =IFERROR(U134/U$133,0) -> 0 | W160: =IFERROR(W134/X$133,0) -> 0 | X160: =IFERROR(X134/X$133,0) -> 0 | Z160: =IFERROR(Z134/AA$133,0) -> 0 | AA160: =IFERROR(AA134/AA$133,0) -> 0 | AC160: =IFERROR(AC134/AD$133,0) -> 0 | AD160: =IFERROR(AD134/AD$133,0) -> 0 | AF160: =IFERROR(AF134/AG$133,0) -> 0 | AG160: =IFERROR(AG134/AG$133,0) -> 0
D161: Heraf korn | E161: 0 | F161: 0 | H161: 0 | I161: 0 | K161: 0 | L161: 0 | N161: 0 | O161: 0 | Q161: 0 | R161: 0 | T161: 0 | U161: 0 | W161: 0 | X161: 0 | Z161: 0 | AA161: 0 | AC161: 0 | AD161: 0 | AF161: 0 | AG161: 0
D162: Heraf tilskudsfoder | E162: 0 | F162: 0 | H162: 0 | I162: 0 | K162: 0 | L162: 0 | N162: 0 | O162: 0 | Q162: 0 | R162: 0 | T162: 0 | U162: 0 | W162: 0 | X162: 0 | Z162: 0 | AA162: 0 | AC162: 0 | AD162: 0 | AF162: 0 | AG162: 0
D163: Heraf Smågriseblanding | E163: 0 | F163: 0 | H163: 0 | I163: 0 | K163: 0 | L163: 0 | N163: 0 | O163: 0 | Q163: 0 | R163: 0 | T163: 0 | U163: 0 | W163: 0 | X163: 0 | Z163: 0 | AA163: 0 | AC163: 0 | AD163: 0 | AF163: 0 | AG163: 0
D164: Heraf Færdigblanding søer | E164: 0 | F164: 0 | H164: 0 | I164: 0 | K164: 0 | L164: 0 | N164: 0 | O164: 0 | Q164: 0 | R164: 0 | T164: 0 | U164: 0 | W164: 0 | X164: 0 | Z164: 0 | AA164: 0 | AC164: 0 | AD164: 0 | AF164: 0 | AG164: 0
D165: Heraf Færdigblanding smågrise | E165: 0 | F165: 0 | H165: 0 | I165: 0 | K165: 0 | L165: 0 | N165: 0 | O165: 0 | Q165: 0 | R165: 0 | T165: 0 | U165: 0 | W165: 0 | X165: 0 | Z165: 0 | AA165: 0 | AC165: 0 | AD165: 0 | AF165: 0 | AG165: 0
D166: Dyrlæge om medicin | E166: 0 | F166: 0 | H166: 0 | I166: 0 | K166: 0 | L166: 0 | N166: 0 | O166: 0 | Q166: 0 | R166: 0 | T166: 0 | U166: 0 | W166: 0 | X166: 0 | Z166: 0 | AA166: 0 | AC166: 0 | AD166: 0 | AF166: 0 | AG166: 0
D167: Vedligehold bygninger* | E167: 0 | F167: 0 | H167: 0 | I167: 0 | K167: 0 | L167: 0 | N167: 0 | O167: 0 | Q167: 0 | R167: 0 | T167: 0 | U167: 0 | W167: 0 | X167: 0 | Z167: 0 | AA167: 0 | AC167: 0 | AD167: 0 | AF167: 0 | AG167: 0
D168: Vedligehold staldinv.* | E168: 0 | F168: 0 | H168: 0 | I168: 0 | K168: 0 | L168: 0 | N168: 0 | O168: 0 | Q168: 0 | R168: 0 | T168: 0 | U168: 0 | W168: 0 | X168: 0 | Z168: 0 | AA168: 0 | AC168: 0 | AD168: 0 | AF168: 0 | AG168: 0
D172: Gns kg pr slagtesvin | E172: =IF(Slagtesvin!E13="",IF(Slagtesvin!E22="","",Slagtesvin!E22),Slagtesvin!E13) -> 85 | H172: =IF(Slagtesvin!H13="",IF(Slagtesvin!H22="","",Slagtesvin!H22),Slagtesvin!H13) -> 85 | K172: =IF(Slagtesvin!K13="",IF(Slagtesvin!K22="","",Slagtesvin!K22),Slagtesvin!K13) -> 85 | N172: =IF(Slagtesvin!N13="",IF(Slagtesvin!N22="","",Slagtesvin!N22),Slagtesvin!N13) ->  | Q172: =IF(Slagtesvin!Q13="",IF(Slagtesvin!Q22="","",Slagtesvin!Q22),Slagtesvin!Q13) ->  | T172: =IF(Slagtesvin!T13="",IF(Slagtesvin!T22="","",Slagtesvin!T22),Slagtesvin!T13) ->  | W172: =IF(Slagtesvin!W13="",IF(Slagtesvin!W22="","",Slagtesvin!W22),Slagtesvin!W13) ->  | Z172: =IF(Slagtesvin!Z13="",IF(Slagtesvin!Z22="","",Slagtesvin!Z22),Slagtesvin!Z13) ->  | AC172: =IF(Slagtesvin!AC13="",IF(Slagtesvin!AC22="","",Slagtesvin!AC22),Slagtesvin!AC13) ->  | AF172: =IF(Slagtesvin!AF13="",IF(Slagtesvin!AF22="","",Slagtesvin!AF22),Slagtesvin!AF13) -> 
D173: Vælg ejendom (fra drop down) | E173: =IF(E174="","",IF(Slagtesvin!$E$17="",IF(Slagtesvin!E11="","",Slagtesvin!E11),Slagtesvin!$E$17)) -> Sted 9 | H173: =IF(H174="","",IF(Slagtesvin!$E$17="",IF(Slagtesvin!H11="","",Slagtesvin!H11),Slagtesvin!$E$17)) -> Sted 9 | K173: =IF(K174="","",IF(Slagtesvin!$E$17="",IF(Slagtesvin!K11="","",Slagtesvin!K11),Slagtesvin!$E$17)) -> Sted 9 | N173: =IF(N174="","",IF(Slagtesvin!$E$17="",IF(Slagtesvin!N11="","",Slagtesvin!N11),Slagtesvin!$E$17)) ->  | Q173: =IF(Q174="","",IF(Slagtesvin!$E$17="",IF(Slagtesvin!Q11="","",Slagtesvin!Q11),Slagtesvin!$E$17)) ->  | T173: =IF(T174="","",IF(Slagtesvin!$E$17="",IF(Slagtesvin!T11="","",Slagtesvin!T11),Slagtesvin!$E$17)) ->  | W173: =IF(W174="","",IF(Slagtesvin!$E$17="",IF(Slagtesvin!W11="","",Slagtesvin!W11),Slagtesvin!$E$17)) ->  | Z173: =IF(Z174="","",IF(Slagtesvin!$E$17="",IF(Slagtesvin!Z11="","",Slagtesvin!Z11),Slagtesvin!$E$17)) ->  | AC173: =IF(AC174="","",IF(Slagtesvin!$E$17="",IF(Slagtesvin!AC11="","",Slagtesvin!AC11),Slagtesvin!$E$17)) ->  | AF173: =IF(AF174="","",IF(Slagtesvin!$E$17="",IF(Slagtesvin!AF11="","",Slagtesvin!AF11),Slagtesvin!$E$17)) -> 
D174: Vælg periode fra til (ååååmmdd) | E174: =IF(Slagtesvin!$E$8="",IF(Slagtesvin!E19="","",Slagtesvin!E19),Slagtesvin!$E$8) -> 20190101 | H174: =IF(Slagtesvin!$E$8="",IF(Slagtesvin!H19="","",Slagtesvin!H19),Slagtesvin!$E$8) -> 20190201 | K174: =IF(Slagtesvin!$E$8="",IF(Slagtesvin!K19="","",Slagtesvin!K19),Slagtesvin!$E$8) -> 20190301 | N174: =IF(Slagtesvin!$E$8="",IF(Slagtesvin!N19="","",Slagtesvin!N19),Slagtesvin!$E$8) ->  | Q174: =IF(Slagtesvin!$E$8="",IF(Slagtesvin!Q19="","",Slagtesvin!Q19),Slagtesvin!$E$8) ->  | T174: =IF(Slagtesvin!$E$8="",IF(Slagtesvin!T19="","",Slagtesvin!T19),Slagtesvin!$E$8) ->  | W174: =IF(Slagtesvin!$E$8="",IF(Slagtesvin!W19="","",Slagtesvin!W19),Slagtesvin!$E$8) ->  | Z174: =IF(Slagtesvin!$E$8="",IF(Slagtesvin!Z19="","",Slagtesvin!Z19),Slagtesvin!$E$8) ->  | AC174: =IF(Slagtesvin!$E$8="",IF(Slagtesvin!AC19="","",Slagtesvin!AC19),Slagtesvin!$E$8) ->  | AF174: =IF(Slagtesvin!$E$8="",IF(Slagtesvin!AF19="","",Slagtesvin!AF19),Slagtesvin!$E$8) -> 
E175: =IF(Slagtesvin!$E$9="",IF(Slagtesvin!E20="","",Slagtesvin!E20),Slagtesvin!$E$9) -> 20190131 | H175: =IF(Slagtesvin!$E$9="",IF(Slagtesvin!H20="","",Slagtesvin!H20),Slagtesvin!$E$9) -> 20190228 | K175: =IF(Slagtesvin!$E$9="",IF(Slagtesvin!K20="","",Slagtesvin!K20),Slagtesvin!$E$9) -> 20190331 | N175: =IF(Slagtesvin!$E$9="",IF(Slagtesvin!N20="","",Slagtesvin!N20),Slagtesvin!$E$9) ->  | Q175: =IF(Slagtesvin!$E$9="",IF(Slagtesvin!Q20="","",Slagtesvin!Q20),Slagtesvin!$E$9) ->  | T175: =IF(Slagtesvin!$E$9="",IF(Slagtesvin!T20="","",Slagtesvin!T20),Slagtesvin!$E$9) ->  | W175: =IF(Slagtesvin!$E$9="",IF(Slagtesvin!W20="","",Slagtesvin!W20),Slagtesvin!$E$9) ->  | Z175: =IF(Slagtesvin!$E$9="",IF(Slagtesvin!Z20="","",Slagtesvin!Z20),Slagtesvin!$E$9) ->  | AC175: =IF(Slagtesvin!$E$9="",IF(Slagtesvin!AC20="","",Slagtesvin!AC20),Slagtesvin!$E$9) ->  | AF175: =IF(Slagtesvin!$E$9="",IF(Slagtesvin!AF20="","",Slagtesvin!AF20),Slagtesvin!$E$9) -> 
A177: Slsvin 1 | B177: Slsvin 2 | C177: 1 | D177: Solgte slagtesvin beløb - kvantum | E177: =SUMIFS(Tabel1[Beloeb],INDIRECT("Tabel1["&$A177&"]"),$C177,INDIRECT("Tabel1["&$B177&"]"),$C177,Tabel1[DWID_Sted],Beregninger!E$173,Tabel1[DWID_Dato],">="&Beregninger!E$174,Tabel1[DWID_Dato],"<="&Beregninger!E$175) -> 636446.16 | F177: =SUMIFS(Tabel1[Kvantum],INDIRECT("Tabel1["&$A177&"]"),$C177,INDIRECT("Tabel1["&$B177&"]"),$C177,Tabel1[DWID_Sted],Beregninger!E$173,Tabel1[DWID_Dato],">="&Beregninger!E$174,Tabel1[DWID_Dato],"<="&Beregninger!E$175) -> 925 | H177: =SUMIFS(Tabel1[Beloeb],INDIRECT("Tabel1["&$A177&"]"),$C177,INDIRECT("Tabel1["&$B177&"]"),$C177,Tabel1[DWID_Sted],Beregninger!H$173,Tabel1[DWID_Dato],">="&Beregninger!H$174,Tabel1[DWID_Dato],"<="&Beregninger!H$175) -> 74579.03 | I177: =SUMIFS(Tabel1[Kvantum],INDIRECT("Tabel1["&$A177&"]"),$C177,INDIRECT("Tabel1["&$B177&"]"),$C177,Tabel1[DWID_Sted],Beregninger!H$173,Tabel1[DWID_Dato],">="&Beregninger!H$174,Tabel1[DWID_Dato],"<="&Beregninger!H$175) -> 108 | K177: =SUMIFS(Tabel1[Beloeb],INDIRECT("Tabel1["&$A177&"]"),$C177,INDIRECT("Tabel1["&$B177&"]"),$C177,Tabel1[DWID_Sted],Beregninger!K$173,Tabel1[DWID_Dato],">="&Beregninger!K$174,Tabel1[DWID_Dato],"<="&Beregninger!K$175) -> 61430.38 | L177: =SUMIFS(Tabel1[Kvantum],INDIRECT("Tabel1["&$A177&"]"),$C177,INDIRECT("Tabel1["&$B177&"]"),$C177,Tabel1[DWID_Sted],Beregninger!K$173,Tabel1[DWID_Dato],">="&Beregninger!K$174,Tabel1[DWID_Dato],"<="&Beregninger!K$175) -> 87 | N177: =SUMIFS(Tabel1[Beloeb],INDIRECT("Tabel1["&$A177&"]"),$C177,INDIRECT("Tabel1["&$B177&"]"),$C177,Tabel1[DWID_Sted],Beregninger!N$173,Tabel1[DWID_Dato],">="&Beregninger!N$174,Tabel1[DWID_Dato],"<="&Beregninger!N$175) -> 0 | O177: =SUMIFS(Tabel1[Kvantum],INDIRECT("Tabel1["&$A177&"]"),$C177,INDIRECT("Tabel1["&$B177&"]"),$C177,Tabel1[DWID_Sted],Beregninger!N$173,Tabel1[DWID_Dato],">="&Beregninger!N$174,Tabel1[DWID_Dato],"<="&Beregninger!N$175) -> 0 | Q177: =SUMIFS(Tabel1[Beloeb],INDIRECT("Tabel1["&$A177&"]"),$C177,INDIRECT("Tabel1["&$B177&"]"),$C177,Tabel1[DWID_Sted],Beregninger!Q$173,Tabel1[DWID_Dato],">="&Beregninger!Q$174,Tabel1[DWID_Dato],"<="&Beregninger!Q$175) -> 0 | R177: =SUMIFS(Tabel1[Kvantum],INDIRECT("Tabel1["&$A177&"]"),$C177,INDIRECT("Tabel1["&$B177&"]"),$C177,Tabel1[DWID_Sted],Beregninger!Q$173,Tabel1[DWID_Dato],">="&Beregninger!Q$174,Tabel1[DWID_Dato],"<="&Beregninger!Q$175) -> 0 | T177: =SUMIFS(Tabel1[Beloeb],INDIRECT("Tabel1["&$A177&"]"),$C177,INDIRECT("Tabel1["&$B177&"]"),$C177,Tabel1[DWID_Sted],Beregninger!T$173,Tabel1[DWID_Dato],">="&Beregninger!T$174,Tabel1[DWID_Dato],"<="&Beregninger!T$175) -> 0 | U177: =SUMIFS(Tabel1[Kvantum],INDIRECT("Tabel1["&$A177&"]"),$C177,INDIRECT("Tabel1["&$B177&"]"),$C177,Tabel1[DWID_Sted],Beregninger!T$173,Tabel1[DWID_Dato],">="&Beregninger!T$174,Tabel1[DWID_Dato],"<="&Beregninger!T$175) -> 0 | W177: =SUMIFS(Tabel1[Beloeb],INDIRECT("Tabel1["&$A177&"]"),$C177,INDIRECT("Tabel1["&$B177&"]"),$C177,Tabel1[DWID_Sted],Beregninger!W$173,Tabel1[DWID_Dato],">="&Beregninger!W$174,Tabel1[DWID_Dato],"<="&Beregninger!W$175) -> 0 | X177: =SUMIFS(Tabel1[Kvantum],INDIRECT("Tabel1["&$A177&"]"),$C177,INDIRECT("Tabel1["&$B177&"]"),$C177,Tabel1[DWID_Sted],Beregninger!W$173,Tabel1[DWID_Dato],">="&Beregninger!W$174,Tabel1[DWID_Dato],"<="&Beregninger!W$175) -> 0 | Z177: =SUMIFS(Tabel1[Beloeb],INDIRECT("Tabel1["&$A177&"]"),$C177,INDIRECT("Tabel1["&$B177&"]"),$C177,Tabel1[DWID_Sted],Beregninger!Z$173,Tabel1[DWID_Dato],">="&Beregninger!Z$174,Tabel1[DWID_Dato],"<="&Beregninger!Z$175) -> 0 | AA177: =SUMIFS(Tabel1[Kvantum],INDIRECT("Tabel1["&$A177&"]"),$C177,INDIRECT("Tabel1["&$B177&"]"),$C177,Tabel1[DWID_Sted],Beregninger!Z$173,Tabel1[DWID_Dato],">="&Beregninger!Z$174,Tabel1[DWID_Dato],"<="&Beregninger!Z$175) -> 0 | AC177: =SUMIFS(Tabel1[Beloeb],INDIRECT("Tabel1["&$A177&"]"),$C177,INDIRECT("Tabel1["&$B177&"]"),$C177,Tabel1[DWID_Sted],Beregninger!AC$173,Tabel1[DWID_Dato],">="&Beregninger!AC$174,Tabel1[DWID_Dato],"<="&Beregninger!AC$175) -> 0 | AD177: =SUMIFS(Tabel1[Kvantum],INDIRECT("Tabel1["&$A177&"]"),$C177,INDIRECT("Tabel1["&$B177&"]"),$C177,Tabel1[DWID_Sted],Beregninger!AC$173,Tabel1[DWID_Dato],">="&Beregninger!AC$174,Tabel1[DWID_Dato],"<="&Beregninger!AC$175) -> 0 | AF177: =SUMIFS(Tabel1[Beloeb],INDIRECT("Tabel1["&$A177&"]"),$C177,INDIRECT("Tabel1["&$B177&"]"),$C177,Tabel1[DWID_Sted],Beregninger!AF$173,Tabel1[DWID_Dato],">="&Beregninger!AF$174,Tabel1[DWID_Dato],"<="&Beregninger!AF$175) -> 0 | AG177: =SUMIFS(Tabel1[Kvantum],INDIRECT("Tabel1["&$A177&"]"),$C177,INDIRECT("Tabel1["&$B177&"]"),$C177,Tabel1[DWID_Sted],Beregninger!AF$173,Tabel1[DWID_Dato],">="&Beregninger!AF$174,Tabel1[DWID_Dato],"<="&Beregninger!AF$175) -> 0
A178: Slsvin 1 | B178: Gen 1 | C178: 1 | D178: Foder | E178: =SUMIFS(Tabel1[Beloeb],INDIRECT("Tabel1["&$A178&"]"),$C178,INDIRECT("Tabel1["&$B178&"]"),$C178,Tabel1[DWID_Sted],Beregninger!E$173,Tabel1[DWID_Dato],">="&Beregninger!E$174,Tabel1[DWID_Dato],"<="&Beregninger!E$175) -> -54979.68 | F178: =SUMIFS(Tabel1[Kvantum],INDIRECT("Tabel1["&$A178&"]"),$C178,INDIRECT("Tabel1["&$B178&"]"),$C178,Tabel1[DWID_Sted],Beregninger!E$173,Tabel1[DWID_Dato],">="&Beregninger!E$174,Tabel1[DWID_Dato],"<="&Beregninger!E$175) -> -33571 | H178: =SUMIFS(Tabel1[Beloeb],INDIRECT("Tabel1["&$A178&"]"),$C178,INDIRECT("Tabel1["&$B178&"]"),$C178,Tabel1[DWID_Sted],Beregninger!H$173,Tabel1[DWID_Dato],">="&Beregninger!H$174,Tabel1[DWID_Dato],"<="&Beregninger!H$175) -> -18786.2 | I178: =SUMIFS(Tabel1[Kvantum],INDIRECT("Tabel1["&$A178&"]"),$C178,INDIRECT("Tabel1["&$B178&"]"),$C178,Tabel1[DWID_Sted],Beregninger!H$173,Tabel1[DWID_Dato],">="&Beregninger!H$174,Tabel1[DWID_Dato],"<="&Beregninger!H$175) -> -11890 | K178: =SUMIFS(Tabel1[Beloeb],INDIRECT("Tabel1["&$A178&"]"),$C178,INDIRECT("Tabel1["&$B178&"]"),$C178,Tabel1[DWID_Sted],Beregninger!K$173,Tabel1[DWID_Dato],">="&Beregninger!K$174,Tabel1[DWID_Dato],"<="&Beregninger!K$175) -> -38631 | L178: =SUMIFS(Tabel1[Kvantum],INDIRECT("Tabel1["&$A178&"]"),$C178,INDIRECT("Tabel1["&$B178&"]"),$C178,Tabel1[DWID_Sted],Beregninger!K$173,Tabel1[DWID_Dato],">="&Beregninger!K$174,Tabel1[DWID_Dato],"<="&Beregninger!K$175) -> -24450 | N178: =SUMIFS(Tabel1[Beloeb],INDIRECT("Tabel1["&$A178&"]"),$C178,INDIRECT("Tabel1["&$B178&"]"),$C178,Tabel1[DWID_Sted],Beregninger!N$173,Tabel1[DWID_Dato],">="&Beregninger!N$174,Tabel1[DWID_Dato],"<="&Beregninger!N$175) -> 0 | O178: =SUMIFS(Tabel1[Kvantum],INDIRECT("Tabel1["&$A178&"]"),$C178,INDIRECT("Tabel1["&$B178&"]"),$C178,Tabel1[DWID_Sted],Beregninger!N$173,Tabel1[DWID_Dato],">="&Beregninger!N$174,Tabel1[DWID_Dato],"<="&Beregninger!N$175) -> 0 | Q178: =SUMIFS(Tabel1[Beloeb],INDIRECT("Tabel1["&$A178&"]"),$C178,INDIRECT("Tabel1["&$B178&"]"),$C178,Tabel1[DWID_Sted],Beregninger!Q$173,Tabel1[DWID_Dato],">="&Beregninger!Q$174,Tabel1[DWID_Dato],"<="&Beregninger!Q$175) -> 0 | R178: =SUMIFS(Tabel1[Kvantum],INDIRECT("Tabel1["&$A178&"]"),$C178,INDIRECT("Tabel1["&$B178&"]"),$C178,Tabel1[DWID_Sted],Beregninger!Q$173,Tabel1[DWID_Dato],">="&Beregninger!Q$174,Tabel1[DWID_Dato],"<="&Beregninger!Q$175) -> 0 | T178: =SUMIFS(Tabel1[Beloeb],INDIRECT("Tabel1["&$A178&"]"),$C178,INDIRECT("Tabel1["&$B178&"]"),$C178,Tabel1[DWID_Sted],Beregninger!T$173,Tabel1[DWID_Dato],">="&Beregninger!T$174,Tabel1[DWID_Dato],"<="&Beregninger!T$175) -> 0 | U178: =SUMIFS(Tabel1[Kvantum],INDIRECT("Tabel1["&$A178&"]"),$C178,INDIRECT("Tabel1["&$B178&"]"),$C178,Tabel1[DWID_Sted],Beregninger!T$173,Tabel1[DWID_Dato],">="&Beregninger!T$174,Tabel1[DWID_Dato],"<="&Beregninger!T$175) -> 0 | W178: =SUMIFS(Tabel1[Beloeb],INDIRECT("Tabel1["&$A178&"]"),$C178,INDIRECT("Tabel1["&$B178&"]"),$C178,Tabel1[DWID_Sted],Beregninger!W$173,Tabel1[DWID_Dato],">="&Beregninger!W$174,Tabel1[DWID_Dato],"<="&Beregninger!W$175) -> 0 | X178: =SUMIFS(Tabel1[Kvantum],INDIRECT("Tabel1["&$A178&"]"),$C178,INDIRECT("Tabel1["&$B178&"]"),$C178,Tabel1[DWID_Sted],Beregninger!W$173,Tabel1[DWID_Dato],">="&Beregninger!W$174,Tabel1[DWID_Dato],"<="&Beregninger!W$175) -> 0 | Z178: =SUMIFS(Tabel1[Beloeb],INDIRECT("Tabel1["&$A178&"]"),$C178,INDIRECT("Tabel1["&$B178&"]"),$C178,Tabel1[DWID_Sted],Beregninger!Z$173,Tabel1[DWID_Dato],">="&Beregninger!Z$174,Tabel1[DWID_Dato],"<="&Beregninger!Z$175) -> 0 | AA178: =SUMIFS(Tabel1[Kvantum],INDIRECT("Tabel1["&$A178&"]"),$C178,INDIRECT("Tabel1["&$B178&"]"),$C178,Tabel1[DWID_Sted],Beregninger!Z$173,Tabel1[DWID_Dato],">="&Beregninger!Z$174,Tabel1[DWID_Dato],"<="&Beregninger!Z$175) -> 0 | AC178: =SUMIFS(Tabel1[Beloeb],INDIRECT("Tabel1["&$A178&"]"),$C178,INDIRECT("Tabel1["&$B178&"]"),$C178,Tabel1[DWID_Sted],Beregninger!AC$173,Tabel1[DWID_Dato],">="&Beregninger!AC$174,Tabel1[DWID_Dato],"<="&Beregninger!AC$175) -> 0 | AD178: =SUMIFS(Tabel1[Kvantum],INDIRECT("Tabel1["&$A178&"]"),$C178,INDIRECT("Tabel1["&$B178&"]"),$C178,Tabel1[DWID_Sted],Beregninger!AC$173,Tabel1[DWID_Dato],">="&Beregninger!AC$174,Tabel1[DWID_Dato],"<="&Beregninger!AC$175) -> 0 | AF178: =SUMIFS(Tabel1[Beloeb],INDIRECT("Tabel1["&$A178&"]"),$C178,INDIRECT("Tabel1["&$B178&"]"),$C178,Tabel1[DWID_Sted],Beregninger!AF$173,Tabel1[DWID_Dato],">="&Beregninger!AF$174,Tabel1[DWID_Dato],"<="&Beregninger!AF$175) -> 0 | AG178: =SUMIFS(Tabel1[Kvantum],INDIRECT("Tabel1["&$A178&"]"),$C178,INDIRECT("Tabel1["&$B178&"]"),$C178,Tabel1[DWID_Sted],Beregninger!AF$173,Tabel1[DWID_Dato],">="&Beregninger!AF$174,Tabel1[DWID_Dato],"<="&Beregninger!AF$175) -> 0
A179: Slsvin 1 | B179: Små 3 | C179: 1 | D179: Heraf korn | E179: =SUMIFS(Tabel1[Beloeb],INDIRECT("Tabel1["&$A179&"]"),$C179,INDIRECT("Tabel1["&$B179&"]"),$C179,Tabel1[DWID_Sted],Beregninger!E$173,Tabel1[DWID_Dato],">="&Beregninger!E$174,Tabel1[DWID_Dato],"<="&Beregninger!E$175) -> 0 | F179: =SUMIFS(Tabel1[Kvantum],INDIRECT("Tabel1["&$A179&"]"),$C179,INDIRECT("Tabel1["&$B179&"]"),$C179,Tabel1[DWID_Sted],Beregninger!E$173,Tabel1[DWID_Dato],">="&Beregninger!E$174,Tabel1[DWID_Dato],"<="&Beregninger!E$175) -> 0 | H179: =SUMIFS(Tabel1[Beloeb],INDIRECT("Tabel1["&$A179&"]"),$C179,INDIRECT("Tabel1["&$B179&"]"),$C179,Tabel1[DWID_Sted],Beregninger!H$173,Tabel1[DWID_Dato],">="&Beregninger!H$174,Tabel1[DWID_Dato],"<="&Beregninger!H$175) -> 0 | I179: =SUMIFS(Tabel1[Kvantum],INDIRECT("Tabel1["&$A179&"]"),$C179,INDIRECT("Tabel1["&$B179&"]"),$C179,Tabel1[DWID_Sted],Beregninger!H$173,Tabel1[DWID_Dato],">="&Beregninger!H$174,Tabel1[DWID_Dato],"<="&Beregninger!H$175) -> 0 | K179: =SUMIFS(Tabel1[Beloeb],INDIRECT("Tabel1["&$A179&"]"),$C179,INDIRECT("Tabel1["&$B179&"]"),$C179,Tabel1[DWID_Sted],Beregninger!K$173,Tabel1[DWID_Dato],">="&Beregninger!K$174,Tabel1[DWID_Dato],"<="&Beregninger!K$175) -> 0 | L179: =SUMIFS(Tabel1[Kvantum],INDIRECT("Tabel1["&$A179&"]"),$C179,INDIRECT("Tabel1["&$B179&"]"),$C179,Tabel1[DWID_Sted],Beregninger!K$173,Tabel1[DWID_Dato],">="&Beregninger!K$174,Tabel1[DWID_Dato],"<="&Beregninger!K$175) -> 0 | N179: =SUMIFS(Tabel1[Beloeb],INDIRECT("Tabel1["&$A179&"]"),$C179,INDIRECT("Tabel1["&$B179&"]"),$C179,Tabel1[DWID_Sted],Beregninger!N$173,Tabel1[DWID_Dato],">="&Beregninger!N$174,Tabel1[DWID_Dato],"<="&Beregninger!N$175) -> 0 | O179: =SUMIFS(Tabel1[Kvantum],INDIRECT("Tabel1["&$A179&"]"),$C179,INDIRECT("Tabel1["&$B179&"]"),$C179,Tabel1[DWID_Sted],Beregninger!N$173,Tabel1[DWID_Dato],">="&Beregninger!N$174,Tabel1[DWID_Dato],"<="&Beregninger!N$175) -> 0 | Q179: =SUMIFS(Tabel1[Beloeb],INDIRECT("Tabel1["&$A179&"]"),$C179,INDIRECT("Tabel1["&$B179&"]"),$C179,Tabel1[DWID_Sted],Beregninger!Q$173,Tabel1[DWID_Dato],">="&Beregninger!Q$174,Tabel1[DWID_Dato],"<="&Beregninger!Q$175) -> 0 | R179: =SUMIFS(Tabel1[Kvantum],INDIRECT("Tabel1["&$A179&"]"),$C179,INDIRECT("Tabel1["&$B179&"]"),$C179,Tabel1[DWID_Sted],Beregninger!Q$173,Tabel1[DWID_Dato],">="&Beregninger!Q$174,Tabel1[DWID_Dato],"<="&Beregninger!Q$175) -> 0 | T179: =SUMIFS(Tabel1[Beloeb],INDIRECT("Tabel1["&$A179&"]"),$C179,INDIRECT("Tabel1["&$B179&"]"),$C179,Tabel1[DWID_Sted],Beregninger!T$173,Tabel1[DWID_Dato],">="&Beregninger!T$174,Tabel1[DWID_Dato],"<="&Beregninger!T$175) -> 0 | U179: =SUMIFS(Tabel1[Kvantum],INDIRECT("Tabel1["&$A179&"]"),$C179,INDIRECT("Tabel1["&$B179&"]"),$C179,Tabel1[DWID_Sted],Beregninger!T$173,Tabel1[DWID_Dato],">="&Beregninger!T$174,Tabel1[DWID_Dato],"<="&Beregninger!T$175) -> 0 | W179: =SUMIFS(Tabel1[Beloeb],INDIRECT("Tabel1["&$A179&"]"),$C179,INDIRECT("Tabel1["&$B179&"]"),$C179,Tabel1[DWID_Sted],Beregninger!W$173,Tabel1[DWID_Dato],">="&Beregninger!W$174,Tabel1[DWID_Dato],"<="&Beregninger!W$175) -> 0 | X179: =SUMIFS(Tabel1[Kvantum],INDIRECT("Tabel1["&$A179&"]"),$C179,INDIRECT("Tabel1["&$B179&"]"),$C179,Tabel1[DWID_Sted],Beregninger!W$173,Tabel1[DWID_Dato],">="&Beregninger!W$174,Tabel1[DWID_Dato],"<="&Beregninger!W$175) -> 0 | Z179: =SUMIFS(Tabel1[Beloeb],INDIRECT("Tabel1["&$A179&"]"),$C179,INDIRECT("Tabel1["&$B179&"]"),$C179,Tabel1[DWID_Sted],Beregninger!Z$173,Tabel1[DWID_Dato],">="&Beregninger!Z$174,Tabel1[DWID_Dato],"<="&Beregninger!Z$175) -> 0 | AA179: =SUMIFS(Tabel1[Kvantum],INDIRECT("Tabel1["&$A179&"]"),$C179,INDIRECT("Tabel1["&$B179&"]"),$C179,Tabel1[DWID_Sted],Beregninger!Z$173,Tabel1[DWID_Dato],">="&Beregninger!Z$174,Tabel1[DWID_Dato],"<="&Beregninger!Z$175) -> 0 | AC179: =SUMIFS(Tabel1[Beloeb],INDIRECT("Tabel1["&$A179&"]"),$C179,INDIRECT("Tabel1["&$B179&"]"),$C179,Tabel1[DWID_Sted],Beregninger!AC$173,Tabel1[DWID_Dato],">="&Beregninger!AC$174,Tabel1[DWID_Dato],"<="&Beregninger!AC$175) -> 0 | AD179: =SUMIFS(Tabel1[Kvantum],INDIRECT("Tabel1["&$A179&"]"),$C179,INDIRECT("Tabel1["&$B179&"]"),$C179,Tabel1[DWID_Sted],Beregninger!AC$173,Tabel1[DWID_Dato],">="&Beregninger!AC$174,Tabel1[DWID_Dato],"<="&Beregninger!AC$175) -> 0 | AF179: =SUMIFS(Tabel1[Beloeb],INDIRECT("Tabel1["&$A179&"]"),$C179,INDIRECT("Tabel1["&$B179&"]"),$C179,Tabel1[DWID_Sted],Beregninger!AF$173,Tabel1[DWID_Dato],">="&Beregninger!AF$174,Tabel1[DWID_Dato],"<="&Beregninger!AF$175) -> 0 | AG179: =SUMIFS(Tabel1[Kvantum],INDIRECT("Tabel1["&$A179&"]"),$C179,INDIRECT("Tabel1["&$B179&"]"),$C179,Tabel1[DWID_Sted],Beregninger!AF$173,Tabel1[DWID_Dato],">="&Beregninger!AF$174,Tabel1[DWID_Dato],"<="&Beregninger!AF$175) -> 0
A180: Slsvin 1 | B180: Små 4 | C180: 1 | D180: Heraf tilskudsfoder | E180: =SUMIFS(Tabel1[Beloeb],INDIRECT("Tabel1["&$A180&"]"),$C180,INDIRECT("Tabel1["&$B180&"]"),$C180,Tabel1[DWID_Sted],Beregninger!E$173,Tabel1[DWID_Dato],">="&Beregninger!E$174,Tabel1[DWID_Dato],"<="&Beregninger!E$175) -> 0 | F180: =SUMIFS(Tabel1[Kvantum],INDIRECT("Tabel1["&$A180&"]"),$C180,INDIRECT("Tabel1["&$B180&"]"),$C180,Tabel1[DWID_Sted],Beregninger!E$173,Tabel1[DWID_Dato],">="&Beregninger!E$174,Tabel1[DWID_Dato],"<="&Beregninger!E$175) -> 0 | H180: =SUMIFS(Tabel1[Beloeb],INDIRECT("Tabel1["&$A180&"]"),$C180,INDIRECT("Tabel1["&$B180&"]"),$C180,Tabel1[DWID_Sted],Beregninger!H$173,Tabel1[DWID_Dato],">="&Beregninger!H$174,Tabel1[DWID_Dato],"<="&Beregninger!H$175) -> 0 | I180: =SUMIFS(Tabel1[Kvantum],INDIRECT("Tabel1["&$A180&"]"),$C180,INDIRECT("Tabel1["&$B180&"]"),$C180,Tabel1[DWID_Sted],Beregninger!H$173,Tabel1[DWID_Dato],">="&Beregninger!H$174,Tabel1[DWID_Dato],"<="&Beregninger!H$175) -> 0 | K180: =SUMIFS(Tabel1[Beloeb],INDIRECT("Tabel1["&$A180&"]"),$C180,INDIRECT("Tabel1["&$B180&"]"),$C180,Tabel1[DWID_Sted],Beregninger!K$173,Tabel1[DWID_Dato],">="&Beregninger!K$174,Tabel1[DWID_Dato],"<="&Beregninger!K$175) -> 0 | L180: =SUMIFS(Tabel1[Kvantum],INDIRECT("Tabel1["&$A180&"]"),$C180,INDIRECT("Tabel1["&$B180&"]"),$C180,Tabel1[DWID_Sted],Beregninger!K$173,Tabel1[DWID_Dato],">="&Beregninger!K$174,Tabel1[DWID_Dato],"<="&Beregninger!K$175) -> 0 | N180: =SUMIFS(Tabel1[Beloeb],INDIRECT("Tabel1["&$A180&"]"),$C180,INDIRECT("Tabel1["&$B180&"]"),$C180,Tabel1[DWID_Sted],Beregninger!N$173,Tabel1[DWID_Dato],">="&Beregninger!N$174,Tabel1[DWID_Dato],"<="&Beregninger!N$175) -> 0 | O180: =SUMIFS(Tabel1[Kvantum],INDIRECT("Tabel1["&$A180&"]"),$C180,INDIRECT("Tabel1["&$B180&"]"),$C180,Tabel1[DWID_Sted],Beregninger!N$173,Tabel1[DWID_Dato],">="&Beregninger!N$174,Tabel1[DWID_Dato],"<="&Beregninger!N$175) -> 0 | Q180: =SUMIFS(Tabel1[Beloeb],INDIRECT("Tabel1["&$A180&"]"),$C180,INDIRECT("Tabel1["&$B180&"]"),$C180,Tabel1[DWID_Sted],Beregninger!Q$173,Tabel1[DWID_Dato],">="&Beregninger!Q$174,Tabel1[DWID_Dato],"<="&Beregninger!Q$175) -> 0 | R180: =SUMIFS(Tabel1[Kvantum],INDIRECT("Tabel1["&$A180&"]"),$C180,INDIRECT("Tabel1["&$B180&"]"),$C180,Tabel1[DWID_Sted],Beregninger!Q$173,Tabel1[DWID_Dato],">="&Beregninger!Q$174,Tabel1[DWID_Dato],"<="&Beregninger!Q$175) -> 0 | T180: =SUMIFS(Tabel1[Beloeb],INDIRECT("Tabel1["&$A180&"]"),$C180,INDIRECT("Tabel1["&$B180&"]"),$C180,Tabel1[DWID_Sted],Beregninger!T$173,Tabel1[DWID_Dato],">="&Beregninger!T$174,Tabel1[DWID_Dato],"<="&Beregninger!T$175) -> 0 | U180: =SUMIFS(Tabel1[Kvantum],INDIRECT("Tabel1["&$A180&"]"),$C180,INDIRECT("Tabel1["&$B180&"]"),$C180,Tabel1[DWID_Sted],Beregninger!T$173,Tabel1[DWID_Dato],">="&Beregninger!T$174,Tabel1[DWID_Dato],"<="&Beregninger!T$175) -> 0 | W180: =SUMIFS(Tabel1[Beloeb],INDIRECT("Tabel1["&$A180&"]"),$C180,INDIRECT("Tabel1["&$B180&"]"),$C180,Tabel1[DWID_Sted],Beregninger!W$173,Tabel1[DWID_Dato],">="&Beregninger!W$174,Tabel1[DWID_Dato],"<="&Beregninger!W$175) -> 0 | X180: =SUMIFS(Tabel1[Kvantum],INDIRECT("Tabel1["&$A180&"]"),$C180,INDIRECT("Tabel1["&$B180&"]"),$C180,Tabel1[DWID_Sted],Beregninger!W$173,Tabel1[DWID_Dato],">="&Beregninger!W$174,Tabel1[DWID_Dato],"<="&Beregninger!W$175) -> 0 | Z180: =SUMIFS(Tabel1[Beloeb],INDIRECT("Tabel1["&$A180&"]"),$C180,INDIRECT("Tabel1["&$B180&"]"),$C180,Tabel1[DWID_Sted],Beregninger!Z$173,Tabel1[DWID_Dato],">="&Beregninger!Z$174,Tabel1[DWID_Dato],"<="&Beregninger!Z$175) -> 0 | AA180: =SUMIFS(Tabel1[Kvantum],INDIRECT("Tabel1["&$A180&"]"),$C180,INDIRECT("Tabel1["&$B180&"]"),$C180,Tabel1[DWID_Sted],Beregninger!Z$173,Tabel1[DWID_Dato],">="&Beregninger!Z$174,Tabel1[DWID_Dato],"<="&Beregninger!Z$175) -> 0 | AC180: =SUMIFS(Tabel1[Beloeb],INDIRECT("Tabel1["&$A180&"]"),$C180,INDIRECT("Tabel1["&$B180&"]"),$C180,Tabel1[DWID_Sted],Beregninger!AC$173,Tabel1[DWID_Dato],">="&Beregninger!AC$174,Tabel1[DWID_Dato],"<="&Beregninger!AC$175) -> 0 | AD180: =SUMIFS(Tabel1[Kvantum],INDIRECT("Tabel1["&$A180&"]"),$C180,INDIRECT("Tabel1["&$B180&"]"),$C180,Tabel1[DWID_Sted],Beregninger!AC$173,Tabel1[DWID_Dato],">="&Beregninger!AC$174,Tabel1[DWID_Dato],"<="&Beregninger!AC$175) -> 0 | AF180: =SUMIFS(Tabel1[Beloeb],INDIRECT("Tabel1["&$A180&"]"),$C180,INDIRECT("Tabel1["&$B180&"]"),$C180,Tabel1[DWID_Sted],Beregninger!AF$173,Tabel1[DWID_Dato],">="&Beregninger!AF$174,Tabel1[DWID_Dato],"<="&Beregninger!AF$175) -> 0 | AG180: =SUMIFS(Tabel1[Kvantum],INDIRECT("Tabel1["&$A180&"]"),$C180,INDIRECT("Tabel1["&$B180&"]"),$C180,Tabel1[DWID_Sted],Beregninger!AF$173,Tabel1[DWID_Dato],">="&Beregninger!AF$174,Tabel1[DWID_Dato],"<="&Beregninger!AF$175) -> 0
A181: Slsvin 1 | B181: Slsvin 3 | C181: 1 | D181: Heraf Færdigblanding slagtesvin | E181: =SUMIFS(Tabel1[Beloeb],INDIRECT("Tabel1["&$A181&"]"),$C181,INDIRECT("Tabel1["&$B181&"]"),$C181,Tabel1[DWID_Sted],Beregninger!E$173,Tabel1[DWID_Dato],">="&Beregninger!E$174,Tabel1[DWID_Dato],"<="&Beregninger!E$175) -> -53040.6 | F181: =SUMIFS(Tabel1[Kvantum],INDIRECT("Tabel1["&$A181&"]"),$C181,INDIRECT("Tabel1["&$B181&"]"),$C181,Tabel1[DWID_Sted],Beregninger!E$173,Tabel1[DWID_Dato],">="&Beregninger!E$174,Tabel1[DWID_Dato],"<="&Beregninger!E$175) -> -33570 | H181: =SUMIFS(Tabel1[Beloeb],INDIRECT("Tabel1["&$A181&"]"),$C181,INDIRECT("Tabel1["&$B181&"]"),$C181,Tabel1[DWID_Sted],Beregninger!H$173,Tabel1[DWID_Dato],">="&Beregninger!H$174,Tabel1[DWID_Dato],"<="&Beregninger!H$175) -> -18786.2 | I181: =SUMIFS(Tabel1[Kvantum],INDIRECT("Tabel1["&$A181&"]"),$C181,INDIRECT("Tabel1["&$B181&"]"),$C181,Tabel1[DWID_Sted],Beregninger!H$173,Tabel1[DWID_Dato],">="&Beregninger!H$174,Tabel1[DWID_Dato],"<="&Beregninger!H$175) -> -11890 | K181: =SUMIFS(Tabel1[Beloeb],INDIRECT("Tabel1["&$A181&"]"),$C181,INDIRECT("Tabel1["&$B181&"]"),$C181,Tabel1[DWID_Sted],Beregninger!K$173,Tabel1[DWID_Dato],">="&Beregninger!K$174,Tabel1[DWID_Dato],"<="&Beregninger!K$175) -> -38631 | L181: =SUMIFS(Tabel1[Kvantum],INDIRECT("Tabel1["&$A181&"]"),$C181,INDIRECT("Tabel1["&$B181&"]"),$C181,Tabel1[DWID_Sted],Beregninger!K$173,Tabel1[DWID_Dato],">="&Beregninger!K$174,Tabel1[DWID_Dato],"<="&Beregninger!K$175) -> -24450 | N181: =SUMIFS(Tabel1[Beloeb],INDIRECT("Tabel1["&$A181&"]"),$C181,INDIRECT("Tabel1["&$B181&"]"),$C181,Tabel1[DWID_Sted],Beregninger!N$173,Tabel1[DWID_Dato],">="&Beregninger!N$174,Tabel1[DWID_Dato],"<="&Beregninger!N$175) -> 0 | O181: =SUMIFS(Tabel1[Kvantum],INDIRECT("Tabel1["&$A181&"]"),$C181,INDIRECT("Tabel1["&$B181&"]"),$C181,Tabel1[DWID_Sted],Beregninger!N$173,Tabel1[DWID_Dato],">="&Beregninger!N$174,Tabel1[DWID_Dato],"<="&Beregninger!N$175) -> 0 | Q181: =SUMIFS(Tabel1[Beloeb],INDIRECT("Tabel1["&$A181&"]"),$C181,INDIRECT("Tabel1["&$B181&"]"),$C181,Tabel1[DWID_Sted],Beregninger!Q$173,Tabel1[DWID_Dato],">="&Beregninger!Q$174,Tabel1[DWID_Dato],"<="&Beregninger!Q$175) -> 0 | R181: =SUMIFS(Tabel1[Kvantum],INDIRECT("Tabel1["&$A181&"]"),$C181,INDIRECT("Tabel1["&$B181&"]"),$C181,Tabel1[DWID_Sted],Beregninger!Q$173,Tabel1[DWID_Dato],">="&Beregninger!Q$174,Tabel1[DWID_Dato],"<="&Beregninger!Q$175) -> 0 | T181: =SUMIFS(Tabel1[Beloeb],INDIRECT("Tabel1["&$A181&"]"),$C181,INDIRECT("Tabel1["&$B181&"]"),$C181,Tabel1[DWID_Sted],Beregninger!T$173,Tabel1[DWID_Dato],">="&Beregninger!T$174,Tabel1[DWID_Dato],"<="&Beregninger!T$175) -> 0 | U181: =SUMIFS(Tabel1[Kvantum],INDIRECT("Tabel1["&$A181&"]"),$C181,INDIRECT("Tabel1["&$B181&"]"),$C181,Tabel1[DWID_Sted],Beregninger!T$173,Tabel1[DWID_Dato],">="&Beregninger!T$174,Tabel1[DWID_Dato],"<="&Beregninger!T$175) -> 0 | W181: =SUMIFS(Tabel1[Beloeb],INDIRECT("Tabel1["&$A181&"]"),$C181,INDIRECT("Tabel1["&$B181&"]"),$C181,Tabel1[DWID_Sted],Beregninger!W$173,Tabel1[DWID_Dato],">="&Beregninger!W$174,Tabel1[DWID_Dato],"<="&Beregninger!W$175) -> 0 | X181: =SUMIFS(Tabel1[Kvantum],INDIRECT("Tabel1["&$A181&"]"),$C181,INDIRECT("Tabel1["&$B181&"]"),$C181,Tabel1[DWID_Sted],Beregninger!W$173,Tabel1[DWID_Dato],">="&Beregninger!W$174,Tabel1[DWID_Dato],"<="&Beregninger!W$175) -> 0 | Z181: =SUMIFS(Tabel1[Beloeb],INDIRECT("Tabel1["&$A181&"]"),$C181,INDIRECT("Tabel1["&$B181&"]"),$C181,Tabel1[DWID_Sted],Beregninger!Z$173,Tabel1[DWID_Dato],">="&Beregninger!Z$174,Tabel1[DWID_Dato],"<="&Beregninger!Z$175) -> 0 | AA181: =SUMIFS(Tabel1[Kvantum],INDIRECT("Tabel1["&$A181&"]"),$C181,INDIRECT("Tabel1["&$B181&"]"),$C181,Tabel1[DWID_Sted],Beregninger!Z$173,Tabel1[DWID_Dato],">="&Beregninger!Z$174,Tabel1[DWID_Dato],"<="&Beregninger!Z$175) -> 0 | AC181: =SUMIFS(Tabel1[Beloeb],INDIRECT("Tabel1["&$A181&"]"),$C181,INDIRECT("Tabel1["&$B181&"]"),$C181,Tabel1[DWID_Sted],Beregninger!AC$173,Tabel1[DWID_Dato],">="&Beregninger!AC$174,Tabel1[DWID_Dato],"<="&Beregninger!AC$175) -> 0 | AD181: =SUMIFS(Tabel1[Kvantum],INDIRECT("Tabel1["&$A181&"]"),$C181,INDIRECT("Tabel1["&$B181&"]"),$C181,Tabel1[DWID_Sted],Beregninger!AC$173,Tabel1[DWID_Dato],">="&Beregninger!AC$174,Tabel1[DWID_Dato],"<="&Beregninger!AC$175) -> 0 | AF181: =SUMIFS(Tabel1[Beloeb],INDIRECT("Tabel1["&$A181&"]"),$C181,INDIRECT("Tabel1["&$B181&"]"),$C181,Tabel1[DWID_Sted],Beregninger!AF$173,Tabel1[DWID_Dato],">="&Beregninger!AF$174,Tabel1[DWID_Dato],"<="&Beregninger!AF$175) -> 0 | AG181: =SUMIFS(Tabel1[Kvantum],INDIRECT("Tabel1["&$A181&"]"),$C181,INDIRECT("Tabel1["&$B181&"]"),$C181,Tabel1[DWID_Sted],Beregninger!AF$173,Tabel1[DWID_Dato],">="&Beregninger!AF$174,Tabel1[DWID_Dato],"<="&Beregninger!AF$175) -> 0
A182: Slsvin 1 | B182: Gen 2 | C182: 1 | D182: Dyrlæge om medicin | E182: =SUMIFS(Tabel1[Beloeb],INDIRECT("Tabel1["&$A182&"]"),$C182,INDIRECT("Tabel1["&$B182&"]"),$C182,Tabel1[DWID_Sted],Beregninger!E$173,Tabel1[DWID_Dato],">="&Beregninger!E$174,Tabel1[DWID_Dato],"<="&Beregninger!E$175) -> -353 | F182: =SUMIFS(Tabel1[Kvantum],INDIRECT("Tabel1["&$A182&"]"),$C182,INDIRECT("Tabel1["&$B182&"]"),$C182,Tabel1[DWID_Sted],Beregninger!E$173,Tabel1[DWID_Dato],">="&Beregninger!E$174,Tabel1[DWID_Dato],"<="&Beregninger!E$175) -> 0 | H182: =SUMIFS(Tabel1[Beloeb],INDIRECT("Tabel1["&$A182&"]"),$C182,INDIRECT("Tabel1["&$B182&"]"),$C182,Tabel1[DWID_Sted],Beregninger!H$173,Tabel1[DWID_Dato],">="&Beregninger!H$174,Tabel1[DWID_Dato],"<="&Beregninger!H$175) -> 0 | I182: =SUMIFS(Tabel1[Kvantum],INDIRECT("Tabel1["&$A182&"]"),$C182,INDIRECT("Tabel1["&$B182&"]"),$C182,Tabel1[DWID_Sted],Beregninger!H$173,Tabel1[DWID_Dato],">="&Beregninger!H$174,Tabel1[DWID_Dato],"<="&Beregninger!H$175) -> 0 | K182: =SUMIFS(Tabel1[Beloeb],INDIRECT("Tabel1["&$A182&"]"),$C182,INDIRECT("Tabel1["&$B182&"]"),$C182,Tabel1[DWID_Sted],Beregninger!K$173,Tabel1[DWID_Dato],">="&Beregninger!K$174,Tabel1[DWID_Dato],"<="&Beregninger!K$175) -> 0 | L182: =SUMIFS(Tabel1[Kvantum],INDIRECT("Tabel1["&$A182&"]"),$C182,INDIRECT("Tabel1["&$B182&"]"),$C182,Tabel1[DWID_Sted],Beregninger!K$173,Tabel1[DWID_Dato],">="&Beregninger!K$174,Tabel1[DWID_Dato],"<="&Beregninger!K$175) -> 0 | N182: =SUMIFS(Tabel1[Beloeb],INDIRECT("Tabel1["&$A182&"]"),$C182,INDIRECT("Tabel1["&$B182&"]"),$C182,Tabel1[DWID_Sted],Beregninger!N$173,Tabel1[DWID_Dato],">="&Beregninger!N$174,Tabel1[DWID_Dato],"<="&Beregninger!N$175) -> 0 | O182: =SUMIFS(Tabel1[Kvantum],INDIRECT("Tabel1["&$A182&"]"),$C182,INDIRECT("Tabel1["&$B182&"]"),$C182,Tabel1[DWID_Sted],Beregninger!N$173,Tabel1[DWID_Dato],">="&Beregninger!N$174,Tabel1[DWID_Dato],"<="&Beregninger!N$175) -> 0 | Q182: =SUMIFS(Tabel1[Beloeb],INDIRECT("Tabel1["&$A182&"]"),$C182,INDIRECT("Tabel1["&$B182&"]"),$C182,Tabel1[DWID_Sted],Beregninger!Q$173,Tabel1[DWID_Dato],">="&Beregninger!Q$174,Tabel1[DWID_Dato],"<="&Beregninger!Q$175) -> 0 | R182: =SUMIFS(Tabel1[Kvantum],INDIRECT("Tabel1["&$A182&"]"),$C182,INDIRECT("Tabel1["&$B182&"]"),$C182,Tabel1[DWID_Sted],Beregninger!Q$173,Tabel1[DWID_Dato],">="&Beregninger!Q$174,Tabel1[DWID_Dato],"<="&Beregninger!Q$175) -> 0 | T182: =SUMIFS(Tabel1[Beloeb],INDIRECT("Tabel1["&$A182&"]"),$C182,INDIRECT("Tabel1["&$B182&"]"),$C182,Tabel1[DWID_Sted],Beregninger!T$173,Tabel1[DWID_Dato],">="&Beregninger!T$174,Tabel1[DWID_Dato],"<="&Beregninger!T$175) -> 0 | U182: =SUMIFS(Tabel1[Kvantum],INDIRECT("Tabel1["&$A182&"]"),$C182,INDIRECT("Tabel1["&$B182&"]"),$C182,Tabel1[DWID_Sted],Beregninger!T$173,Tabel1[DWID_Dato],">="&Beregninger!T$174,Tabel1[DWID_Dato],"<="&Beregninger!T$175) -> 0 | W182: =SUMIFS(Tabel1[Beloeb],INDIRECT("Tabel1["&$A182&"]"),$C182,INDIRECT("Tabel1["&$B182&"]"),$C182,Tabel1[DWID_Sted],Beregninger!W$173,Tabel1[DWID_Dato],">="&Beregninger!W$174,Tabel1[DWID_Dato],"<="&Beregninger!W$175) -> 0 | X182: =SUMIFS(Tabel1[Kvantum],INDIRECT("Tabel1["&$A182&"]"),$C182,INDIRECT("Tabel1["&$B182&"]"),$C182,Tabel1[DWID_Sted],Beregninger!W$173,Tabel1[DWID_Dato],">="&Beregninger!W$174,Tabel1[DWID_Dato],"<="&Beregninger!W$175) -> 0 | Z182: =SUMIFS(Tabel1[Beloeb],INDIRECT("Tabel1["&$A182&"]"),$C182,INDIRECT("Tabel1["&$B182&"]"),$C182,Tabel1[DWID_Sted],Beregninger!Z$173,Tabel1[DWID_Dato],">="&Beregninger!Z$174,Tabel1[DWID_Dato],"<="&Beregninger!Z$175) -> 0 | AA182: =SUMIFS(Tabel1[Kvantum],INDIRECT("Tabel1["&$A182&"]"),$C182,INDIRECT("Tabel1["&$B182&"]"),$C182,Tabel1[DWID_Sted],Beregninger!Z$173,Tabel1[DWID_Dato],">="&Beregninger!Z$174,Tabel1[DWID_Dato],"<="&Beregninger!Z$175) -> 0 | AC182: =SUMIFS(Tabel1[Beloeb],INDIRECT("Tabel1["&$A182&"]"),$C182,INDIRECT("Tabel1["&$B182&"]"),$C182,Tabel1[DWID_Sted],Beregninger!AC$173,Tabel1[DWID_Dato],">="&Beregninger!AC$174,Tabel1[DWID_Dato],"<="&Beregninger!AC$175) -> 0 | AD182: =SUMIFS(Tabel1[Kvantum],INDIRECT("Tabel1["&$A182&"]"),$C182,INDIRECT("Tabel1["&$B182&"]"),$C182,Tabel1[DWID_Sted],Beregninger!AC$173,Tabel1[DWID_Dato],">="&Beregninger!AC$174,Tabel1[DWID_Dato],"<="&Beregninger!AC$175) -> 0 | AF182: =SUMIFS(Tabel1[Beloeb],INDIRECT("Tabel1["&$A182&"]"),$C182,INDIRECT("Tabel1["&$B182&"]"),$C182,Tabel1[DWID_Sted],Beregninger!AF$173,Tabel1[DWID_Dato],">="&Beregninger!AF$174,Tabel1[DWID_Dato],"<="&Beregninger!AF$175) -> 0 | AG182: =SUMIFS(Tabel1[Kvantum],INDIRECT("Tabel1["&$A182&"]"),$C182,INDIRECT("Tabel1["&$B182&"]"),$C182,Tabel1[DWID_Sted],Beregninger!AF$173,Tabel1[DWID_Dato],">="&Beregninger!AF$174,Tabel1[DWID_Dato],"<="&Beregninger!AF$175) -> 0
A183: Gen 3 | B183: Gen 3 | C183: 1 | D183: Vedligehold bygninger* | E183: =SUMIFS(Tabel1[Beloeb],INDIRECT("Tabel1["&$A183&"]"),$C183,INDIRECT("Tabel1["&$B183&"]"),$C183,Tabel1[DWID_Sted],Beregninger!E$173,Tabel1[DWID_Dato],">="&Beregninger!E$174,Tabel1[DWID_Dato],"<="&Beregninger!E$175) -> 0 | F183: =SUMIFS(Tabel1[Kvantum],INDIRECT("Tabel1["&$A183&"]"),$C183,INDIRECT("Tabel1["&$B183&"]"),$C183,Tabel1[DWID_Sted],Beregninger!E$173,Tabel1[DWID_Dato],">="&Beregninger!E$174,Tabel1[DWID_Dato],"<="&Beregninger!E$175) -> 0 | H183: =SUMIFS(Tabel1[Beloeb],INDIRECT("Tabel1["&$A183&"]"),$C183,INDIRECT("Tabel1["&$B183&"]"),$C183,Tabel1[DWID_Sted],Beregninger!H$173,Tabel1[DWID_Dato],">="&Beregninger!H$174,Tabel1[DWID_Dato],"<="&Beregninger!H$175) -> 0 | I183: =SUMIFS(Tabel1[Kvantum],INDIRECT("Tabel1["&$A183&"]"),$C183,INDIRECT("Tabel1["&$B183&"]"),$C183,Tabel1[DWID_Sted],Beregninger!H$173,Tabel1[DWID_Dato],">="&Beregninger!H$174,Tabel1[DWID_Dato],"<="&Beregninger!H$175) -> 0 | K183: =SUMIFS(Tabel1[Beloeb],INDIRECT("Tabel1["&$A183&"]"),$C183,INDIRECT("Tabel1["&$B183&"]"),$C183,Tabel1[DWID_Sted],Beregninger!K$173,Tabel1[DWID_Dato],">="&Beregninger!K$174,Tabel1[DWID_Dato],"<="&Beregninger!K$175) -> 0 | L183: =SUMIFS(Tabel1[Kvantum],INDIRECT("Tabel1["&$A183&"]"),$C183,INDIRECT("Tabel1["&$B183&"]"),$C183,Tabel1[DWID_Sted],Beregninger!K$173,Tabel1[DWID_Dato],">="&Beregninger!K$174,Tabel1[DWID_Dato],"<="&Beregninger!K$175) -> 0 | N183: =SUMIFS(Tabel1[Beloeb],INDIRECT("Tabel1["&$A183&"]"),$C183,INDIRECT("Tabel1["&$B183&"]"),$C183,Tabel1[DWID_Sted],Beregninger!N$173,Tabel1[DWID_Dato],">="&Beregninger!N$174,Tabel1[DWID_Dato],"<="&Beregninger!N$175) -> 0 | O183: =SUMIFS(Tabel1[Kvantum],INDIRECT("Tabel1["&$A183&"]"),$C183,INDIRECT("Tabel1["&$B183&"]"),$C183,Tabel1[DWID_Sted],Beregninger!N$173,Tabel1[DWID_Dato],">="&Beregninger!N$174,Tabel1[DWID_Dato],"<="&Beregninger!N$175) -> 0 | Q183: =SUMIFS(Tabel1[Beloeb],INDIRECT("Tabel1["&$A183&"]"),$C183,INDIRECT("Tabel1["&$B183&"]"),$C183,Tabel1[DWID_Sted],Beregninger!Q$173,Tabel1[DWID_Dato],">="&Beregninger!Q$174,Tabel1[DWID_Dato],"<="&Beregninger!Q$175) -> 0 | R183: =SUMIFS(Tabel1[Kvantum],INDIRECT("Tabel1["&$A183&"]"),$C183,INDIRECT("Tabel1["&$B183&"]"),$C183,Tabel1[DWID_Sted],Beregninger!Q$173,Tabel1[DWID_Dato],">="&Beregninger!Q$174,Tabel1[DWID_Dato],"<="&Beregninger!Q$175) -> 0 | T183: =SUMIFS(Tabel1[Beloeb],INDIRECT("Tabel1["&$A183&"]"),$C183,INDIRECT("Tabel1["&$B183&"]"),$C183,Tabel1[DWID_Sted],Beregninger!T$173,Tabel1[DWID_Dato],">="&Beregninger!T$174,Tabel1[DWID_Dato],"<="&Beregninger!T$175) -> 0 | U183: =SUMIFS(Tabel1[Kvantum],INDIRECT("Tabel1["&$A183&"]"),$C183,INDIRECT("Tabel1["&$B183&"]"),$C183,Tabel1[DWID_Sted],Beregninger!T$173,Tabel1[DWID_Dato],">="&Beregninger!T$174,Tabel1[DWID_Dato],"<="&Beregninger!T$175) -> 0 | W183: =SUMIFS(Tabel1[Beloeb],INDIRECT("Tabel1["&$A183&"]"),$C183,INDIRECT("Tabel1["&$B183&"]"),$C183,Tabel1[DWID_Sted],Beregninger!W$173,Tabel1[DWID_Dato],">="&Beregninger!W$174,Tabel1[DWID_Dato],"<="&Beregninger!W$175) -> 0 | X183: =SUMIFS(Tabel1[Kvantum],INDIRECT("Tabel1["&$A183&"]"),$C183,INDIRECT("Tabel1["&$B183&"]"),$C183,Tabel1[DWID_Sted],Beregninger!W$173,Tabel1[DWID_Dato],">="&Beregninger!W$174,Tabel1[DWID_Dato],"<="&Beregninger!W$175) -> 0 | Z183: =SUMIFS(Tabel1[Beloeb],INDIRECT("Tabel1["&$A183&"]"),$C183,INDIRECT("Tabel1["&$B183&"]"),$C183,Tabel1[DWID_Sted],Beregninger!Z$173,Tabel1[DWID_Dato],">="&Beregninger!Z$174,Tabel1[DWID_Dato],"<="&Beregninger!Z$175) -> 0 | AA183: =SUMIFS(Tabel1[Kvantum],INDIRECT("Tabel1["&$A183&"]"),$C183,INDIRECT("Tabel1["&$B183&"]"),$C183,Tabel1[DWID_Sted],Beregninger!Z$173,Tabel1[DWID_Dato],">="&Beregninger!Z$174,Tabel1[DWID_Dato],"<="&Beregninger!Z$175) -> 0 | AC183: =SUMIFS(Tabel1[Beloeb],INDIRECT("Tabel1["&$A183&"]"),$C183,INDIRECT("Tabel1["&$B183&"]"),$C183,Tabel1[DWID_Sted],Beregninger!AC$173,Tabel1[DWID_Dato],">="&Beregninger!AC$174,Tabel1[DWID_Dato],"<="&Beregninger!AC$175) -> 0 | AD183: =SUMIFS(Tabel1[Kvantum],INDIRECT("Tabel1["&$A183&"]"),$C183,INDIRECT("Tabel1["&$B183&"]"),$C183,Tabel1[DWID_Sted],Beregninger!AC$173,Tabel1[DWID_Dato],">="&Beregninger!AC$174,Tabel1[DWID_Dato],"<="&Beregninger!AC$175) -> 0 | AF183: =SUMIFS(Tabel1[Beloeb],INDIRECT("Tabel1["&$A183&"]"),$C183,INDIRECT("Tabel1["&$B183&"]"),$C183,Tabel1[DWID_Sted],Beregninger!AF$173,Tabel1[DWID_Dato],">="&Beregninger!AF$174,Tabel1[DWID_Dato],"<="&Beregninger!AF$175) -> 0 | AG183: =SUMIFS(Tabel1[Kvantum],INDIRECT("Tabel1["&$A183&"]"),$C183,INDIRECT("Tabel1["&$B183&"]"),$C183,Tabel1[DWID_Sted],Beregninger!AF$173,Tabel1[DWID_Dato],">="&Beregninger!AF$174,Tabel1[DWID_Dato],"<="&Beregninger!AF$175) -> 0
A184: Gen 4 | B184: Gen 4 | C184: 1 | D184: Vedligehold staldinv.* | E184: =SUMIFS(Tabel1[Beloeb],INDIRECT("Tabel1["&$A184&"]"),$C184,INDIRECT("Tabel1["&$B184&"]"),$C184,Tabel1[DWID_Sted],Beregninger!E$173,Tabel1[DWID_Dato],">="&Beregninger!E$174,Tabel1[DWID_Dato],"<="&Beregninger!E$175) -> -19224.8 | F184: =SUMIFS(Tabel1[Kvantum],INDIRECT("Tabel1["&$A184&"]"),$C184,INDIRECT("Tabel1["&$B184&"]"),$C184,Tabel1[DWID_Sted],Beregninger!E$173,Tabel1[DWID_Dato],">="&Beregninger!E$174,Tabel1[DWID_Dato],"<="&Beregninger!E$175) -> 0 | H184: =SUMIFS(Tabel1[Beloeb],INDIRECT("Tabel1["&$A184&"]"),$C184,INDIRECT("Tabel1["&$B184&"]"),$C184,Tabel1[DWID_Sted],Beregninger!H$173,Tabel1[DWID_Dato],">="&Beregninger!H$174,Tabel1[DWID_Dato],"<="&Beregninger!H$175) -> -29787.32 | I184: =SUMIFS(Tabel1[Kvantum],INDIRECT("Tabel1["&$A184&"]"),$C184,INDIRECT("Tabel1["&$B184&"]"),$C184,Tabel1[DWID_Sted],Beregninger!H$173,Tabel1[DWID_Dato],">="&Beregninger!H$174,Tabel1[DWID_Dato],"<="&Beregninger!H$175) -> 0 | K184: =SUMIFS(Tabel1[Beloeb],INDIRECT("Tabel1["&$A184&"]"),$C184,INDIRECT("Tabel1["&$B184&"]"),$C184,Tabel1[DWID_Sted],Beregninger!K$173,Tabel1[DWID_Dato],">="&Beregninger!K$174,Tabel1[DWID_Dato],"<="&Beregninger!K$175) -> -22162.37 | L184: =SUMIFS(Tabel1[Kvantum],INDIRECT("Tabel1["&$A184&"]"),$C184,INDIRECT("Tabel1["&$B184&"]"),$C184,Tabel1[DWID_Sted],Beregninger!K$173,Tabel1[DWID_Dato],">="&Beregninger!K$174,Tabel1[DWID_Dato],"<="&Beregninger!K$175) -> 0 | N184: =SUMIFS(Tabel1[Beloeb],INDIRECT("Tabel1["&$A184&"]"),$C184,INDIRECT("Tabel1["&$B184&"]"),$C184,Tabel1[DWID_Sted],Beregninger!N$173,Tabel1[DWID_Dato],">="&Beregninger!N$174,Tabel1[DWID_Dato],"<="&Beregninger!N$175) -> 0 | O184: =SUMIFS(Tabel1[Kvantum],INDIRECT("Tabel1["&$A184&"]"),$C184,INDIRECT("Tabel1["&$B184&"]"),$C184,Tabel1[DWID_Sted],Beregninger!N$173,Tabel1[DWID_Dato],">="&Beregninger!N$174,Tabel1[DWID_Dato],"<="&Beregninger!N$175) -> 0 | Q184: =SUMIFS(Tabel1[Beloeb],INDIRECT("Tabel1["&$A184&"]"),$C184,INDIRECT("Tabel1["&$B184&"]"),$C184,Tabel1[DWID_Sted],Beregninger!Q$173,Tabel1[DWID_Dato],">="&Beregninger!Q$174,Tabel1[DWID_Dato],"<="&Beregninger!Q$175) -> 0 | R184: =SUMIFS(Tabel1[Kvantum],INDIRECT("Tabel1["&$A184&"]"),$C184,INDIRECT("Tabel1["&$B184&"]"),$C184,Tabel1[DWID_Sted],Beregninger!Q$173,Tabel1[DWID_Dato],">="&Beregninger!Q$174,Tabel1[DWID_Dato],"<="&Beregninger!Q$175) -> 0 | T184: =SUMIFS(Tabel1[Beloeb],INDIRECT("Tabel1["&$A184&"]"),$C184,INDIRECT("Tabel1["&$B184&"]"),$C184,Tabel1[DWID_Sted],Beregninger!T$173,Tabel1[DWID_Dato],">="&Beregninger!T$174,Tabel1[DWID_Dato],"<="&Beregninger!T$175) -> 0 | U184: =SUMIFS(Tabel1[Kvantum],INDIRECT("Tabel1["&$A184&"]"),$C184,INDIRECT("Tabel1["&$B184&"]"),$C184,Tabel1[DWID_Sted],Beregninger!T$173,Tabel1[DWID_Dato],">="&Beregninger!T$174,Tabel1[DWID_Dato],"<="&Beregninger!T$175) -> 0 | W184: =SUMIFS(Tabel1[Beloeb],INDIRECT("Tabel1["&$A184&"]"),$C184,INDIRECT("Tabel1["&$B184&"]"),$C184,Tabel1[DWID_Sted],Beregninger!W$173,Tabel1[DWID_Dato],">="&Beregninger!W$174,Tabel1[DWID_Dato],"<="&Beregninger!W$175) -> 0 | X184: =SUMIFS(Tabel1[Kvantum],INDIRECT("Tabel1["&$A184&"]"),$C184,INDIRECT("Tabel1["&$B184&"]"),$C184,Tabel1[DWID_Sted],Beregninger!W$173,Tabel1[DWID_Dato],">="&Beregninger!W$174,Tabel1[DWID_Dato],"<="&Beregninger!W$175) -> 0 | Z184: =SUMIFS(Tabel1[Beloeb],INDIRECT("Tabel1["&$A184&"]"),$C184,INDIRECT("Tabel1["&$B184&"]"),$C184,Tabel1[DWID_Sted],Beregninger!Z$173,Tabel1[DWID_Dato],">="&Beregninger!Z$174,Tabel1[DWID_Dato],"<="&Beregninger!Z$175) -> 0 | AA184: =SUMIFS(Tabel1[Kvantum],INDIRECT("Tabel1["&$A184&"]"),$C184,INDIRECT("Tabel1["&$B184&"]"),$C184,Tabel1[DWID_Sted],Beregninger!Z$173,Tabel1[DWID_Dato],">="&Beregninger!Z$174,Tabel1[DWID_Dato],"<="&Beregninger!Z$175) -> 0 | AC184: =SUMIFS(Tabel1[Beloeb],INDIRECT("Tabel1["&$A184&"]"),$C184,INDIRECT("Tabel1["&$B184&"]"),$C184,Tabel1[DWID_Sted],Beregninger!AC$173,Tabel1[DWID_Dato],">="&Beregninger!AC$174,Tabel1[DWID_Dato],"<="&Beregninger!AC$175) -> 0 | AD184: =SUMIFS(Tabel1[Kvantum],INDIRECT("Tabel1["&$A184&"]"),$C184,INDIRECT("Tabel1["&$B184&"]"),$C184,Tabel1[DWID_Sted],Beregninger!AC$173,Tabel1[DWID_Dato],">="&Beregninger!AC$174,Tabel1[DWID_Dato],"<="&Beregninger!AC$175) -> 0 | AF184: =SUMIFS(Tabel1[Beloeb],INDIRECT("Tabel1["&$A184&"]"),$C184,INDIRECT("Tabel1["&$B184&"]"),$C184,Tabel1[DWID_Sted],Beregninger!AF$173,Tabel1[DWID_Dato],">="&Beregninger!AF$174,Tabel1[DWID_Dato],"<="&Beregninger!AF$175) -> 0 | AG184: =SUMIFS(Tabel1[Kvantum],INDIRECT("Tabel1["&$A184&"]"),$C184,INDIRECT("Tabel1["&$B184&"]"),$C184,Tabel1[DWID_Sted],Beregninger!AF$173,Tabel1[DWID_Dato],">="&Beregninger!AF$174,Tabel1[DWID_Dato],"<="&Beregninger!AF$175) -> 0
D187: pr slagtesvin
D188: Solgte slagtesvin beløb - kvantum | E188: =IFERROR(E177/F$177,0) -> 688.0499027 | F188: =IFERROR(F177/F$177,0) -> 1 | H188: =IFERROR(H177/I$177,0) -> 690.5465741 | I188: =IFERROR(I177/I$177,0) -> 1 | K188: =IFERROR(K177/L$177,0) -> 706.0963218 | L188: =IFERROR(L177/L$177,0) -> 1 | N188: =IFERROR(N177/O$177,0) -> 0 | O188: =IFERROR(O177/O$177,0) -> 0 | Q188: =IFERROR(Q177/R$177,0) -> 0 | R188: =IFERROR(R177/R$177,0) -> 0 | T188: =IFERROR(T177/U$177,0) -> 0 | U188: =IFERROR(U177/U$177,0) -> 0 | W188: =IFERROR(W177/X$177,0) -> 0 | X188: =IFERROR(X177/X$177,0) -> 0 | Z188: =IFERROR(Z177/AA$177,0) -> 0 | AA188: =IFERROR(AA177/AA$177,0) -> 0 | AC188: =IFERROR(AC177/AD$177,0) -> 0 | AD188: =IFERROR(AD177/AD$177,0) -> 0 | AF188: =IFERROR(AF177/AG$177,0) -> 0 | AG188: =IFERROR(AG177/AG$177,0) -> 0
D189: Foder | E189: =IFERROR(E178/F$177,0) -> -59.43749189 | F189: =IFERROR(F178/F$177,0) -> -36.29297297 | H189: =IFERROR(H178/I$177,0) -> -173.9462963 | I189: =IFERROR(I178/I$177,0) -> -110.0925926 | K189: =IFERROR(K178/L$177,0) -> -444.0344828 | L189: =IFERROR(L178/L$177,0) -> -281.0344828 | N189: =IFERROR(N178/O$177,0) -> 0 | O189: =IFERROR(O178/O$177,0) -> 0 | Q189: =IFERROR(Q178/R$177,0) -> 0 | R189: =IFERROR(R178/R$177,0) -> 0 | T189: =IFERROR(T178/U$177,0) -> 0 | U189: =IFERROR(U178/U$177,0) -> 0 | W189: =IFERROR(W178/X$177,0) -> 0 | X189: =IFERROR(X178/X$177,0) -> 0 | Z189: =IFERROR(Z178/AA$177,0) -> 0 | AA189: =IFERROR(AA178/AA$177,0) -> 0 | AC189: =IFERROR(AC178/AD$177,0) -> 0 | AD189: =IFERROR(AD178/AD$177,0) -> 0 | AF189: =IFERROR(AF178/AG$177,0) -> 0 | AG189: =IFERROR(AG178/AG$177,0) -> 0
D190: Heraf korn | E190: 0 | F190: 0 | H190: 0 | I190: 0 | K190: 0 | L190: 0 | N190: 0 | O190: 0 | Q190: 0 | R190: 0 | T190: 0 | U190: 0 | W190: 0 | X190: 0 | Z190: 0 | AA190: 0 | AC190: 0 | AD190: 0 | AF190: 0 | AG190: 0
D191: Heraf tilskudsfoder | E191: 0 | F191: 0 | H191: 0 | I191: 0 | K191: 0 | L191: 0 | N191: 0 | O191: 0 | Q191: 0 | R191: 0 | T191: 0 | U191: 0 | W191: 0 | X191: 0 | Z191: 0 | AA191: 0 | AC191: 0 | AD191: 0 | AF191: 0 | AG191: 0
D192: Heraf Færdigblanding slagtesvin | E192: -57.34118919 | F192: -36.29189189 | H192: -173.9462963 | I192: -110.0925926 | K192: -444.0344828 | L192: -281.0344828 | N192: 0 | O192: 0 | Q192: 0 | R192: 0 | T192: 0 | U192: 0 | W192: 0 | X192: 0 | Z192: 0 | AA192: 0 | AC192: 0 | AD192: 0 | AF192: 0 | AG192: 0
D193: Dyrlæge om medicin | E193: -0.3816216216 | F193: 0 | H193: 0 | I193: 0 | K193: 0 | L193: 0 | N193: 0 | O193: 0 | Q193: 0 | R193: 0 | T193: 0 | U193: 0 | W193: 0 | X193: 0 | Z193: 0 | AA193: 0 | AC193: 0 | AD193: 0 | AF193: 0 | AG193: 0
D194: Vedligehold bygninger* | E194: 0 | F194: 0 | H194: 0 | I194: 0 | K194: 0 | L194: 0 | N194: 0 | O194: 0 | Q194: 0 | R194: 0 | T194: 0 | U194: 0 | W194: 0 | X194: 0 | Z194: 0 | AA194: 0 | AC194: 0 | AD194: 0 | AF194: 0 | AG194: 0
D195: Vedligehold staldinv.* | E195: -20.78356757 | F195: 0 | H195: -275.8085185 | I195: 0 | K195: -254.7398851 | L195: 0 | N195: 0 | O195: 0 | Q195: 0 | R195: 0 | T195: 0 | U195: 0 | W195: 0 | X195: 0 | Z195: 0 | AA195: 0 | AC195: 0 | AD195: 0 | AF195: 0 | AG195: 0
D201: pr kg slagtesvin
D202: Solgte slagtesvin beløb - kvantum | E202: =IFERROR(E177/(F$177*E$172),0) -> 8.094704738 | F202: =IFERROR(F177/(F$177*E$172),0) -> 0.01176470588 | H202: =IFERROR(H177/(I$177*H$172),0) -> 8.124077342 | I202: =IFERROR(I177/(I$177*H$172),0) -> 0.01176470588 | K202: =IFERROR(K177/(L$177*K$172),0) -> 8.307015551 | L202: =IFERROR(L177/(L$177*K$172),0) -> 0.01176470588 | N202: =IFERROR(N177/(O$177*N$172),0) -> 0 | O202: =IFERROR(O177/(O$177*N$172),0) -> 0 | Q202: =IFERROR(Q177/(R$177*Q$172),0) -> 0 | R202: =IFERROR(R177/(R$177*Q$172),0) -> 0 | T202: =IFERROR(T177/(U$177*T$172),0) -> 0 | U202: =IFERROR(U177/(U$177*T$172),0) -> 0 | W202: =IFERROR(W177/(X$177*W$172),0) -> 0 | X202: =IFERROR(X177/(X$177*W$172),0) -> 0 | Z202: =IFERROR(Z177/(AA$177*Z$172),0) -> 0 | AA202: =IFERROR(AA177/(AA$177*Z$172),0) -> 0 | AC202: =IFERROR(AC177/(AD$177*AC$172),0) -> 0 | AD202: =IFERROR(AD177/(AD$177*AC$172),0) -> 0 | AF202: =IFERROR(AF177/(AG$177*AF$172),0) -> 0 | AG202: =IFERROR(AG177/(AG$177*AF$172),0) -> 0
D203: Foder | E203: =IFERROR(E178/(F$177*E$172),0) -> -0.6992646105 | F203: =IFERROR(F178/(F$177*E$172),0) -> -0.4269761526 | H203: =IFERROR(H178/(I$177*H$172),0) -> -2.046427015 | I203: =IFERROR(I178/(I$177*H$172),0) -> -1.295206972 | K203: =IFERROR(K178/(L$177*K$172),0) -> -5.223935091 | L203: =IFERROR(L178/(L$177*K$172),0) -> -3.306288032 | N203: =IFERROR(N178/(O$177*N$172),0) -> 0 | O203: =IFERROR(O178/(O$177*N$172),0) -> 0 | Q203: =IFERROR(Q178/(R$177*Q$172),0) -> 0 | R203: =IFERROR(R178/(R$177*Q$172),0) -> 0 | T203: =IFERROR(T178/(U$177*T$172),0) -> 0 | U203: =IFERROR(U178/(U$177*T$172),0) -> 0 | W203: =IFERROR(W178/(X$177*W$172),0) -> 0 | X203: =IFERROR(X178/(X$177*W$172),0) -> 0 | Z203: =IFERROR(Z178/(AA$177*Z$172),0) -> 0 | AA203: =IFERROR(AA178/(AA$177*Z$172),0) -> 0 | AC203: =IFERROR(AC178/(AD$177*AC$172),0) -> 0 | AD203: =IFERROR(AD178/(AD$177*AC$172),0) -> 0 | AF203: =IFERROR(AF178/(AG$177*AF$172),0) -> 0 | AG203: =IFERROR(AG178/(AG$177*AF$172),0) -> 0
D204: Heraf korn | E204: 0 | F204: 0 | H204: 0 | I204: 0 | K204: 0 | L204: 0 | N204: 0 | O204: 0 | Q204: 0 | R204: 0 | T204: 0 | U204: 0 | W204: 0 | X204: 0 | Z204: 0 | AA204: 0 | AC204: 0 | AD204: 0 | AF204: 0 | AG204: 0
D205: Heraf tilskudsfoder | E205: 0 | F205: 0 | H205: 0 | I205: 0 | K205: 0 | L205: 0 | N205: 0 | O205: 0 | Q205: 0 | R205: 0 | T205: 0 | U205: 0 | W205: 0 | X205: 0 | Z205: 0 | AA205: 0 | AC205: 0 | AD205: 0 | AF205: 0 | AG205: 0
D206: Heraf Færdigblanding slagtesvin | E206: -0.6746022258 | F206: -0.426963434 | H206: -2.046427015 | I206: -1.295206972 | K206: -5.223935091 | L206: -3.306288032 | N206: 0 | O206: 0 | Q206: 0 | R206: 0 | T206: 0 | U206: 0 | W206: 0 | X206: 0 | Z206: 0 | AA206: 0 | AC206: 0 | AD206: 0 | AF206: 0 | AG206: 0
D207: Dyrlæge om medicin | E207: -0.004489666137 | F207: 0 | H207: 0 | I207: 0 | K207: 0 | L207: 0 | N207: 0 | O207: 0 | Q207: 0 | R207: 0 | T207: 0 | U207: 0 | W207: 0 | X207: 0 | Z207: 0 | AA207: 0 | AC207: 0 | AD207: 0 | AF207: 0 | AG207: 0
D208: Vedligehold bygninger* | E208: 0 | F208: 0 | H208: 0 | I208: 0 | K208: 0 | L208: 0 | N208: 0 | O208: 0 | Q208: 0 | R208: 0 | T208: 0 | U208: 0 | W208: 0 | X208: 0 | Z208: 0 | AA208: 0 | AC208: 0 | AD208: 0 | AF208: 0 | AG208: 0
D209: Vedligehold staldinv.* | E209: -0.2445125596 | F209: 0 | H209: -3.2448061 | I209: 0 | K209: -2.996939824 | L209: 0 | N209: 0 | O209: 0 | Q209: 0 | R209: 0 | T209: 0 | U209: 0 | W209: 0 | X209: 0 | Z209: 0 | AA209: 0 | AC209: 0 | AD209: 0 | AF209: 0 | AG209: 0
